{"text_format":"1","workbook":"xlsx","n_sheets":3,"sheets":["Points & Instructions","Results and table","My Prediction"],"not_rendered":{"charts":0,"images":36,"macros":1,"external_links":0,"defined_names":4,"comments":0,"pivot_tables":0},"unopened":[],"bounds":{"document_bytes":16777216,"sheet_cells":100000,"rows_first":2000,"rows_last":500,"rows_between":2000,"halvings":0,"cell_chars":16384,"cell_head_chars":4096},"cells_cut":0,"cells_raw":0,"read":"whole","date_system":"1900"}

{"sheet":"Points & Instructions","index":0,"n_rows":40,"n_cols":17,"rows_kept":40,"cut":false,"hidden":false,"merged":[]}
[]
[null,"Points calculation",null,null,null,"Instructions",null,null,null,null,null,null,null,null,null,null,"Frequently Asked Questions (FAQ)"]
[null,"All matches"]
[null,"Correct number of goals scored per team","2 points",null,null,"Add participant",null,null,null,null,null,null,null,null,null,null,"1. When I click START to add a tip I get an error message"]
[null,"Correct 1X2 (1X2)","2 points",null,null,null,null,null,null,null,null,null,null,null,null,null,"Answer: Always keep the original \"My Prediction\" sheet and do not rename it. If the sheet is rename or"]
[null,"Total of 6 points for every match for the complete tournament",null,null,null,"Right click on the new sheet, select \"rename\" and type the participants name",null,null,null,null,null,null,null,null,null,null,"removed, the macro/copy does not work properly. The tab must be called \"My tip\""]
[null,null,null,null,null,"You can add as many participants you like"]
[null,"Prediction",null,null,null,null,null,null,null,null,null,null,null,null,null,null,"2. Can I get the password to the file?"]
[null,"Correct team in round of 16","2 points per team",null,null,"Add participant in the table",null,null,null,null,null,null,null,null,null,null,"Answer: No, we do not give out the password. Our contribution is that we publish the tip for free"]
[null,"Correct team in quarterfinal","4 points per team",null,null,"Select sheet \"Results & Table\" and type the participants name in the column \"Name\" in the table"]
[null,"Correct team in semi-final","6 points per team",null,null,"Select the correspondent cell in the column \"Points\" (for example cell BR5) and type =",null,null,null,null,null,null,null,null,null,null,"3. Is the tip available in any other language?"]
[null,"Correct team in play-off for third place","8 points per team",null,null,"Select the sheet with the participants name, click once in cell V20 and press Enter",null,null,null,null,null,null,null,null,null,null,"Answer: Yes, in Swedish. Please go to the website for download"]
[null,"Correct team in final","8 points per team",null,null,"The number 0 will appear in the cell next to the participants name"]
[null,null,null,null,null,null,null,null,null,null,null,null,null,null,null,null,"4. When I get the predictions back from my friends, I can copy or move the \"My Prediction\" sheet from"]
[null,"Bonus questions",null,null,null,"Tips for easier copying of prediction!",null,null,null,null,null,null,null,null,null,null,"my friends files to my file?"]
[null,"Top scorer","20 points",null,null,"Select all results and copy (cells G1:J103) and paste into corresponding cells",null,null,null,null,null,null,null,null,null,null,"Answer: No, that is not possible since the link to \"Results & Table\" will be removed"]
[null,"World cup winner","20 points",null,null,null,null,null,null,null,null,null,null,null,null,null,"Unfortunately, you need to enter their predictions manually. Please see \"Tips for easier copying of prediction\""]
[null,"Winner play-off for third place","10 points",null,null,"Marking"]
[null,null,null,null,null,"Fill in the results for every match in yellow cells in \"Results & Table\" and the respective participants ",null,null,null,null,null,null,null,null,null,null,"5. My friends and I want to predict the group stage first, then the round of 16, quarter-finals, semi-finals and final"]
[null,"Total points",null,null,null,"sheet will then be updated with points",null,null,null,null,null,null,null,null,null,null,"separately, after the matches are played in each part, is that possible?"]
[null,"Group stage","288 points",null,null,"Sort the table in descending order in the cell \"Points\" in the sheet \"Results & Table\" and voila! ",null,null,null,null,null,null,null,null,null,null,"Answer: Yes, it is perfectly fine to do so. There is no restriction on how you want to structure the prediction and marking process"]
[null,"Round of 16","80 points","(48+32)",null,null,null,null,null,null,null,null,null,null,null,null,"However, the bonus points for the correct team will be included in the points calculation"]
[null,"Quarterfinals","56 points","(24+32)",null,"Bonus points"]
[null,"Semi-finals","36 points","(12+24)",null,"Bonus points are awarded once all matches in the group stage a re finished. Same is for round of 16, quarter finals etc.",null,null,null,null,null,null,null,null,null,null,"6. Can the points calculation be changes (i.e. number of points per team or game)?"]
[null,"Play-off for third place","22 points","(6+16)",null,"Please note that the name of the Tops scorer must be spelled/typed in the exact same way in \"Results & Table\" and",null,null,null,null,null,null,null,null,null,null,"Answer: No, this is the point calculation available. Of course, you can send in a request for a different point calculation, but we cannot"]
[null,"Final","22 points","(6+16)",null,"in \"My Prediction\" in order to give points.",null,null,null,null,null,null,null,null,null,null,"guarantee that it will be offered/updated. Our contribution is that we publish the tip for free"]
[null,"Bonus","50 points","(20+20+10)"]
[null,"Total","554 points",null,null,"The fine print"]
[null,null,null,null,null,"You have to fill in every participants prediction in a separate sheet in this file."]
[null,null,null,null,null,"This is due to there are formulas connected in every sheet, which are controlled from \"Results & Table\""]
[null,null,null,null,null,"Unfortunately a bit of manual work, but it goes quite quick and needs only to be done before"]
[null,null,null,null,null,"the competition starts"]
[]
[null,null,null,null,null,"Good to know!"]
[null,null,null,null,null,"In the knock out stage it's possible to predict another team through to the next round other than what the result show"]
[null,null,null,null,null,"Ex. if Sweden plays against Brazil and your prediction is 1-2, you can still write Sweden as winner"]
[null,null,null,null,null,"If this is made, \"NOT OK\" will be appear by the specific match showing that the result and winner isn't correlating"]
[null,null,null,null,null,"It's up to you to decide if you wish to approve this or not"]
[]
[null,null,null,null,null,"It's also good to decide in advance if the end result should valid after 90 minutes, overtime or after penalty kicks"]

{"sheet":"Results and table","index":1,"n_rows":103,"n_cols":70,"rows_kept":103,"cut":false,"hidden":false,"merged":[[2,54,2,56],[20,3,20,5],[20,6,20,8],[20,51,20,53],[20,54,20,56],[4,18,4,21],[11,3,11,5],[11,6,11,8],[11,51,11,53],[11,54,11,56],[3,18,3,21],[2,3,2,5],[2,6,2,8],[2,18,2,21],[2,51,2,53],[5,18,5,21],[75,13,82,18],[47,6,47,8],[56,6,56,8],[65,6,65,8],[29,3,29,5],[29,6,29,8],[38,6,38,8],[101,3,101,5],[101,6,101,8],[38,3,38,5],[65,3,65,5],[56,3,56,5],[47,3,47,5],[92,3,92,5],[92,6,92,8],[97,3,97,5],[97,6,97,8],[74,3,74,5],[74,6,74,8],[85,3,85,5],[85,6,85,8],[101,54,101,56],[101,51,101,53],[97,54,97,56],[97,51,97,53],[92,54,92,56],[92,51,92,53],[85,54,85,56],[85,51,85,53],[74,54,74,56],[74,51,74,53],[74,34,74,36],[29,51,29,53],[65,54,65,56],[56,54,56,56],[47,54,47,56],[38,54,38,56],[29,54,29,56]]}
[null,null,null,null,null,null,null,null,null,null,{"$f":"count","v":{"$error":"#NAME?"}}]
[null,"Group A",null,null,null,null,null,null,null,null,null,null,null,null,null,null,null,"Bonus questions"]
[null,"Game","Date","Game",null,null,"Result",null,null,"1X2",null,"Group A","Points","GF","GA"," +/-",null,"Category","Answer",null,null,null,null,"Team 1","Points","GF","GA","Lag 2","Points","GF","GA",null,"Rank ties","Rank total","Rank goals","Rank Diff","Rank Points","Team","Points","GF","GA","Diff",null,"Rank","Team","Points","GF","GA","Diff",null,null,null,null,null,null,null,null,null,null,null,null,null,null,null,null,null,"Rank",null,"Name","Points"]
[null,1,"2022-11-20","Qatar","-","Ecuador",null,"-",null,{"$f":"IF(OR(ISBLANK(G4),ISBLANK(I4)),\"\",IF(G4>I4,1,IF(G4<I4,2,\"X\")))","v":""},1,{"$f":"VLOOKUP(K4,$AR$4:$AW$7,2,FALSE)","v":"Qatar"},{"$f":"VLOOKUP(L4,$AS$4:$AW$7,2,FALSE)","v":0},{"$f":"VLOOKUP(L4,$AS$4:$AW$7,3,FALSE)","v":0},{"$f":"VLOOKUP(L4,$AS$4:$AW$7,4,FALSE)","v":0},{"$f":"VLOOKUP(L4,$AS$4:$AW$7,5,FALSE)","v":0},null,"Top scorer",null,null,null,null,null,{"$f":"D4","v":"Qatar"},{"$f":"IF(G4=\"\",0,IF($G4<$I4,0,IF($G4=$I4,1,3)))","v":0},{"$f":"G4","v":0},{"$f":"I4","v":0},{"$f":"F4","v":"Ecuador"},{"$f":"IF(I4=\"\",0,IF(I4<G4,0,IF(I4=G4,1,3)))","v":0},{"$f":"I4","v":0},{"$f":"G4","v":0},null,{"$f":"RANK($AH4,$AH$4:$AH$7,1)+COUNTIF($AH$4:$AH4,$AH4)-1","v":1},{"$f":"AI4+AJ4+AK4","v":1},{"$f":"SUMPRODUCT(($AM$4:$AM$7=AM4)*($AP$4:$AP$7=AP4)*($AN$4:$AN$7>AN4))","v":0},{"$f":"SUMPRODUCT(($AM$4:$AM$7=AM4)*($AP$4:$AP$7>AP4))","v":0},{"$f":"RANK(AM4,$AM$4:$AM$7)","v":1},"Qatar",{"$f":"SUMIF($X$4:$X$9,$AL4,$Y$4:$Y$9)+SUMIF($AB$4:$AB$9,$AL4,$AC$4:$AC$9)","v":0},{"$f":"SUMIF($X$4:$X$9,AL4,$Z$4:$Z$9)+SUMIF($AB$4:$AB$9,AL4,$AD$4:$AD$9)","v":0},{"$f":"SUMIF($AB$4:$AB$9,AL4,$AE$4:$AE$9)+SUMIF($X$4:$X$9,AL4,$AA$4:$AA$9)","v":0},{"$f":"AN4-AO4","v":0},null,1,{"$f":"VLOOKUP($AR4,$AG$4:$AP$7,6,FALSE)","v":"Qatar"},{"$f":"VLOOKUP($AS4,$AL$4:$AP$7,2,FALSE)","v":0},{"$f":"VLOOKUP($AS4,$AL$4:$AP$7,3,FALSE)","v":0},{"$f":"VLOOKUP($AS4,$AL$4:$AP$7,4,FALSE)","v":0},{"$f":"VLOOKUP($AS4,$AL$4:$AP$7,5,FALSE)","v":0},null,null,null,null,null,null,null,null,null,null,null,null,null,null,null,null,null,1,null,"My prediction",{"$f":"'My Prediction'!V20","v":0}]
[null,2,"2022-11-21","Senegal","-","Netherlands",null,"-",null,{"$f":"IF(OR(ISBLANK(G5),ISBLANK(I5)),\"\",IF(G5>I5,1,IF(G5<I5,2,\"X\")))","v":""},2,{"$f":"VLOOKUP(K5,$AR$4:$AW$7,2,FALSE)","v":"Ecuador"},{"$f":"VLOOKUP(L5,$AS$4:$AW$7,2,FALSE)","v":0},{"$f":"VLOOKUP(L5,$AS$4:$AW$7,3,FALSE)","v":0},{"$f":"VLOOKUP(L5,$AS$4:$AW$7,4,FALSE)","v":0},{"$f":"VLOOKUP(L5,$AS$4:$AW$7,5,FALSE)","v":0},null,"World champion",{"$f":"IF(L103=0,\"\",L103)","v":""},null,null,null,null,{"$f":"D5","v":"Senegal"},0,0,0,{"$f":"F5","v":"Netherlands"},0,0,0,null,{"$f":"RANK($AH5,$AH$4:$AH$7,1)+COUNTIF($AH$4:$AH5,$AH5)-1","v":2},{"$f":"AI5+AJ5+AK5","v":1},{"$f":"SUMPRODUCT(($AM$4:$AM$7=AM5)*($AP$4:$AP$7=AP5)*($AN$4:$AN$7>AN5))","v":0},{"$f":"SUMPRODUCT(($AM$4:$AM$7=AM5)*($AP$4:$AP$7>AP5))","v":0},{"$f":"RANK(AM5,$AM$4:$AM$7)","v":1},"Ecuador",{"$f":"SUMIF($X$4:$X$9,$AL5,$Y$4:$Y$9)+SUMIF($AB$4:$AB$9,$AL5,$AC$4:$AC$9)","v":0},{"$f":"SUMIF($X$4:$X$9,AL5,$Z$4:$Z$9)+SUMIF($AB$4:$AB$9,AL5,$AD$4:$AD$9)","v":0},{"$f":"SUMIF($AB$4:$AB$9,AL5,$AE$4:$AE$9)+SUMIF($X$4:$X$9,AL5,$AA$4:$AA$9)","v":0},{"$f":"AN5-AO5","v":0},null,2,{"$f":"VLOOKUP($AR5,$AG$4:$AP$7,6,FALSE)","v":"Ecuador"},{"$f":"VLOOKUP($AS5,$AL$4:$AP$7,2,FALSE)","v":0},{"$f":"VLOOKUP($AS5,$AL$4:$AP$7,3,FALSE)","v":0},{"$f":"VLOOKUP($AS5,$AL$4:$AP$7,4,FALSE)","v":0},{"$f":"VLOOKUP($AS5,$AL$4:$AP$7,5,FALSE)","v":0},null,null,null,null,null,null,null,null,null,null,null,null,null,null,null,null,null,2]
[null,18,"2022-11-25","Qatar","-","Senegal",null,"-",null,"",3,{"$f":"VLOOKUP(K6,$AR$4:$AW$7,2,FALSE)","v":"Senegal"},{"$f":"VLOOKUP(L6,$AS$4:$AW$7,2,FALSE)","v":0},{"$f":"VLOOKUP(L6,$AS$4:$AW$7,3,FALSE)","v":0},{"$f":"VLOOKUP(L6,$AS$4:$AW$7,4,FALSE)","v":0},{"$f":"VLOOKUP(L6,$AS$4:$AW$7,5,FALSE)","v":0},null,"Winner play-off for third place",{"$f":"IF(L99=0,\"\",L99)","v":""},null,null,null,null,"Qatar",0,0,0,"Senegal",0,0,0,null,{"$f":"RANK($AH6,$AH$4:$AH$7,1)+COUNTIF($AH$4:$AH6,$AH6)-1","v":3},1,0,0,1,"Senegal",0,{"$f":"SUMIF($X$4:$X$9,AL6,$Z$4:$Z$9)+SUMIF($AB$4:$AB$9,AL6,$AD$4:$AD$9)","v":0},0,0,null,3,"Senegal",0,0,0,0,null,null,null,null,null,null,null,null,null,null,null,null,null,null,null,null,null,3]
[null,19,"2022-11-25","Netherlands","-","Ecuador",null,"-",null,"",4,{"$f":"VLOOKUP(K7,$AR$4:$AW$7,2,FALSE)","v":"Netherlands"},{"$f":"VLOOKUP(L7,$AS$4:$AW$7,2,FALSE)","v":0},{"$f":"VLOOKUP(L7,$AS$4:$AW$7,3,FALSE)","v":0},{"$f":"VLOOKUP(L7,$AS$4:$AW$7,4,FALSE)","v":0},{"$f":"VLOOKUP(L7,$AS$4:$AW$7,5,FALSE)","v":0},null,null,null,null,null,null,null,"Netherlands",0,0,0,"Ecuador",0,0,0,null,{"$f":"RANK($AH7,$AH$4:$AH$7,1)+COUNTIF($AH$4:$AH7,$AH7)-1","v":4},1,0,0,1,"Netherlands",0,{"$f":"SUMIF($X$4:$X$9,AL7,$Z$4:$Z$9)+SUMIF($AB$4:$AB$9,AL7,$AD$4:$AD$9)","v":0},0,0,null,4,"Netherlands",0,0,0,0,null,null,null,null,null,null,null,null,null,null,null,null,null,null,null,null,null,4]
[null,35,"2022-11-29","Ecuador","-","Senegal",null,"-",null,"",null,{"$f":"COUNTBLANK(G4:G9)+COUNTBLANK(I4:I9)","v":12},null,null,null,null,null,null,null,null,null,null,null,"Ecuador",0,0,0,"Senegal",0,0,0,null,null,null,null,null,null,null,null,null,null,null,null,null,null,null,null,null,null,null,null,null,null,null,null,null,null,null,null,null,null,null,null,null,null,null,5]
[null,36,"2022-11-29","Netherlands","-","Qatar",null,"-",null,"",null,null,null,null,null,null,null,null,null,null,null,null,null,"Netherlands",0,0,0,"Qatar",0,0,0,null,null,null,null,null,null,null,null,null,null,null,null,null,null,null,null,null,null,null,null,null,null,null,null,null,null,null,null,null,null,null,null,null,null,null,6]
[null,null,null,null,null,null,null,null,null,null,null,null,null,null,null,null,null,null,null,null,null,null,null,null,null,null,null,null,null,null,null,null,null,null,null,null,null,null,null,null,null,null,null,null,null,null,null,null,null,null,null,null,null,null,null,null,null,null,null,null,null,null,null,null,null,null,7]
[null,"Group B",null,null,null,null,null,null,null,null,null,null,null,null,null,null,null,null,null,null,null,null,null,null,null,null,null,null,null,null,null,null,null,null,null,null,null,null,null,null,null,null,null,null,null,null,null,null,null,null,null,null,null,null,null,null,null,null,null,null,null,null,null,null,null,null,8]
[null,"Game","Date","Game",null,null,"Result",null,null,"1X2",null,"Group B","Points","GF","GA"," +/-",null,null,null,null,null,null,null,"Team 1","Points","GF","GA","Lag 2","Points","GF","GA",null,"Rank ties","Rank total","Rank goals","Rank Diff","Rank Points","Team","Points","GF","GA","Diff",null,"Rank","Team","Points","GF","GA","Diff",null,null,null,null,null,null,null,null,null,null,null,null,null,null,null,null,null,9]
[null,3,"2022-11-21","England","-","Iran",null,"-",null,{"$f":"IF(OR(ISBLANK(G13),ISBLANK(I13)),\"\",IF(G13>I13,1,IF(G13<I13,2,\"X\")))","v":""},1,{"$f":"VLOOKUP(K13,$AR$13:$AW$16,2,FALSE)","v":"England"},{"$f":"VLOOKUP(L13,$AS$13:$AW$16,2,FALSE)","v":0},{"$f":"VLOOKUP(L13,$AS$13:$AW$16,3,FALSE)","v":0},{"$f":"VLOOKUP(L13,$AS$13:$AW$16,4,FALSE)","v":0},{"$f":"VLOOKUP(L13,$AS$13:$AW$16,5,FALSE)","v":0},null,null,null,null,null,null,null,{"$f":"D13","v":"England"},{"$f":"IF(G13=\"\",0,IF($G13<$I13,0,IF($G13=$I13,1,3)))","v":0},{"$f":"G13","v":0},{"$f":"I13","v":0},{"$f":"F13","v":"Iran"},{"$f":"IF(I13=\"\",0,IF(I13<G13,0,IF(I13=G13,1,3)))","v":0},{"$f":"I13","v":0},{"$f":"G13","v":0},null,{"$f":"RANK($AH13,$AH$13:$AH$16,1)+COUNTIF($AH$13:$AH13,$AH13)-1","v":1},{"$f":"AI13+AJ13+AK13","v":1},{"$f":"SUMPRODUCT(($AM$13:$AM$16=AM13)*($AP$13:$AP$16=AP13)*($AN$13:$AN$16>AN13))","v":0},{"$f":"SUMPRODUCT(($AM$13:$AM$16=AM13)*($AP$13:$AP$16>AP13))","v":0},{"$f":"RANK(AM13,$AM$13:$AM$16)","v":1},"England",{"$f":"SUMIF($X$13:$X$18,$AL13,$Y$13:$Y$18)+SUMIF($AB$13:$AB$18,$AL13,$AC$13:$AC$18)","v":0},{"$f":"SUMIF($X$13:$X$18,$AL13,$Z$13:$Z$18)+SUMIF($AB$13:$AB$18,$AL13,$AD$13:$AD$18)","v":0},{"$f":"SUMIF($X$13:$X$18,$AL13,$AA$13:$AA$18)+SUMIF($AB$13:$AB$18,$AL13,$AE$13:$AE$18)","v":0},{"$f":"AN13-AO13","v":0},null,1,{"$f":"VLOOKUP($AR13,$AG$13:$AP$16,6,FALSE)","v":"England"},{"$f":"VLOOKUP($AS13,$AL$13:$AP$16,2,FALSE)","v":0},{"$f":"VLOOKUP($AS13,$AL$13:$AP$16,3,FALSE)","v":0},{"$f":"VLOOKUP($AS13,$AL$13:$AP$16,4,FALSE)","v":0},{"$f":"VLOOKUP($AS13,$AL$13:$AP$16,5,FALSE)","v":0},null,null,null,null,null,null,null,null,null,null,null,null,null,null,null,null,null,10]
[null,4,"2022-11-21","USA","-","Wales",null,"-",null,{"$f":"IF(OR(ISBLANK(G14),ISBLANK(I14)),\"\",IF(G14>I14,1,IF(G14<I14,2,\"X\")))","v":""},2,{"$f":"VLOOKUP(K14,$AR$13:$AW$16,2,FALSE)","v":"Iran"},{"$f":"VLOOKUP(L14,$AS$13:$AW$16,2,FALSE)","v":0},{"$f":"VLOOKUP(L14,$AS$13:$AW$16,3,FALSE)","v":0},{"$f":"VLOOKUP(L14,$AS$13:$AW$16,4,FALSE)","v":0},{"$f":"VLOOKUP(L14,$AS$13:$AW$16,5,FALSE)","v":0},null,null,null,null,null,null,null,{"$f":"D14","v":"USA"},0,0,0,{"$f":"F14","v":"Wales"},0,0,0,null,{"$f":"RANK($AH14,$AH$13:$AH$16,1)+COUNTIF($AH$13:$AH14,$AH14)-1","v":2},{"$f":"AI14+AJ14+AK14","v":1},{"$f":"SUMPRODUCT(($AM$13:$AM$16=AM14)*($AP$13:$AP$16=AP14)*($AN$13:$AN$16>AN14))","v":0},{"$f":"SUMPRODUCT(($AM$13:$AM$16=AM14)*($AP$13:$AP$16>AP14))","v":0},{"$f":"RANK(AM14,$AM$13:$AM$16)","v":1},"Iran",{"$f":"SUMIF($X$13:$X$18,$AL14,$Y$13:$Y$18)+SUMIF($AB$13:$AB$18,$AL14,$AC$13:$AC$18)","v":0},{"$f":"SUMIF($X$13:$X$18,$AL14,$Z$13:$Z$18)+SUMIF($AB$13:$AB$18,AL14,$AD$13:$AD$18)","v":0},{"$f":"SUMIF($X$13:$X$18,$AL14,$AA$13:$AA$18)+SUMIF($AB$13:$AB$18,$AL14,$AE$13:$AE$18)","v":0},{"$f":"AN14-AO14","v":0},null,2,{"$f":"VLOOKUP($AR14,$AG$13:$AP$16,6,FALSE)","v":"Iran"},{"$f":"VLOOKUP($AS14,$AL$13:$AP$16,2,FALSE)","v":0},{"$f":"VLOOKUP($AS14,$AL$13:$AP$16,3,FALSE)","v":0},{"$f":"VLOOKUP($AS14,$AL$13:$AP$16,4,FALSE)","v":0},{"$f":"VLOOKUP($AS14,$AL$13:$AP$16,5,FALSE)","v":0},null,null,null,null,null,null,null,null,null,null,null,null,null,null,null,null,null,11]
[null,17,"2022-11-25","Wales","-","Iran",null,"-",null,"",3,{"$f":"VLOOKUP(K15,$AR$13:$AW$16,2,FALSE)","v":"USA"},{"$f":"VLOOKUP(L15,$AS$13:$AW$16,2,FALSE)","v":0},{"$f":"VLOOKUP(L15,$AS$13:$AW$16,3,FALSE)","v":0},{"$f":"VLOOKUP(L15,$AS$13:$AW$16,4,FALSE)","v":0},{"$f":"VLOOKUP(L15,$AS$13:$AW$16,5,FALSE)","v":0},null,null,null,null,null,null,null,"Wales",0,0,0,"Iran",0,0,0,null,{"$f":"RANK($AH15,$AH$13:$AH$16,1)+COUNTIF($AH$13:$AH15,$AH15)-1","v":3},{"$f":"AI15+AJ15+AK15","v":1},{"$f":"SUMPRODUCT(($AM$13:$AM$16=AM15)*($AP$13:$AP$16=AP15)*($AN$13:$AN$16>AN15))","v":0},{"$f":"SUMPRODUCT(($AM$13:$AM$16=AM15)*($AP$13:$AP$16>AP15))","v":0},{"$f":"RANK(AM15,$AM$13:$AM$16)","v":1},"USA",{"$f":"SUMIF($X$13:$X$18,$AL15,$Y$13:$Y$18)+SUMIF($AB$13:$AB$18,$AL15,$AC$13:$AC$18)","v":0},{"$f":"SUMIF($X$13:$X$18,$AL15,$Z$13:$Z$18)+SUMIF($AB$13:$AB$18,AL15,$AD$13:$AD$18)","v":0},{"$f":"SUMIF($X$13:$X$18,$AL15,$AA$13:$AA$18)+SUMIF($AB$13:$AB$18,$AL15,$AE$13:$AE$18)","v":0},{"$f":"AN15-AO15","v":0},null,3,{"$f":"VLOOKUP($AR15,$AG$13:$AP$16,6,FALSE)","v":"USA"},{"$f":"VLOOKUP($AS15,$AL$13:$AP$16,2,FALSE)","v":0},{"$f":"VLOOKUP($AS15,$AL$13:$AP$16,3,FALSE)","v":0},{"$f":"VLOOKUP($AS15,$AL$13:$AP$16,4,FALSE)","v":0},{"$f":"VLOOKUP($AS15,$AL$13:$AP$16,5,FALSE)","v":0},null,null,null,null,null,null,null,null,null,null,null,null,null,null,null,null,null,12]
[null,20,"2022-11-25","England","-","USA",null,"-",null,"",4,{"$f":"VLOOKUP(K16,$AR$13:$AW$16,2,FALSE)","v":"Wales"},{"$f":"VLOOKUP(L16,$AS$13:$AW$16,2,FALSE)","v":0},{"$f":"VLOOKUP(L16,$AS$13:$AW$16,3,FALSE)","v":0},{"$f":"VLOOKUP(L16,$AS$13:$AW$16,4,FALSE)","v":0},{"$f":"VLOOKUP(L16,$AS$13:$AW$16,5,FALSE)","v":0},null,null,null,null,null,null,null,"England",0,0,0,"USA",0,0,0,null,{"$f":"RANK($AH16,$AH$13:$AH$16,1)+COUNTIF($AH$13:$AH16,$AH16)-1","v":4},{"$f":"AI16+AJ16+AK16","v":1},{"$f":"SUMPRODUCT(($AM$13:$AM$16=AM16)*($AP$13:$AP$16=AP16)*($AN$13:$AN$16>AN16))","v":0},{"$f":"SUMPRODUCT(($AM$13:$AM$16=AM16)*($AP$13:$AP$16>AP16))","v":0},{"$f":"RANK(AM16,$AM$13:$AM$16)","v":1},"Wales",{"$f":"SUMIF($X$13:$X$18,$AL16,$Y$13:$Y$18)+SUMIF($AB$13:$AB$18,$AL16,$AC$13:$AC$18)","v":0},{"$f":"SUMIF($X$13:$X$18,$AL16,$Z$13:$Z$18)+SUMIF($AB$13:$AB$18,AL16,$AD$13:$AD$18)","v":0},{"$f":"SUMIF($X$13:$X$18,$AL16,$AA$13:$AA$18)+SUMIF($AB$13:$AB$18,$AL16,$AE$13:$AE$18)","v":0},{"$f":"AN16-AO16","v":0},null,4,{"$f":"VLOOKUP($AR16,$AG$13:$AP$16,6,FALSE)","v":"Wales"},{"$f":"VLOOKUP($AS16,$AL$13:$AP$16,2,FALSE)","v":0},{"$f":"VLOOKUP($AS16,$AL$13:$AP$16,3,FALSE)","v":0},{"$f":"VLOOKUP($AS16,$AL$13:$AP$16,4,FALSE)","v":0},{"$f":"VLOOKUP($AS16,$AL$13:$AP$16,5,FALSE)","v":0},null,null,null,null,null,null,null,null,null,null,null,null,null,null,null,null,null,13]
[null,33,"2022-11-29","Wales","-","England",null,"-",null,"",null,{"$f":"COUNTBLANK(G13:G18)+COUNTBLANK(I13:I18)","v":12},null,null,null,null,null,null,null,null,null,null,null,"Wales",0,0,0,"England",0,0,0,null,null,null,null,null,null,null,null,null,null,null,null,null,null,null,null,null,null,null,null,null,null,null,null,null,null,null,null,null,null,null,null,null,null,null,14]
[null,34,"2022-11-29","Iran","-","USA",null,"-",null,"",null,null,null,null,null,null,null,null,null,null,null,null,null,"Iran",0,0,0,"USA",0,0,0,null,null,null,null,null,null,null,null,null,null,null,null,null,null,null,null,null,null,null,null,null,null,null,null,null,null,null,null,null,null,null,null,null,null,null,15]
[null,null,null,null,null,null,null,null,null,null,null,null,null,null,null,null,null,null,null,null,null,null,null,null,null,null,null,null,null,null,null,null,null,null,null,null,null,null,null,null,null,null,null,null,null,null,null,null,null,null,null,null,null,null,null,null,null,null,null,null,null,null,null,null,null,null,16]
[null,"Group C",null,null,null,null,null,null,null,null,null,null,null,null,null,null,null,null,null,null,null,null,null,null,null,null,null,null,null,null,null,null,null,null,null,null,null,null,null,null,null,null,null,null,null,null,null,null,null,null,null,null,null,null,null,null,null,null,null,null,null,null,null,null,null,null,17]
[null,"Game","Date","Game",null,null,"Result",null,null,"1X2",null,"Group C","Points","GF","GA"," +/-",null,null,null,null,null,null,null,"Team 1","Points","GF","GA","Lag 2","Points","GF","GA",null,"Rank ties","Rank total","Rank goals","Rank Diff","Rank Points","Team","Points","GF","GA","Diff",null,"Rank","Team","Points","GF","GA","Diff",null,null,null,null,null,null,null,null,null,null,null,null,null,null,null,null,null,18]
[null,7,"2022-11-22","Mexico","-","Poland",null,"-",null,{"$f":"IF(OR(ISBLANK(G22),ISBLANK(I22)),\"\",IF(G22>I22,1,IF(G22<I22,2,\"X\")))","v":""},1,{"$f":"VLOOKUP(K22,$AR$22:$AW$25,2,FALSE)","v":"Argentina"},{"$f":"VLOOKUP(L22,$AS$22:$AW$25,2,FALSE)","v":0},{"$f":"VLOOKUP(L22,$AS$22:$AW$25,3,FALSE)","v":0},{"$f":"VLOOKUP(L22,$AS$22:$AW$25,4,FALSE)","v":0},{"$f":"VLOOKUP(L22,$AS$22:$AW$25,5,FALSE)","v":0},null,null,null,null,null,null,null,{"$f":"D22","v":"Mexico"},{"$f":"IF(G22=\"\",0,IF($G22<$I22,0,IF($G22=$I22,1,3)))","v":0},{"$f":"G22","v":0},{"$f":"I22","v":0},{"$f":"F22","v":"Poland"},{"$f":"IF(I22=\"\",0,IF(I22<G22,0,IF(I22=G22,1,3)))","v":0},{"$f":"I22","v":0},{"$f":"G22","v":0},null,{"$f":"RANK($AH22,$AH$22:$AH$25,1)+COUNTIF($AH$22:$AH22,$AH22)-1","v":1},{"$f":"AI22+AJ22+AK22","v":1},{"$f":"SUMPRODUCT(($AM$22:$AM$25=AM22)*($AP$22:$AP$25=AP22)*($AN$22:$AN$25>AN22))","v":0},{"$f":"SUMPRODUCT(($AM$22:$AM$25=AM22)*($AP$22:$AP$25>AP22))","v":0},{"$f":"RANK(AM22,$AM$22:$AM$25)","v":1},"Argentina",{"$f":"SUMIF($X$22:$X$27,$AL22,$Y$22:$Y$27)+SUMIF($AB$22:$AB$27,$AL22,$AC$22:$AC$27)","v":0},{"$f":"SUMIF($X$22:$X$27,$AL22,$Z$22:$Z$27)+SUMIF($AB$22:$AB$27,$AL22,$AD$22:$AD$27)","v":0},{"$f":"SUMIF($X$22:$X$27,$AL22,$AA$22:$AA$27)+SUMIF($AB$22:$AB$27,$AL22,$AE$22:$AE$27)","v":0},{"$f":"AN22-AO22","v":0},null,1,{"$f":"VLOOKUP($AR22,$AG$22:$AP$25,6,FALSE)","v":"Argentina"},{"$f":"VLOOKUP($AS22,$AL$22:$AP$25,2,FALSE)","v":0},{"$f":"VLOOKUP($AS22,$AL$22:$AP$25,3,FALSE)","v":0},{"$f":"VLOOKUP($AS22,$AL$22:$AP$25,4,FALSE)","v":0},{"$f":"VLOOKUP($AS22,$AL$22:$AP$25,5,FALSE)","v":0},null,null,null,null,null,null,null,null,null,null,null,null,null,null,null,null,null,19]
[null,8,"2022-11-22","Argentina","-","Saudi Arabia",null,"-",null,{"$f":"IF(OR(ISBLANK(G23),ISBLANK(I23)),\"\",IF(G23>I23,1,IF(G23<I23,2,\"X\")))","v":""},2,{"$f":"VLOOKUP(K23,$AR$22:$AW$25,2,FALSE)","v":"Saudi Arabia"},{"$f":"VLOOKUP(L23,$AS$22:$AW$25,2,FALSE)","v":0},{"$f":"VLOOKUP(L23,$AS$22:$AW$25,3,FALSE)","v":0},{"$f":"VLOOKUP(L23,$AS$22:$AW$25,4,FALSE)","v":0},{"$f":"VLOOKUP(L23,$AS$22:$AW$25,5,FALSE)","v":0},null,null,null,null,null,null,null,{"$f":"D23","v":"Argentina"},0,0,0,{"$f":"F23","v":"Saudi Arabia"},0,0,0,null,{"$f":"RANK($AH23,$AH$22:$AH$25,1)+COUNTIF($AH$22:$AH23,$AH23)-1","v":2},{"$f":"AI23+AJ23+AK23","v":1},{"$f":"SUMPRODUCT(($AM$22:$AM$25=AM23)*($AP$22:$AP$25=AP23)*($AN$22:$AN$25>AN23))","v":0},{"$f":"SUMPRODUCT(($AM$22:$AM$25=AM23)*($AP$22:$AP$25>AP23))","v":0},{"$f":"RANK(AM23,$AM$22:$AM$25)","v":1},"Saudi Arabia",{"$f":"SUMIF($X$22:$X$27,$AL23,$Y$22:$Y$27)+SUMIF($AB$22:$AB$27,$AL23,$AC$22:$AC$27)","v":0},{"$f":"SUMIF($X$22:$X$27,$AL23,$Z$22:$Z$27)+SUMIF($AB$22:$AB$27,$AL23,$AD$22:$AD$27)","v":0},{"$f":"SUMIF($X$22:$X$27,$AL23,$AA$22:$AA$27)+SUMIF($AB$22:$AB$27,$AL23,$AE$22:$AE$27)","v":0},{"$f":"AN23-AO23","v":0},null,2,{"$f":"VLOOKUP($AR23,$AG$22:$AP$25,6,FALSE)","v":"Saudi Arabia"},{"$f":"VLOOKUP($AS23,$AL$22:$AP$25,2,FALSE)","v":0},{"$f":"VLOOKUP($AS23,$AL$22:$AP$25,3,FALSE)","v":0},{"$f":"VLOOKUP($AS23,$AL$22:$AP$25,4,FALSE)","v":0},{"$f":"VLOOKUP($AS23,$AL$22:$AP$25,5,FALSE)","v":0},null,null,null,null,null,null,null,null,null,null,null,null,null,null,null,null,null,20]
[null,22,"2022-11-26","Poland","-","Saudi Arabia",null,"-",null,"",3,{"$f":"VLOOKUP(K24,$AR$22:$AW$25,2,FALSE)","v":"Mexico"},{"$f":"VLOOKUP(L24,$AS$22:$AW$25,2,FALSE)","v":0},{"$f":"VLOOKUP(L24,$AS$22:$AW$25,3,FALSE)","v":0},{"$f":"VLOOKUP(L24,$AS$22:$AW$25,4,FALSE)","v":0},{"$f":"VLOOKUP(L24,$AS$22:$AW$25,5,FALSE)","v":0},null,null,null,null,null,null,null,"Poland",0,0,0,"Saudi Arabia",0,0,0,null,{"$f":"RANK($AH24,$AH$22:$AH$25,1)+COUNTIF($AH$22:$AH24,$AH24)-1","v":3},{"$f":"AI24+AJ24+AK24","v":1},0,0,1,"Mexico",0,0,0,0,null,3,"Mexico",0,0,0,0,null,null,null,null,null,null,null,null,null,null,null,null,null,null,null,null,null,21]
[null,24,"2022-11-26","Argentina","-","Mexico",null,"-",null,"",4,{"$f":"VLOOKUP(K25,$AR$22:$AW$25,2,FALSE)","v":"Poland"},{"$f":"VLOOKUP(L25,$AS$22:$AW$25,2,FALSE)","v":0},{"$f":"VLOOKUP(L25,$AS$22:$AW$25,3,FALSE)","v":0},{"$f":"VLOOKUP(L25,$AS$22:$AW$25,4,FALSE)","v":0},{"$f":"VLOOKUP(L25,$AS$22:$AW$25,5,FALSE)","v":0},null,null,null,null,null,null,null,"Argentina",0,0,0,"Mexico",0,0,0,null,{"$f":"RANK($AH25,$AH$22:$AH$25,1)+COUNTIF($AH$22:$AH25,$AH25)-1","v":4},{"$f":"AI25+AJ25+AK25","v":1},0,0,1,"Poland",0,0,0,0,null,4,"Poland",0,0,0,0,null,null,null,null,null,null,null,null,null,null,null,null,null,null,null,null,null,22]
[null,37,"2022-11-30","Poland","-","Argentina",null,"-",null,"",null,{"$f":"COUNTBLANK(G22:G27)+COUNTBLANK(I22:I27)","v":12},null,null,null,null,null,null,null,null,null,null,null,"Poland",0,0,0,"Argentina",0,0,0,null,null,null,null,null,null,null,null,null,null,null,null,null,null,null,null,null,null,null,null,null,null,null,null,null,null,null,null,null,null,null,null,null,null,null,23]
[null,38,"2022-11-30","Saudi Arabia","-","Mexico",null,"-",null,"",null,null,null,null,null,null,null,null,null,null,null,null,null,"Saudi Arabia",0,0,0,"Mexico",0,0,0,null,null,null,null,null,null,null,null,null,null,null,null,null,null,null,null,null,null,null,null,null,null,null,null,null,null,null,null,null,null,null,null,null,null,null,24]
[null,null,null,null,null,null,null,null,null,null,null,null,null,null,null,null,null,null,null,null,null,null,null,null,null,null,null,null,null,null,null,null,null,null,null,null,null,null,null,null,null,null,null,null,null,null,null,null,null,null,null,null,null,null,null,null,null,null,null,null,null,null,null,null,null,null,25]
[null,"Group D",null,null,null,null,null,null,null,null,null,null,null,null,null,null,null,null,null,null,null,null,null,null,null,null,null,null,null,null,null,null,null,null,null,null,null,null,null,null,null,null,null,null,null,null,null,null,null,null,null,null,null,null,null,null,null,null,null,null,null,null,null,null,null,null,26]
[null,"Game","Date","Game",null,null,"Result",null,null,"1X2",null,"Group D","Points","GF","GA"," +/-",null,null,null,null,null,null,null,"Team 1","Points","GF","GA","Lag 2","Points","GF","GA",null,"Rank ties","Rank total","Rank goals","Rank Diff","Rank Points","Team","Points","GF","GA","Diff",null,"Rank","Team","Points","GF","GA","Diff",null,null,null,null,null,null,null,null,null,null,null,null,null,null,null,null,null,27]
[null,5,"2022-11-22","France","-","Australia",null,"-",null,{"$f":"IF(OR(ISBLANK(G31),ISBLANK(I31)),\"\",IF(G31>I31,1,IF(G31<I31,2,\"X\")))","v":""},1,{"$f":"VLOOKUP(K31,$AR$31:$AW$34,2,FALSE)","v":"France"},{"$f":"VLOOKUP(L31,$AS$31:$AW$34,2,FALSE)","v":0},{"$f":"VLOOKUP(L31,$AS$31:$AW$34,3,FALSE)","v":0},{"$f":"VLOOKUP(L31,$AS$31:$AW$34,4,FALSE)","v":0},{"$f":"VLOOKUP(L31,$AS$31:$AW$34,5,FALSE)","v":0},null,null,null,null,null,null,null,{"$f":"D31","v":"France"},{"$f":"IF(G31=\"\",0,IF($G31<$I31,0,IF($G31=$I31,1,3)))","v":0},{"$f":"G31","v":0},{"$f":"I31","v":0},{"$f":"F31","v":"Australia"},{"$f":"IF(I31=\"\",0,IF(I31<G31,0,IF(I31=G31,1,3)))","v":0},{"$f":"I31","v":0},{"$f":"G31","v":0},null,{"$f":"RANK($AH31,$AH$31:$AH$34,1)+COUNTIF($AH$31:$AH31,$AH31)-1","v":1},{"$f":"AI31+AJ31+AK31","v":1},{"$f":"SUMPRODUCT(($AM$31:$AM$34=AM31)*($AP$31:$AP$34=AP31)*($AN$31:$AN$34>AN31))","v":0},{"$f":"SUMPRODUCT(($AM$31:$AM$34=AM31)*($AP$31:$AP$34>AP31))","v":0},{"$f":"RANK(AM31,$AM$31:$AM$34)","v":1},"France",{"$f":"SUMIF($X$31:$X$36,$AL31,$Y$31:$Y$36)+SUMIF($AB$31:$AB$36,$AL31,$AC$31:$AC$36)","v":0},{"$f":"SUMIF($X$31:$X$36,$AL31,$Z$31:$Z$36)+SUMIF($AB$31:$AB$36,$AL31,$AD$31:$AD$36)","v":0},{"$f":"SUMIF($X$31:$X$36,$AL31,$AA$31:$AA$36)+SUMIF($AB$31:$AB$36,$AL31,$AE$31:$AE$36)","v":0},{"$f":"AN31-AO31","v":0},null,1,{"$f":"VLOOKUP($AR31,$AG$31:$AP$34,6,FALSE)","v":"France"},{"$f":"VLOOKUP($AS31,$AL$31:$AP$34,2,FALSE)","v":0},{"$f":"VLOOKUP($AS31,$AL$31:$AP$34,3,FALSE)","v":0},{"$f":"VLOOKUP($AS31,$AL$31:$AP$34,4,FALSE)","v":0},{"$f":"VLOOKUP($AS31,$AL$31:$AP$34,5,FALSE)","v":0},null,null,null,null,null,null,null,null,null,null,null,null,null,null,null,null,null,28]
[null,6,"2022-11-22","Denmark","-","Tunisia",null,"-",null,{"$f":"IF(OR(ISBLANK(G32),ISBLANK(I32)),\"\",IF(G32>I32,1,IF(G32<I32,2,\"X\")))","v":""},2,{"$f":"VLOOKUP(K32,$AR$31:$AW$34,2,FALSE)","v":"Denmark"},{"$f":"VLOOKUP(L32,$AS$31:$AW$34,2,FALSE)","v":0},{"$f":"VLOOKUP(L32,$AS$31:$AW$34,3,FALSE)","v":0},{"$f":"VLOOKUP(L32,$AS$31:$AW$34,4,FALSE)","v":0},{"$f":"VLOOKUP(L32,$AS$31:$AW$34,5,FALSE)","v":0},null,null,null,null,null,null,null,{"$f":"D32","v":"Denmark"},0,0,0,{"$f":"F32","v":"Tunisia"},0,0,0,null,{"$f":"RANK($AH32,$AH$31:$AH$34,1)+COUNTIF($AH$31:$AH32,$AH32)-1","v":2},{"$f":"AI32+AJ32+AK32","v":1},{"$f":"SUMPRODUCT(($AM$31:$AM$34=AM32)*($AP$31:$AP$34=AP32)*($AN$31:$AN$34>AN32))","v":0},{"$f":"SUMPRODUCT(($AM$31:$AM$34=AM32)*($AP$31:$AP$34>AP32))","v":0},{"$f":"RANK(AM32,$AM$31:$AM$34)","v":1},"Denmark",{"$f":"SUMIF($X$31:$X$36,$AL32,$Y$31:$Y$36)+SUMIF($AB$31:$AB$36,$AL32,$AC$31:$AC$36)","v":0},{"$f":"SUMIF($X$31:$X$36,$AL32,$Z$31:$Z$36)+SUMIF($AB$31:$AB$36,$AL32,$AD$31:$AD$36)","v":0},{"$f":"SUMIF($X$31:$X$36,$AL32,$AA$31:$AA$36)+SUMIF($AB$31:$AB$36,$AL32,$AE$31:$AE$36)","v":0},{"$f":"AN32-AO32","v":0},null,2,{"$f":"VLOOKUP($AR32,$AG$31:$AP$34,6,FALSE)","v":"Denmark"},{"$f":"VLOOKUP($AS32,$AL$31:$AP$34,2,FALSE)","v":0},{"$f":"VLOOKUP($AS32,$AL$31:$AP$34,3,FALSE)","v":0},{"$f":"VLOOKUP($AS32,$AL$31:$AP$34,4,FALSE)","v":0},{"$f":"VLOOKUP($AS32,$AL$31:$AP$34,5,FALSE)","v":0},null,null,null,null,null,null,null,null,null,null,null,null,null,null,null,null,null,29]
[null,21,"2022-11-26","Tunisia","-","Australia",null,"-",null,"",3,{"$f":"VLOOKUP(K33,$AR$31:$AW$34,2,FALSE)","v":"Tunisia"},{"$f":"VLOOKUP(L33,$AS$31:$AW$34,2,FALSE)","v":0},{"$f":"VLOOKUP(L33,$AS$31:$AW$34,3,FALSE)","v":0},{"$f":"VLOOKUP(L33,$AS$31:$AW$34,4,FALSE)","v":0},{"$f":"VLOOKUP(L33,$AS$31:$AW$34,5,FALSE)","v":0},null,null,null,null,null,null,null,"Tunisia",0,0,0,"Australia",0,0,0,null,{"$f":"RANK($AH33,$AH$31:$AH$34,1)+COUNTIF($AH$31:$AH33,$AH33)-1","v":3},{"$f":"AI33+AJ33+AK33","v":1},0,0,1,"Tunisia",0,0,0,0,null,3,"Tunisia",0,0,0,0,null,null,null,null,null,null,null,null,null,null,null,null,null,null,null,null,null,30]
[null,23,"2022-11-26","France","-","Denmark",null,"-",null,"",4,{"$f":"VLOOKUP(K34,$AR$31:$AW$34,2,FALSE)","v":"Australia"},{"$f":"VLOOKUP(L34,$AS$31:$AW$34,2,FALSE)","v":0},{"$f":"VLOOKUP(L34,$AS$31:$AW$34,3,FALSE)","v":0},{"$f":"VLOOKUP(L34,$AS$31:$AW$34,4,FALSE)","v":0},{"$f":"VLOOKUP(L34,$AS$31:$AW$34,5,FALSE)","v":0},null,null,null,null,null,null,null,"France",0,0,0,"Denmark",0,0,0,null,{"$f":"RANK($AH34,$AH$31:$AH$34,1)+COUNTIF($AH$31:$AH34,$AH34)-1","v":4},{"$f":"AI34+AJ34+AK34","v":1},0,0,1,"Australia",0,0,0,0,null,4,"Australia",0,0,0,0,null,null,null,null,null,null,null,null,null,null,null,null,null,null,null,null,null,31]
[null,39,"2022-11-30","Australia","-","Denmark",null,"-",null,"",null,{"$f":"COUNTBLANK(G31:G36)+COUNTBLANK(I31:I36)","v":12},null,null,null,null,null,null,null,null,null,null,null,"Australia",0,0,0,"Denmark",0,0,0,null,null,null,null,null,null,null,null,null,null,null,null,null,null,null,null,null,null,null,null,null,null,null,null,null,null,null,null,null,null,null,null,null,null,null,32]
[null,40,"2022-11-30","Tunisia","-","France",null,"-",null,"",null,null,null,null,null,null,null,null,null,null,null,null,null,"Tunisia",0,0,0,"France",0,0,0,null,null,null,null,null,null,null,null,null,null,null,null,null,null,null,null,null,null,null,null,null,null,null,null,null,null,null,null,null,null,null,null,null,null,null,33]
[null,null,null,null,null,null,null,null,null,null,null,null,null,null,null,null,null,null,null,null,null,null,null,null,null,null,null,null,null,null,null,null,null,null,null,null,null,null,null,null,null,null,null,null,null,null,null,null,null,null,null,null,null,null,null,null,null,null,null,null,null,null,null,null,null,null,34]
[null,"Group E",null,null,null,null,null,null,null,null,null,null,null,null,null,null,null,null,null,null,null,null,null,null,null,null,null,null,null,null,null,null,null,null,null,null,null,null,null,null,null,null,null,null,null,null,null,null,null,null,null,null,null,null,null,null,null,null,null,null,null,null,null,null,null,null,35]
[null,"Game","Date","Game",null,null,"Result",null,null,"1X2",null,"Group E","Points","GF","GA"," +/-",null,null,null,null,null,null,null,"Team 1","Points","GF","GA","Lag 2","Points","GF","GA",null,"Rank ties","Rank total","Rank goals","Rank Diff","Rank Points","Team","Points","GF","GA","Diff",null,"Rank","Team","Points","GF","GA","Diff",null,null,null,null,null,null,null,null,null,null,null,null,null,null,null,null,null,36]
[null,10,"2022-11-23","Spain","-","Costa Rica",null,"-",null,{"$f":"IF(OR(ISBLANK(G40),ISBLANK(I40)),\"\",IF(G40>I40,1,IF(G40<I40,2,\"X\")))","v":""},1,{"$f":"VLOOKUP(K40,$AR$40:$AW$43,2,FALSE)","v":"Spain"},{"$f":"VLOOKUP(L40,$AS$40:$AW$43,2,FALSE)","v":0},{"$f":"VLOOKUP(L40,$AS$40:$AW$43,3,FALSE)","v":0},{"$f":"VLOOKUP(L40,$AS$40:$AW$43,4,FALSE)","v":0},{"$f":"VLOOKUP(L40,$AS$40:$AW$43,5,FALSE)","v":0},null,null,null,null,null,null,null,{"$f":"D40","v":"Spain"},{"$f":"IF(G40=\"\",0,IF($G40<$I40,0,IF($G40=$I40,1,3)))","v":0},{"$f":"G40","v":0},{"$f":"I40","v":0},{"$f":"F40","v":"Costa Rica"},{"$f":"IF(I40=\"\",0,IF(I40<G40,0,IF(I40=G40,1,3)))","v":0},{"$f":"I40","v":0},{"$f":"G40","v":0},null,{"$f":"RANK($AH40,$AH$40:$AH$43,1)+COUNTIF($AH$40:$AH40,$AH40)-1","v":1},{"$f":"AI40+AJ40+AK40","v":1},{"$f":"SUMPRODUCT(($AM$40:$AM$43=AM40)*($AP$40:$AP$43=AP40)*($AN$40:$AN$43>AN40))","v":0},{"$f":"SUMPRODUCT(($AM$40:$AM$43=AM40)*($AP$40:$AP$43>AP40))","v":0},{"$f":"RANK(AM40,$AM$40:$AM$43)","v":1},"Spain",{"$f":"SUMIF($X$40:$X$45,$AL40,$Y$40:$Y$45)+SUMIF($AB$40:$AB$45,$AL40,$AC$40:$AC$45)","v":0},{"$f":"SUMIF($X$40:$X$45,$AL40,$Z$40:$Z$45)+SUMIF($AB$40:$AB$45,$AL40,$AD$40:$AD$45)","v":0},{"$f":"SUMIF($X$40:$X$45,$AL40,$AA$40:$AA$45)+SUMIF($AB$40:$AB$45,$AL40,$AE$40:$AE$45)","v":0},{"$f":"AN40-AO40","v":0},null,1,{"$f":"VLOOKUP($AR40,$AG$40:$AP$43,6,FALSE)","v":"Spain"},{"$f":"VLOOKUP($AS40,$AL$40:$AP$43,2,FALSE)","v":0},{"$f":"VLOOKUP($AS40,$AL$40:$AP$43,3,FALSE)","v":0},{"$f":"VLOOKUP($AS40,$AL$40:$AP$43,4,FALSE)","v":0},{"$f":"VLOOKUP($AS40,$AL$40:$AP$43,5,FALSE)","v":0},null,null,null,null,null,null,null,null,null,null,null,null,null,null,null,null,null,37]
[null,11,"2022-11-23","Germany","-","Japan",null,"-",null,{"$f":"IF(OR(ISBLANK(G41),ISBLANK(I41)),\"\",IF(G41>I41,1,IF(G41<I41,2,\"X\")))","v":""},2,{"$f":"VLOOKUP(K41,$AR$40:$AW$43,2,FALSE)","v":"Germany"},{"$f":"VLOOKUP(L41,$AS$40:$AW$43,2,FALSE)","v":0},{"$f":"VLOOKUP(L41,$AS$40:$AW$43,3,FALSE)","v":0},{"$f":"VLOOKUP(L41,$AS$40:$AW$43,4,FALSE)","v":0},{"$f":"VLOOKUP(L41,$AS$40:$AW$43,5,FALSE)","v":0},null,null,null,null,null,null,null,{"$f":"D41","v":"Germany"},0,0,0,{"$f":"F41","v":"Japan"},0,0,0,null,{"$f":"RANK($AH41,$AH$40:$AH$43,1)+COUNTIF($AH$40:$AH41,$AH41)-1","v":2},{"$f":"AI41+AJ41+AK41","v":1},{"$f":"SUMPRODUCT(($AM$40:$AM$43=AM41)*($AP$40:$AP$43=AP41)*($AN$40:$AN$43>AN41))","v":0},{"$f":"SUMPRODUCT(($AM$40:$AM$43=AM41)*($AP$40:$AP$43>AP41))","v":0},{"$f":"RANK(AM41,$AM$40:$AM$43)","v":1},"Germany",{"$f":"SUMIF($X$40:$X$45,$AL41,$Y$40:$Y$45)+SUMIF($AB$40:$AB$45,$AL41,$AC$40:$AC$45)","v":0},{"$f":"SUMIF($X$40:$X$45,$AL41,$Z$40:$Z$45)+SUMIF($AB$40:$AB$45,$AL41,$AD$40:$AD$45)","v":0},{"$f":"SUMIF($X$40:$X$45,$AL41,$AA$40:$AA$45)+SUMIF($AB$40:$AB$45,$AL41,$AE$40:$AE$45)","v":0},{"$f":"AN41-AO41","v":0},null,2,{"$f":"VLOOKUP($AR41,$AG$40:$AP$43,6,FALSE)","v":"Germany"},{"$f":"VLOOKUP($AS41,$AL$40:$AP$43,2,FALSE)","v":0},{"$f":"VLOOKUP($AS41,$AL$40:$AP$43,3,FALSE)","v":0},{"$f":"VLOOKUP($AS41,$AL$40:$AP$43,4,FALSE)","v":0},{"$f":"VLOOKUP($AS41,$AL$40:$AP$43,5,FALSE)","v":0},null,null,null,null,null,null,null,null,null,null,null,null,null,null,null,null,null,38]
[null,25,"2022-11-27","Japan","-","Costa Rica",null,"-",null,"",3,{"$f":"VLOOKUP(K42,$AR$40:$AW$43,2,FALSE)","v":"Japan"},{"$f":"VLOOKUP(L42,$AS$40:$AW$43,2,FALSE)","v":0},{"$f":"VLOOKUP(L42,$AS$40:$AW$43,3,FALSE)","v":0},{"$f":"VLOOKUP(L42,$AS$40:$AW$43,4,FALSE)","v":0},{"$f":"VLOOKUP(L42,$AS$40:$AW$43,5,FALSE)","v":0},null,null,null,null,null,null,null,"Japan",0,0,0,"Costa Rica",0,0,0,null,{"$f":"RANK($AH42,$AH$40:$AH$43,1)+COUNTIF($AH$40:$AH42,$AH42)-1","v":3},{"$f":"AI42+AJ42+AK42","v":1},0,0,1,"Japan",0,0,0,0,null,3,"Japan",0,0,0,0,null,null,null,null,null,null,null,null,null,null,null,null,null,null,null,null,null,39]
[null,28,"2022-11-27","Spain","-","Germany",null,"-",null,"",4,{"$f":"VLOOKUP(K43,$AR$40:$AW$43,2,FALSE)","v":"Costa Rica"},{"$f":"VLOOKUP(L43,$AS$40:$AW$43,2,FALSE)","v":0},{"$f":"VLOOKUP(L43,$AS$40:$AW$43,3,FALSE)","v":0},{"$f":"VLOOKUP(L43,$AS$40:$AW$43,4,FALSE)","v":0},{"$f":"VLOOKUP(L43,$AS$40:$AW$43,5,FALSE)","v":0},null,null,null,null,null,null,null,"Spain",0,0,0,"Germany",0,0,0,null,{"$f":"RANK($AH43,$AH$40:$AH$43,1)+COUNTIF($AH$40:$AH43,$AH43)-1","v":4},{"$f":"AI43+AJ43+AK43","v":1},0,0,1,"Costa Rica",0,0,0,0,null,4,"Costa Rica",0,0,0,0,null,null,null,null,null,null,null,null,null,null,null,null,null,null,null,null,null,40]
[null,43,"2022-12-01","Japan","-","Spain",null,"-",null,"",null,{"$f":"COUNTBLANK(G40:G45)+COUNTBLANK(I40:I45)","v":12},null,null,null,null,null,null,null,null,null,null,null,"Japan",0,0,0,"Spain",0,0,0,null,null,null,null,null,null,null,null,null,null,null,null,null,null,null,null,null,null,null,null,null,null,null,null,null,null,null,null,null,null,null,null,null,null,null,41]
[null,44,"2022-12-01","Costa Rica","-","Germany",null,"-",null,"",null,null,null,null,null,null,null,null,null,null,null,null,null,"Costa Rica",0,0,0,"Germany",0,0,0,null,null,null,null,null,null,null,null,null,null,null,null,null,null,null,null,null,null,null,null,null,null,null,null,null,null,null,null,null,null,null,null,null,null,null,42]
[null,null,null,null,null,null,null,null,null,null,null,null,null,null,null,null,null,null,null,null,null,null,null,null,null,null,null,null,null,null,null,null,null,null,null,null,null,null,null,null,null,null,null,null,null,null,null,null,null,null,null,null,null,null,null,null,null,null,null,null,null,null,null,null,null,null,43]
[null,"Group F",null,null,null,null,null,null,null,null,null,null,null,null,null,null,null,null,null,null,null,null,null,null,null,null,null,null,null,null,null,null,null,null,null,null,null,null,null,null,null,null,null,null,null,null,null,null,null,null,null,null,null,null,null,null,null,null,null,null,null,null,null,null,null,null,44]
[null,"Game","Date","Game",null,null,"Result",null,null,"1X2",null,"Group F","Points","GF","GA"," +/-",null,null,null,null,null,null,null,"Team 1","Points","GF","GA","Lag 2","Points","GF","GA",null,"Rank ties","Rank total","Rank goals","Rank Diff","Rank Points","Team","Points","GF","GA","Diff",null,"Rank","Team","Points","GF","GA","Diff",null,null,null,null,null,null,null,null,null,null,null,null,null,null,null,null,null,45]
[null,9,"2022-11-23","Belgium","-","Canada",null,"-",null,{"$f":"IF(OR(ISBLANK(G49),ISBLANK(I49)),\"\",IF(G49>I49,1,IF(G49<I49,2,\"X\")))","v":""},1,{"$f":"VLOOKUP(K49,$AR$49:$AW$52,2,FALSE)","v":"Belgium"},{"$f":"VLOOKUP(L49,$AS$49:$AW$52,2,FALSE)","v":0},{"$f":"VLOOKUP(L49,$AS$49:$AW$52,3,FALSE)","v":0},{"$f":"VLOOKUP(L49,$AS$49:$AW$52,4,FALSE)","v":0},{"$f":"VLOOKUP(L49,$AS$49:$AW$52,5,FALSE)","v":0},null,null,null,null,null,null,null,{"$f":"D49","v":"Belgium"},{"$f":"IF(G49=\"\",0,IF($G49<$I49,0,IF($G49=$I49,1,3)))","v":0},{"$f":"G49","v":0},{"$f":"I49","v":0},{"$f":"F49","v":"Canada"},{"$f":"IF(I49=\"\",0,IF(I49<G49,0,IF(I49=G49,1,3)))","v":0},{"$f":"I49","v":0},{"$f":"G49","v":0},null,{"$f":"RANK($AH49,$AH$49:$AH$52,1)+COUNTIF($AH$49:$AH49,$AH49)-1","v":1},{"$f":"AI49+AJ49+AK49","v":1},{"$f":"SUMPRODUCT(($AM$49:$AM$52=AM49)*($AP$49:$AP$52=AP49)*($AN$49:$AN$52>AN49))","v":0},{"$f":"SUMPRODUCT(($AM$49:$AM$52=AM49)*($AP$49:$AP$52>AP49))","v":0},{"$f":"RANK(AM49,$AM$49:$AM$52)","v":1},"Belgium",{"$f":"SUMIF($X$49:$X$54,$AL49,$Y$49:$Y$54)+SUMIF($AB$49:$AB$54,$AL49,$AC$49:$AC$54)","v":0},{"$f":"SUMIF($X$49:$X$54,$AL49,$Z$49:$Z$54)+SUMIF($AB$49:$AB$54,$AL49,$AD$49:$AD$54)","v":0},{"$f":"SUMIF($X$49:$X$54,$AL49,$AA$49:$AA$54)+SUMIF($AB$49:$AB$54,$AL49,$AE$49:$AE$54)","v":0},{"$f":"AN49-AO49","v":0},null,1,{"$f":"VLOOKUP($AR49,$AG$49:$AP$52,6,FALSE)","v":"Belgium"},{"$f":"VLOOKUP($AS49,$AL$49:$AP$52,2,FALSE)","v":0},{"$f":"VLOOKUP($AS49,$AL$49:$AP$52,3,FALSE)","v":0},{"$f":"VLOOKUP($AS49,$AL$49:$AP$52,4,FALSE)","v":0},{"$f":"VLOOKUP($AS49,$AL$49:$AP$52,5,FALSE)","v":0},null,null,null,null,null,null,null,null,null,null,null,null,null,null,null,null,null,46]
[null,12,"2022-11-23","Morocco","-","Croatia",null,"-",null,{"$f":"IF(OR(ISBLANK(G50),ISBLANK(I50)),\"\",IF(G50>I50,1,IF(G50<I50,2,\"X\")))","v":""},2,{"$f":"VLOOKUP(K50,$AR$49:$AW$52,2,FALSE)","v":"Canada"},{"$f":"VLOOKUP(L50,$AS$49:$AW$52,2,FALSE)","v":0},{"$f":"VLOOKUP(L50,$AS$49:$AW$52,3,FALSE)","v":0},{"$f":"VLOOKUP(L50,$AS$49:$AW$52,4,FALSE)","v":0},{"$f":"VLOOKUP(L50,$AS$49:$AW$52,5,FALSE)","v":0},null,null,null,null,null,null,null,{"$f":"D50","v":"Morocco"},0,0,0,{"$f":"F50","v":"Croatia"},0,0,0,null,{"$f":"RANK($AH50,$AH$49:$AH$52,1)+COUNTIF($AH$49:$AH50,$AH50)-1","v":2},{"$f":"AI50+AJ50+AK50","v":1},{"$f":"SUMPRODUCT(($AM$49:$AM$52=AM50)*($AP$49:$AP$52=AP50)*($AN$49:$AN$52>AN50))","v":0},{"$f":"SUMPRODUCT(($AM$49:$AM$52=AM50)*($AP$49:$AP$52>AP50))","v":0},{"$f":"RANK(AM50,$AM$49:$AM$52)","v":1},"Canada",{"$f":"SUMIF($X$49:$X$54,$AL50,$Y$49:$Y$54)+SUMIF($AB$49:$AB$54,$AL50,$AC$49:$AC$54)","v":0},{"$f":"SUMIF($X$49:$X$54,$AL50,$Z$49:$Z$54)+SUMIF($AB$49:$AB$54,$AL50,$AD$49:$AD$54)","v":0},{"$f":"SUMIF($X$49:$X$54,$AL50,$AA$49:$AA$54)+SUMIF($AB$49:$AB$54,$AL50,$AE$49:$AE$54)","v":0},{"$f":"AN50-AO50","v":0},null,2,{"$f":"VLOOKUP($AR50,$AG$49:$AP$52,6,FALSE)","v":"Canada"},{"$f":"VLOOKUP($AS50,$AL$49:$AP$52,2,FALSE)","v":0},{"$f":"VLOOKUP($AS50,$AL$49:$AP$52,3,FALSE)","v":0},{"$f":"VLOOKUP($AS50,$AL$49:$AP$52,4,FALSE)","v":0},{"$f":"VLOOKUP($AS50,$AL$49:$AP$52,5,FALSE)","v":0},null,null,null,null,null,null,null,null,null,null,null,null,null,null,null,null,null,47]
[null,26,"2022-11-27","Belgium","-","Morocco",null,"-",null,"",3,{"$f":"VLOOKUP(K51,$AR$49:$AW$52,2,FALSE)","v":"Morocco"},{"$f":"VLOOKUP(L51,$AS$49:$AW$52,2,FALSE)","v":0},{"$f":"VLOOKUP(L51,$AS$49:$AW$52,3,FALSE)","v":0},{"$f":"VLOOKUP(L51,$AS$49:$AW$52,4,FALSE)","v":0},{"$f":"VLOOKUP(L51,$AS$49:$AW$52,5,FALSE)","v":0},null,null,null,null,null,null,null,"Belgium",0,0,0,"Morocco",0,0,0,null,{"$f":"RANK($AH51,$AH$49:$AH$52,1)+COUNTIF($AH$49:$AH51,$AH51)-1","v":3},{"$f":"AI51+AJ51+AK51","v":1},0,0,1,"Morocco",0,0,0,0,null,3,"Morocco",0,0,0,0,null,null,null,null,null,null,null,null,null,null,null,null,null,null,null,null,null,48]
[null,27,"2022-11-27","Croatia","-","Canada",null,"-",null,"",4,{"$f":"VLOOKUP(K52,$AR$49:$AW$52,2,FALSE)","v":"Croatia"},{"$f":"VLOOKUP(L52,$AS$49:$AW$52,2,FALSE)","v":0},{"$f":"VLOOKUP(L52,$AS$49:$AW$52,3,FALSE)","v":0},{"$f":"VLOOKUP(L52,$AS$49:$AW$52,4,FALSE)","v":0},{"$f":"VLOOKUP(L52,$AS$49:$AW$52,5,FALSE)","v":0},null,null,null,null,null,null,null,"Croatia",0,0,0,"Canada",0,0,0,null,{"$f":"RANK($AH52,$AH$49:$AH$52,1)+COUNTIF($AH$49:$AH52,$AH52)-1","v":4},{"$f":"AI52+AJ52+AK52","v":1},0,0,1,"Croatia",0,0,0,0,null,4,"Croatia",0,0,0,0,null,null,null,null,null,null,null,null,null,null,null,null,null,null,null,null,null,49]
[null,41,"2022-12-01","Croatia","-","Belgium",null,"-",null,"",null,{"$f":"COUNTBLANK(G49:G54)+COUNTBLANK(I49:I54)","v":12},null,null,null,null,null,null,null,null,null,null,null,"Croatia",0,0,0,"Belgium",0,0,0,null,null,null,null,null,null,null,null,null,null,null,null,null,null,null,null,null,null,null,null,null,null,null,null,null,null,null,null,null,null,null,null,null,null,null,50]
[null,42,"2022-12-01","Canada","-","Morocco",null,"-",null,"",null,null,null,null,null,null,null,null,null,null,null,null,null,"Canada",0,0,0,"Morocco",0,0,0,null,null,null,null,null,null,null,null,null,null,null,null,null,null,null,null,null,null,null,null,null,null,null,null,null,null,null,null,null,null,null,null,null,null,null,51]
[null,null,null,null,null,null,null,null,null,null,null,null,null,null,null,null,null,null,null,null,null,null,null,null,null,null,null,null,null,null,null,null,null,null,null,null,null,null,null,null,null,null,null,null,null,null,null,null,null,null,null,null,null,null,null,null,null,null,null,null,null,null,null,null,null,null,52]
[null,"Group G",null,null,null,null,null,null,null,null,null,null,null,null,null,null,null,null,null,null,null,null,null,null,null,null,null,null,null,null,null,null,null,null,null,null,null,null,null,null,null,null,null,null,null,null,null,null,null,null,null,null,null,null,null,null,null,null,null,null,null,null,null,null,null,null,53]
[null,"Game","Date","Game",null,null,"Result",null,null,"1X2",null,"Group G","Points","GF","GA"," +/-",null,null,null,null,null,null,null,"Team 1","Points","GF","GA","Lag 2","Points","GF","GA",null,"Rank ties","Rank total","Rank goals","Rank Diff","Rank Points","Team","Points","GF","GA","Diff",null,"Rank","Team","Points","GF","GA","Diff",null,null,null,null,null,null,null,null,null,null,null,null,null,null,null,null,null,54]
[null,13,"2022-11-24","Switzerland","-","Cameroon",null,"-",null,{"$f":"IF(OR(ISBLANK(G58),ISBLANK(I58)),\"\",IF(G58>I58,1,IF(G58<I58,2,\"X\")))","v":""},1,{"$f":"VLOOKUP(K58,$AR$58:$AW$61,2,FALSE)","v":"Brazil"},{"$f":"VLOOKUP(L58,$AS$58:$AW$61,2,FALSE)","v":0},{"$f":"VLOOKUP(L58,$AS$58:$AW$61,3,FALSE)","v":0},{"$f":"VLOOKUP(L58,$AS$58:$AW$61,4,FALSE)","v":0},{"$f":"VLOOKUP(L58,$AS$58:$AW$61,5,FALSE)","v":0},null,null,null,null,null,null,null,{"$f":"D58","v":"Switzerland"},{"$f":"IF(G58=\"\",0,IF($G58<$I58,0,IF($G58=$I58,1,3)))","v":0},{"$f":"G58","v":0},{"$f":"I58","v":0},{"$f":"F58","v":"Cameroon"},{"$f":"IF(I58=\"\",0,IF(I58<G58,0,IF(I58=G58,1,3)))","v":0},{"$f":"I58","v":0},{"$f":"G58","v":0},null,{"$f":"RANK($AH58,$AH$58:$AH$61,1)+COUNTIF($AH$58:$AH58,$AH58)-1","v":1},{"$f":"AI58+AJ58+AK58","v":1},{"$f":"SUMPRODUCT(($AM$58:$AM$61=AM58)*($AP$58:$AP$61=AP58)*($AN$58:$AN$61>AN58))","v":0},{"$f":"SUMPRODUCT(($AM$58:$AM$61=AM58)*($AP$58:$AP$61>AP58))","v":0},{"$f":"RANK(AM58,$AM$58:$AM$61)","v":1},"Brazil",{"$f":"SUMIF($X$58:$X$63,$AL58,$Y$58:$Y$63)+SUMIF($AB$58:$AB$63,$AL58,$AC$58:$AC$63)","v":0},{"$f":"SUMIF($X$58:$X$63,$AL58,$Z$58:$Z$63)+SUMIF($AB$58:$AB$63,$AL58,$AD$58:$AD$63)","v":0},{"$f":"SUMIF($X$58:$X$63,$AL58,$AA$58:$AA$63)+SUMIF($AB$58:$AB$63,$AL58,$AE$58:$AE$63)","v":0},{"$f":"AN58-AO58","v":0},null,1,{"$f":"VLOOKUP($AR58,$AG$58:$AP$61,6,FALSE)","v":"Brazil"},{"$f":"VLOOKUP($AS58,$AL$58:$AP$61,2,FALSE)","v":0},{"$f":"VLOOKUP($AS58,$AL$58:$AP$61,3,FALSE)","v":0},{"$f":"VLOOKUP($AS58,$AL$58:$AP$61,4,FALSE)","v":0},{"$f":"VLOOKUP($AS58,$AL$58:$AP$61,5,FALSE)","v":0},null,null,null,null,null,null,null,null,null,null,null,null,null,null,null,null,null,55]
[null,16,"2022-11-24","Brazil","-","Serbia",null,"-",null,{"$f":"IF(OR(ISBLANK(G59),ISBLANK(I59)),\"\",IF(G59>I59,1,IF(G59<I59,2,\"X\")))","v":""},2,{"$f":"VLOOKUP(K59,$AR$58:$AW$61,2,FALSE)","v":"Serbia"},{"$f":"VLOOKUP(L59,$AS$58:$AW$61,2,FALSE)","v":0},{"$f":"VLOOKUP(L59,$AS$58:$AW$61,3,FALSE)","v":0},{"$f":"VLOOKUP(L59,$AS$58:$AW$61,4,FALSE)","v":0},{"$f":"VLOOKUP(L59,$AS$58:$AW$61,5,FALSE)","v":0},null,null,null,null,null,null,null,{"$f":"D59","v":"Brazil"},0,0,0,{"$f":"F59","v":"Serbia"},0,0,0,null,{"$f":"RANK($AH59,$AH$58:$AH$61,1)+COUNTIF($AH$58:$AH59,$AH59)-1","v":2},{"$f":"AI59+AJ59+AK59","v":1},{"$f":"SUMPRODUCT(($AM$58:$AM$61=AM59)*($AP$58:$AP$61=AP59)*($AN$58:$AN$61>AN59))","v":0},{"$f":"SUMPRODUCT(($AM$58:$AM$61=AM59)*($AP$58:$AP$61>AP59))","v":0},{"$f":"RANK(AM59,$AM$58:$AM$61)","v":1},"Serbia",{"$f":"SUMIF($X$58:$X$63,$AL59,$Y$58:$Y$63)+SUMIF($AB$58:$AB$63,$AL59,$AC$58:$AC$63)","v":0},{"$f":"SUMIF($X$58:$X$63,$AL59,$Z$58:$Z$63)+SUMIF($AB$58:$AB$63,$AL59,$AD$58:$AD$63)","v":0},{"$f":"SUMIF($X$58:$X$63,$AL59,$AA$58:$AA$63)+SUMIF($AB$58:$AB$63,$AL59,$AE$58:$AE$63)","v":0},{"$f":"AN59-AO59","v":0},null,2,{"$f":"VLOOKUP($AR59,$AG$58:$AP$61,6,FALSE)","v":"Serbia"},{"$f":"VLOOKUP($AS59,$AL$58:$AP$61,2,FALSE)","v":0},{"$f":"VLOOKUP($AS59,$AL$58:$AP$61,3,FALSE)","v":0},{"$f":"VLOOKUP($AS59,$AL$58:$AP$61,4,FALSE)","v":0},{"$f":"VLOOKUP($AS59,$AL$58:$AP$61,5,FALSE)","v":0},null,null,null,null,null,null,null,null,null,null,null,null,null,null,null,null,null,56]
[null,29,"2022-11-28","Cameroon","-","Serbia",null,"-",null,"",3,{"$f":"VLOOKUP(K60,$AR$58:$AW$61,2,FALSE)","v":"Switzerland"},{"$f":"VLOOKUP(L60,$AS$58:$AW$61,2,FALSE)","v":0},{"$f":"VLOOKUP(L60,$AS$58:$AW$61,3,FALSE)","v":0},{"$f":"VLOOKUP(L60,$AS$58:$AW$61,4,FALSE)","v":0},{"$f":"VLOOKUP(L60,$AS$58:$AW$61,5,FALSE)","v":0},null,null,null,null,null,null,null,"Cameroon",0,0,0,"Serbia",0,0,0,null,{"$f":"RANK($AH60,$AH$58:$AH$61,1)+COUNTIF($AH$58:$AH60,$AH60)-1","v":3},{"$f":"AI60+AJ60+AK60","v":1},0,0,1,"Switzerland",0,0,0,0,null,3,"Switzerland",0,0,0,0,null,null,null,null,null,null,null,null,null,null,null,null,null,null,null,null,null,57]
[null,31,"2022-11-28","Brazil","-","Switzerland",null,"-",null,"",4,{"$f":"VLOOKUP(K61,$AR$58:$AW$61,2,FALSE)","v":"Cameroon"},{"$f":"VLOOKUP(L61,$AS$58:$AW$61,2,FALSE)","v":0},{"$f":"VLOOKUP(L61,$AS$58:$AW$61,3,FALSE)","v":0},{"$f":"VLOOKUP(L61,$AS$58:$AW$61,4,FALSE)","v":0},{"$f":"VLOOKUP(L61,$AS$58:$AW$61,5,FALSE)","v":0},null,null,null,null,null,null,null,"Brazil",0,0,0,"Switzerland",0,0,0,null,{"$f":"RANK($AH61,$AH$58:$AH$61,1)+COUNTIF($AH$58:$AH61,$AH61)-1","v":4},{"$f":"AI61+AJ61+AK61","v":1},0,0,1,"Cameroon",0,0,0,0,null,4,"Cameroon",0,0,0,0,null,null,null,null,null,null,null,null,null,null,null,null,null,null,null,null,null,58]
[null,47,"2022-12-02","Serbia","-","Switzerland",null,"-",null,"",null,{"$f":"COUNTBLANK(G58:G63)+COUNTBLANK(I58:I63)","v":12},null,null,null,null,null,null,null,null,null,null,null,"Serbia",0,0,0,"Switzerland",0,0,0,null,null,null,null,null,null,null,null,null,null,null,null,null,null,null,null,null,null,null,null,null,null,null,null,null,null,null,null,null,null,null,null,null,null,null,59]
[null,48,"2022-12-02","Cameroon","-","Brazil",null,"-",null,"",null,null,null,null,null,null,null,null,null,null,null,null,null,"Cameroon",0,0,0,"Brazil",0,0,0,null,null,null,null,null,null,null,null,null,null,null,null,null,null,null,null,null,null,null,null,null,null,null,null,null,null,null,null,null,null,null,null,null,null,null,60]
[null,null,null,null,null,null,null,null,null,null,null,null,null,null,null,null,null,null,null,null,null,null,null,null,null,null,null,null,null,null,null,null,null,null,null,null,null,null,null,null,null,null,null,null,null,null,null,null,null,null,null,null,null,null,null,null,null,null,null,null,null,null,null,null,null,null,61]
[null,"Group H",null,null,null,null,null,null,null,null,null,null,null,null,null,null,null,null,null,null,null,null,null,null,null,null,null,null,null,null,null,null,null,null,null,null,null,null,null,null,null,null,null,null,null,null,null,null,null,null,null,null,null,null,null,null,null,null,null,null,null,null,null,null,null,null,62]
[null,"Game","Date","Game",null,null,"Result",null,null,"1X2",null,"Group H","Points","GF","GA"," +/-",null,null,null,null,null,null,null,"Team 1","Points","GF","GA","Lag 2","Points","GF","GA",null,"Rank ties","Rank total","Rank goals","Rank Diff","Rank Points","Team","Points","GF","GA","Diff",null,"Rank","Team","Points","GF","GA","Diff",null,null,null,null,null,null,null,null,null,null,null,null,null,null,null,null,null,63]
[null,14,"2022-11-24","Uruguay","-","Korea Republic",null,"-",null,{"$f":"IF(OR(ISBLANK(G67),ISBLANK(I67)),\"\",IF(G67>I67,1,IF(G67<I67,2,\"X\")))","v":""},1,{"$f":"VLOOKUP(K67,$AR$67:$AW$70,2,FALSE)","v":"Portugal"},{"$f":"VLOOKUP(L67,$AS$67:$AW$70,2,FALSE)","v":0},{"$f":"VLOOKUP(L67,$AS$67:$AW$70,3,FALSE)","v":0},{"$f":"VLOOKUP(L67,$AS$67:$AW$70,4,FALSE)","v":0},{"$f":"VLOOKUP(L67,$AS$67:$AW$70,5,FALSE)","v":0},null,null,null,null,null,null,null,{"$f":"D67","v":"Uruguay"},{"$f":"IF(G67=\"\",0,IF($G67<$I67,0,IF($G67=$I67,1,3)))","v":0},{"$f":"G67","v":0},{"$f":"I67","v":0},{"$f":"F67","v":"Korea Republic"},{"$f":"IF(I67=\"\",0,IF(I67<G67,0,IF(I67=G67,1,3)))","v":0},{"$f":"I67","v":0},{"$f":"G67","v":0},null,{"$f":"RANK($AH67,$AH$67:$AH$70,1)+COUNTIF($AH$67:$AH67,$AH67)-1","v":1},{"$f":"AI67+AJ67+AK67","v":1},{"$f":"SUMPRODUCT(($AM$67:$AM$70=AM67)*($AP$67:$AP$70=AP67)*($AN$67:$AN$70>AN67))","v":0},{"$f":"SUMPRODUCT(($AM$67:$AM$70=AM67)*($AP$67:$AP$70>AP67))","v":0},{"$f":"RANK(AM67,$AM$67:$AM$70)","v":1},"Portugal",{"$f":"SUMIF($X$67:$X$72,$AL67,$Y$67:$Y$72)+SUMIF($AB$67:$AB$72,$AL67,$AC$67:$AC$72)","v":0},{"$f":"SUMIF($X$67:$X$72,$AL67,$Z$67:$Z$72)+SUMIF($AB$67:$AB$72,$AL67,$AD$67:$AD$72)","v":0},{"$f":"SUMIF($X$67:$X$72,$AL67,$AA$67:$AA$72)+SUMIF($AB$67:$AB$72,$AL67,$AE$67:$AE$72)","v":0},{"$f":"AN67-AO67","v":0},null,1,{"$f":"VLOOKUP($AR67,$AG$67:$AP$70,6,FALSE)","v":"Portugal"},{"$f":"VLOOKUP($AS67,$AL$67:$AP$70,2,FALSE)","v":0},{"$f":"VLOOKUP($AS67,$AL$67:$AP$70,3,FALSE)","v":0},{"$f":"VLOOKUP($AS67,$AL$67:$AP$70,4,FALSE)","v":0},{"$f":"VLOOKUP($AS67,$AL$67:$AP$70,5,FALSE)","v":0},null,null,null,null,null,null,null,null,null,null,null,null,null,null,null,null,null,64]
[null,15,"2022-11-24","Portugal","-","Ghana",null,"-",null,{"$f":"IF(OR(ISBLANK(G68),ISBLANK(I68)),\"\",IF(G68>I68,1,IF(G68<I68,2,\"X\")))","v":""},2,{"$f":"VLOOKUP(K68,$AR$67:$AW$70,2,FALSE)","v":"Ghana"},{"$f":"VLOOKUP(L68,$AS$67:$AW$70,2,FALSE)","v":0},{"$f":"VLOOKUP(L68,$AS$67:$AW$70,3,FALSE)","v":0},{"$f":"VLOOKUP(L68,$AS$67:$AW$70,4,FALSE)","v":0},{"$f":"VLOOKUP(L68,$AS$67:$AW$70,5,FALSE)","v":0},null,null,null,null,null,null,null,{"$f":"D68","v":"Portugal"},0,0,0,{"$f":"F68","v":"Ghana"},0,0,0,null,{"$f":"RANK($AH68,$AH$67:$AH$70,1)+COUNTIF($AH$67:$AH68,$AH68)-1","v":2},{"$f":"AI68+AJ68+AK68","v":1},{"$f":"SUMPRODUCT(($AM$67:$AM$70=AM68)*($AP$67:$AP$70=AP68)*($AN$67:$AN$70>AN68))","v":0},{"$f":"SUMPRODUCT(($AM$67:$AM$70=AM68)*($AP$67:$AP$70>AP68))","v":0},{"$f":"RANK(AM68,$AM$67:$AM$70)","v":1},"Ghana",{"$f":"SUMIF($X$67:$X$72,$AL68,$Y$67:$Y$72)+SUMIF($AB$67:$AB$72,$AL68,$AC$67:$AC$72)","v":0},{"$f":"SUMIF($X$67:$X$72,$AL68,$Z$67:$Z$72)+SUMIF($AB$67:$AB$72,$AL68,$AD$67:$AD$72)","v":0},{"$f":"SUMIF($X$67:$X$72,$AL68,$AA$67:$AA$72)+SUMIF($AB$67:$AB$72,$AL68,$AE$67:$AE$72)","v":0},{"$f":"AN68-AO68","v":0},null,2,{"$f":"VLOOKUP($AR68,$AG$67:$AP$70,6,FALSE)","v":"Ghana"},{"$f":"VLOOKUP($AS68,$AL$67:$AP$70,2,FALSE)","v":0},{"$f":"VLOOKUP($AS68,$AL$67:$AP$70,3,FALSE)","v":0},{"$f":"VLOOKUP($AS68,$AL$67:$AP$70,4,FALSE)","v":0},{"$f":"VLOOKUP($AS68,$AL$67:$AP$70,5,FALSE)","v":0},null,null,null,null,null,null,null,null,null,null,null,null,null,null,null,null,null,65]
[null,30,"2022-11-28","Korea Republic","-","Ghana",null,"-",null,"",3,{"$f":"VLOOKUP(K69,$AR$67:$AW$70,2,FALSE)","v":"Uruguay"},{"$f":"VLOOKUP(L69,$AS$67:$AW$70,2,FALSE)","v":0},{"$f":"VLOOKUP(L69,$AS$67:$AW$70,3,FALSE)","v":0},{"$f":"VLOOKUP(L69,$AS$67:$AW$70,4,FALSE)","v":0},{"$f":"VLOOKUP(L69,$AS$67:$AW$70,5,FALSE)","v":0},null,null,null,null,null,null,null,"Korea Republic",0,0,0,"Ghana",0,0,0,null,{"$f":"RANK($AH69,$AH$67:$AH$70,1)+COUNTIF($AH$67:$AH69,$AH69)-1","v":3},{"$f":"AI69+AJ69+AK69","v":1},0,0,1,"Uruguay",0,0,0,0,null,3,"Uruguay",0,0,0,0,null,null,null,null,null,null,null,null,null,null,null,null,null,null,null,null,null,66]
[null,32,"2022-11-28","Portugal","-","Uruguay",null,"-",null,"",4,{"$f":"VLOOKUP(K70,$AR$67:$AW$70,2,FALSE)","v":"Korea Republic"},{"$f":"VLOOKUP(L70,$AS$67:$AW$70,2,FALSE)","v":0},{"$f":"VLOOKUP(L70,$AS$67:$AW$70,3,FALSE)","v":0},{"$f":"VLOOKUP(L70,$AS$67:$AW$70,4,FALSE)","v":0},{"$f":"VLOOKUP(L70,$AS$67:$AW$70,5,FALSE)","v":0},null,null,null,null,null,null,null,"Portugal",0,0,0,"Uruguay",0,0,0,null,{"$f":"RANK($AH70,$AH$67:$AH$70,1)+COUNTIF($AH$67:$AH70,$AH70)-1","v":4},{"$f":"AI70+AJ70+AK70","v":1},0,0,1,"Korea Republic",0,0,0,0,null,4,"Korea Republic",0,0,0,0,null,null,null,null,null,null,null,null,null,null,null,null,null,null,null,null,null,67]
[null,45,"2022-12-02","Ghana","-","Uruguay",null,"-",null,"",null,{"$f":"COUNTBLANK(G67:G72)+COUNTBLANK(I67:I72)","v":12},null,null,null,null,null,null,null,null,null,null,null,"Ghana",0,0,0,"Uruguay",0,0,0,null,null,null,null,null,null,null,null,null,null,null,null,null,null,null,null,null,null,null,null,null,null,null,null,null,null,null,null,null,null,null,null,null,null,null,68]
[null,46,"2022-12-02","Korea Republic","-","Portugal",null,"-",null,"",null,null,null,null,null,null,null,null,null,null,null,null,null,"Korea Republic",0,0,0,"Portugal",0,0,0,null,null,null,null,null,null,null,null,null,null,null,null,null,null,null,null,null,null,null,null,null,null,null,null,null,null,null,null,null,null,null,null,null,null,null,69]
[null,null,null,null,null,null,null,null,null,null,null,null,null,null,null,null,null,null,null,null,null,null,null,null,null,null,null,null,null,null,null,null,null,null,null,null,null,null,null,null,null,null,null,null,null,null,null,null,null,null,null,null,null,null,null,null,null,null,null,null,null,null,null,null,null,null,70]
[null,"Round of 16",null,null,null,null,null,null,null,null,null,null,null,null,null,null,null,null,null,null,null,null,null,null,null,null,null,null,null,null,null,null,null,null,null,null,null,null,null,null,null,null,null,null,null,null,null,null,null,null,null,null,null,null,null,null,null,null,null,null,null,null,null,null,null,null,71]
[null,"Game","Date","Game",null,null,"Result",null,null,"1X2",null,"Winner Round of 16",null,"Note!",null,null,null,null,null,null,null,null,null,"Game",null,null,null,null,null,null,null,null,"Game","Date","Game",null,null,null,null,null,null,null,null,null,null,null,null,null,null,null,null,null,null,null,null,null,null,null,null,null,null,null,null,null,null,null,72]
[null,50,"2022-12-03","Winner Group C","-","Second Group D",null,"-",null,{"$f":"IF(OR(ISBLANK(G76),ISBLANK(I76)),\"\",IF(G76>I76,1,IF(G76<I76,2,\"X\")))","v":""},null,null,null,"The tip cannot take into account the number of yellow/red cards in the tournament, which may affect which teams advance to the Round of 16. Should this happen, you as the owner of results sheet can manually type in the correct teams in the correct places in the Round of 16 (cell D58- D65 & F58-F65)\n\nTo reset, klick on the orange button to the right",null,null,null,null,null,null,null,null,null,"Winner Group A",null,null,null,"Second Group B",null,null,null,null,50,"2022-12-03",{"$f":"IF($L$26=0,$L$22,\"Winner Group C\")","v":"Winner Group C"},"-",{"$f":"IF($L$35=0,$L$32,\"Second Group D\")","v":"Second Group D"},null,null,null,null,null,null,null,null,null,null,null,null,null,null,null,null,null,null,null,null,null,null,null,null,null,null,null,null,null,73]
[null,49,"2022-12-03","Winner Group A","-","Second Group B",null,"-",null,"",null,null,null,null,null,null,null,null,null,null,null,null,null,"Winner Group C",null,null,null,"Second Group D",null,null,null,null,49,"2022-12-03",{"$f":"IF($L$8=0,$L$4,\"Winner Group A\")","v":"Winner Group A"},"-",{"$f":"IF($L$17=0,$L$14,\"Second Group B\")","v":"Second Group B"},null,null,null,null,null,null,null,null,null,null,null,null,null,null,null,null,null,null,null,null,null,null,null,null,null,null,null,null,null,74]
[null,51,"2022-12-04","Winner Group B","-","Second Group A",null,"-",null,"",null,null,null,null,null,null,null,null,null,null,null,null,null,"Winner Group B",null,null,null,"Second Group A",null,null,null,null,51,"2022-12-04",{"$f":"IF($L$17=0,$L$13,\"Winner Group B\")","v":"Winner Group B"},"-",{"$f":"IF($L$8=0,$L$5,\"Second Group A\")","v":"Second Group A"},null,null,null,null,null,null,null,null,null,null,null,null,null,null,null,null,null,null,null,null,null,null,null,null,null,null,null,null,null,75]
[null,52,"2022-12-04","Winner Group D","-","Second Group C",null,"-",null,"",null,null,null,null,null,null,null,null,null,null,null,null,null,"Winner Group D",null,null,null,"Second Group C",null,null,null,null,52,"2022-12-04",{"$f":"IF($L$35=0,$L$31,\"Winner Group D\")","v":"Winner Group D"},"-",{"$f":"IF($L$26=0,$L$23,\"Second Group C\")","v":"Second Group C"},null,null,null,null,null,null,null,null,null,null,null,null,null,null,null,null,null,null,null,null,null,null,null,null,null,null,null,null,null,76]
[null,53,"2022-12-05","Winner Group E","-","Second Group F",null,"-",null,"",null,null,null,null,null,null,null,null,null,null,null,null,null,"Winner Group E",null,null,null,"Second Group F",null,null,null,null,53,"2022-12-05",{"$f":"IF($L$44=0,$L$40,\"Winner Group E\")","v":"Winner Group E"},"-",{"$f":"IF($L$53=0,$L$50,\"Second Group F\")","v":"Second Group F"},null,null,null,null,null,null,null,null,null,null,null,null,null,null,null,null,null,null,null,null,null,null,null,null,null,null,null,null,null,77]
[null,54,"2022-12-05","Winner Group G","-","Second Group H",null,"-",null,"",null,null,null,null,null,null,null,null,null,null,null,null,null,"Winner Group G",null,null,null,"Second Group H",null,null,null,null,54,"2022-12-05",{"$f":"IF($L$62=0,$L$58,\"Winner Group G\")","v":"Winner Group G"},"-",{"$f":"IF($L$71=0,$L$68,\"Second Group H\")","v":"Second Group H"},null,null,null,null,null,null,null,null,null,null,null,null,null,null,null,null,null,null,null,null,null,null,null,null,null,null,null,null,null,78]
[null,55,"2022-12-06","Winner Group F","-","Second Group E",null,"-",null,"",null,null,null,null,null,null,null,null,null,null,null,null,null,"Winner Group F",null,null,null,"Second Group E",null,null,null,null,55,"2022-12-06",{"$f":"IF($L$53=0,$L$49,\"Winner Group F\")","v":"Winner Group F"},"-",{"$f":"IF($L$44=0,$L$41,\"Second Group E\")","v":"Second Group E"},null,null,null,null,null,null,null,null,null,null,null,null,null,null,null,null,null,null,null,null,null,null,null,null,null,null,null,null,null,79]
[null,56,"2022-12-06","Winner Group H","-","Second Group G",null,"-",null,"",null,null,null,null,null,null,null,null,null,null,null,null,null,"Winner Group H",null,null,null,"Second Group G",null,null,null,null,56,"2022-12-06",{"$f":"IF($L$71=0,$L$67,\"Winner Group H\")","v":"Winner Group H"},"-",{"$f":"IF($L$62=0,$L$59,\"Second Group G\")","v":"Second Group G"},null,null,null,null,null,null,null,null,null,null,null,null,null,null,null,null,null,null,null,null,null,null,null,null,null,null,null,null,null,80]
[null,null,null,null,null,null,null,null,null,null,null,null,null,null,null,null,null,null,null,null,null,null,null,null,null,null,null,null,null,null,null,null,null,null,null,null,null,null,null,null,null,null,null,null,null,null,null,null,null,null,null,null,null,null,null,null,null,null,null,null,null,null,null,null,null,null,81]
[null,"Quarter finals",null,null,null,null,null,null,null,null,null,null,null,null,null,null,null,null,null,null,null,null,null,null,null,null,null,null,null,null,null,null,null,null,null,null,null,null,null,null,null,null,null,null,null,null,null,null,null,null,null,null,null,null,null,null,null,null,null,null,null,null,null,null,null,null,82]
[null,"Game","Date","Game",null,null,"Result",null,null,"1X2",null,"Winner Quarter final",null,null,null,null,null,null,null,null,null,null,null,"Game",null,null,null,null,null,null,null,null,null,null,null,null,null,null,null,null,null,null,null,null,null,null,null,null,null,null,null,null,null,null,null,null,null,null,null,null,null,null,null,null,null,null,83]
[null,57,"2022-12-09",{"$f":"IF(L77=\"\",\"Winner Game 49\",L77)","v":"Winner Game 49"},"-",{"$f":"IF(L76=\"\",\"Winner Game 50\",L76)","v":"Winner Game 50"},null,"-",null,{"$f":"IF(OR(ISBLANK(G87),ISBLANK(I87)),\"\",IF(G87>I87,1,IF(G87<I87,2,\"X\")))","v":""},null,null,null,null,null,null,null,null,null,null,null,null,null,"Winner Game 49",null,null,null,"Winner Game 50",null,null,null,null,null,null,null,null,null,null,null,null,null,null,null,null,null,null,null,null,null,null,null,null,null,null,null,null,null,null,null,null,null,null,null,null,null,null,84]
[null,58,"2022-12-09",{"$f":"IF(L80=\"\",\"Winner Game 53\",L80)","v":"Winner Game 53"},"-",{"$f":"IF(L81=\"\",\"Winner Game 54\",L81)","v":"Winner Game 54"},null,"-",null,"",null,null,null,null,null,null,null,null,null,null,null,null,null,"Winner Game 53",null,null,null,"Winner Game 54",null,null,null,null,null,null,null,null,null,null,null,null,null,null,null,null,null,null,null,null,null,null,null,null,null,null,null,null,null,null,null,null,null,null,null,null,null,null,85]
[null,59,"2022-12-10",{"$f":"IF(L78=\"\",\"Winner Game 51\",L78)","v":"Winner Game 51"},"-",{"$f":"IF(L79=\"\",\"Winner Game 52\",L79)","v":"Winner Game 52"},null,"-",null,"",null,null,null,null,null,null,null,null,null,null,null,null,null,"Winner Game 51",null,null,null,"Winner Game 52",null,null,null,null,null,null,null,null,null,null,null,null,null,null,null,null,null,null,null,null,null,null,null,null,null,null,null,null,null,null,null,null,null,null,null,null,null,null,86]
[null,60,"2022-12-10",{"$f":"IF(L82=\"\",\"Winner Game 55\",L82)","v":"Winner Game 55"},"-",{"$f":"IF(L83=\"\",\"Winner Game 56\",L83)","v":"Winner Game 56"},null,"-",null,"",null,null,null,null,null,null,null,null,null,null,null,null,null,"Winner Game 55",null,null,null,"Winner Game 56",null,null,null,null,null,null,null,null,null,null,null,null,null,null,null,null,null,null,null,null,null,null,null,null,null,null,null,null,null,null,null,null,null,null,null,null,null,null,87]
[null,null,null,null,null,null,null,null,null,null,null,null,null,null,null,null,null,null,null,null,null,null,null,null,null,null,null,null,null,null,null,null,null,null,null,null,null,null,null,null,null,null,null,null,null,null,null,null,null,null,null,null,null,null,null,null,null,null,null,null,null,null,null,null,null,null,88]
[null,"Semi-finals",null,null,null,null,null,null,null,null,null,null,null,null,null,null,null,null,null,null,null,null,null,null,null,null,null,null,null,null,null,null,null,null,null,null,null,null,null,null,null,null,null,null,null,null,null,null,null,null,null,null,null,null,null,null,null,null,null,null,null,null,null,null,null,null,89]
[null,"Game","Date","Game",null,null,"Result",null,null,"1X2",null,"Winner Semi-finals","Looser",null,null,null,null,null,null,null,null,null,null,"Game",null,null,null,null,null,null,null,null,null,null,null,null,null,null,null,null,null,null,null,null,null,null,null,null,null,null,null,null,null,null,null,null,null,null,null,null,null,null,null,null,null,null,90]
[null,61,"2022-12-13",{"$f":"IF(L87=\"\",\"Winner Game 57\",L87)","v":"Winner Game 57"},"-",{"$f":"IF(L88=\"\",\"Winner Game 58\",L88)","v":"Winner Game 58"},null,"-",null,{"$f":"IF(OR(ISBLANK(G94),ISBLANK(I94)),\"\",IF(G94>I94,1,IF(G94<I94,2,\"X\")))","v":""},null,null,null,null,{"$f":"IF(L94=D94,F94,D94)","v":"Winner Game 57"},null,null,null,null,null,null,null,null,"Winner Game 57",null,null,null,"Winner Game 58",null,null,null,null,null,null,null,null,null,null,null,null,null,null,null,null,null,null,null,null,null,null,null,null,null,null,null,null,null,null,null,null,null,null,null,null,null,null,91]
[null,62,"2022-12-14",{"$f":"IF(L89=\"\",\"Winner Game 59\",L89)","v":"Winner Game 59"},"-",{"$f":"IF(L90=\"\",\"Winner Game 60\",L90)","v":"Winner Game 60"},"                                       ","-",null,"",null,null,null,null,{"$f":"IF(L95=D95,F95,D95)","v":"Winner Game 59"},null,null,null,null,null,null,null,null,"Winner Game 59",null,null,null,"Winner Game 60",null,null,null,null,null,null,null,null,null,null,null,null,null,null,null,null,null,null,null,null,null,null,null,null,null,null,null,null,null,null,null,null,null,null,null,null,null,null,92]
[null,null,null,null,null,null,null,null,null,null,null,null,null,null,null,null,null,null,null,null,null,null,null,null,null,null,null,null,null,null,null,null,null,null,null,null,null,null,null,null,null,null,null,null,null,null,null,null,null,null,null,null,null,null,null,null,null,null,null,null,null,null,null,null,null,null,93]
[null,"Play-off for third place",null,null,null,null,null,null,null,null,null,null,null,null,null,null,null,null,null,null,null,null,null,null,null,null,null,null,null,null,null,null,null,null,null,null,null,null,null,null,null,null,null,null,null,null,null,null,null,null,null,null,null,null,null,null,null,null,null,null,null,null,null,null,null,null,94]
[null,"Game","Date","Game",null,null,"Result",null,null,"1X2",null,"Winner Play-off for third place",null,null,null,null,null,null,null,null,null,null,null,"Game",null,null,null,null,null,null,null,null,null,null,null,null,null,null,null,null,null,null,null,null,null,null,null,null,null,null,null,null,null,null,null,null,null,null,null,null,null,null,null,null,null,null,95]
[null,63,"2022-12-17",{"$f":"IF(L94=\"\",\"Looser Game 61\",O94)","v":"Looser Game 61"},"-",{"$f":"IF(L95=\"\",\"Looser Game 62\",O95)","v":"Looser Game 62"},null,"-",null,{"$f":"IF(OR(ISBLANK(G99),ISBLANK(I99)),\"\",IF(G99>I99,1,IF(G99<I99,2,\"X\")))","v":""},null,null,null,null,null,null,null,null,null,null,null,null,null,"Looser Game 61",null,null,null,"Looser Game 62",null,null,null,null,null,null,null,null,null,null,null,null,null,null,null,null,null,null,null,null,null,null,null,null,null,null,null,null,null,null,null,null,null,null,null,null,null,null,96]
[null,null,null,null,null,null,null,null,null,null,null,null,null,null,null,null,null,null,null,null,null,null,null,null,null,null,null,null,null,null,null,null,null,null,null,null,null,null,null,null,null,null,null,null,null,null,null,null,null,null,null,null,null,null,null,null,null,null,null,null,null,null,null,null,null,null,97]
[null,"Final",null,null,null,null,null,null,null,null,null,null,null,null,null,null,null,null,null,null,null,null,null,null,null,null,null,null,null,null,null,null,null,null,null,null,null,null,null,null,null,null,null,null,null,null,null,null,null,null,null,null,null,null,null,null,null,null,null,null,null,null,null,null,null,null,98]
[null,"Game","Date","Game",null,null,"Result",null,null,"1X2",null,"Winner final",null,null,null,null,null,null,null,null,null,null,null,"Game",null,null,null,null,null,null,null,null,null,null,null,null,null,null,null,null,null,null,null,null,null,null,null,null,null,null,null,null,null,null,null,null,null,null,null,null,null,null,null,null,null,null,99]
[null,64,"2022-12-18",{"$f":"IF(L94=\"\",\"Winner Game 61\",L94)","v":"Winner Game 61"},"-",{"$f":"IF(L95=\"\",\"Winner Game 62\",L95)","v":"Winner Game 62"},null,"-",null,{"$f":"IF(OR(ISBLANK(G103),ISBLANK(I103)),\"\",IF(G103>I103,1,IF(G103<I103,2,\"X\")))","v":""},null,null,null,null,null,null,null,null,null,null,null,null,null,"Winner Game 61",null,null,null,"Winner Game 62",null,null,null,null,null,null,null,null,null,null,null,null,null,null,null,null,null,null,null,null,null,null,null,null,null,null,null,null,null,null,null,null,null,null,null,null,null,null,100]

{"sheet":"My Prediction","index":2,"n_rows":120,"n_cols":68,"rows_kept":120,"cut":false,"hidden":false,"merged":[[11,56,11,58],[2,3,2,5],[2,6,2,8],[2,19,2,22],[2,53,2,55],[2,56,2,58],[3,19,3,22],[4,19,4,22],[5,19,5,22],[11,3,11,5],[11,6,11,8],[11,53,11,55],[20,3,20,5],[20,6,20,8],[20,53,20,55],[20,56,20,58],[29,3,29,5],[29,6,29,8],[29,53,29,55],[29,56,29,58],[38,3,38,5],[38,6,38,8],[38,56,38,58],[47,3,47,5],[47,6,47,8],[47,56,47,58],[56,3,56,5],[56,6,56,8],[56,56,56,58],[65,3,65,5],[65,6,65,8],[65,56,65,58],[97,3,97,5],[97,6,97,8],[97,15,97,18],[74,3,74,5],[74,6,74,8],[74,15,74,18],[75,15,75,18],[85,3,85,5],[85,6,85,8],[85,15,85,18],[86,15,86,18],[92,3,92,5],[92,6,92,8],[92,15,92,18],[93,15,93,18],[98,15,98,18],[101,3,101,5],[101,6,101,8],[101,15,101,18],[102,15,102,18]]}
[]
[null,"Group A",null,null,null,null,null,null,null,null,null,null,null,null,null,null,null,null,"Bonus questions"]
[null,"Game","Date","Game",null,null,"Result",null,null,"1X2","Points",null,"Group A","Points","GF","GA"," +/-",null,"Category","Answer",null,null,null,"Points",null,"Team 1","Points","GF","GA","Team 2","Points","GF","GA",null,"Rank ties","Rank total","Rank goals","Rank Diff","Rank Points","Team","Points","GF","GA","Diff",null,"Rank","Team","Points","GF","GA","Diff"]
[null,1,"2022-11-20","Qatar","-","Ecuador",null,"-",null,{"$f":"IF(OR(ISBLANK(G4),ISBLANK(I4)),\"\",IF(G4>I4,1,IF(G4<I4,2,\"X\")))","v":""},{"$f":"IF(OR(G4=\"\",I4=\"\",'Results and table'!G4=\"\",'Results and table'!I4=\"\"),0,IF(G4='Results and table'!G4,2,0)+IF(I4='Results and table'!I4,2,0)+IF(J4='Results and table'!J4,2,0))","v":0},1,{"$f":"VLOOKUP(L4,AT4:AY7,2,FALSE)","v":"Qatar"},{"$f":"VLOOKUP(M4,$AU$4:$AY$7,2,FALSE)","v":0},{"$f":"VLOOKUP(M4,$AU$4:$AY$7,3,FALSE)","v":0},{"$f":"VLOOKUP(M4,$AU$4:$AY$7,4,FALSE)","v":0},{"$f":"VLOOKUP(M4,$AU$4:$AY$7,5,FALSE)","v":0},null,"Top scorer",null,null,null,null,{"$f":"IF(AND('Results and table'!S4>0,T4='Results and table'!S4),20,0)","v":0},null,{"$f":"D4","v":"Qatar"},{"$f":"IF(G4=\"\",0,IF($G4<$I4,0,IF($G4=$I4,1,3)))","v":0},{"$f":"G4","v":0},{"$f":"I4","v":0},{"$f":"F4","v":"Ecuador"},{"$f":"IF(I4=\"\",0,IF(I4<G4,0,IF(G4=I4,1,3)))","v":0},{"$f":"I4","v":0},{"$f":"G4","v":0},null,{"$f":"RANK($AJ4,$AJ$4:$AJ$7,1)+COUNTIF($AJ$4:$AJ4,$AJ4)-1","v":1},{"$f":"AK4+AL4+AM4","v":1},{"$f":"SUMPRODUCT(($AO$4:$AO$7=AO4)*($AR$4:$AR$7=AR4)*($AP$4:$AP$7>AP4))","v":0},{"$f":"SUMPRODUCT(($AO$4:$AO$7=AO4)*($AR$4:$AR$7>AR4))","v":0},{"$f":"RANK(AO4,$AO$4:$AO$7)","v":1},"Qatar",{"$f":"SUMIF($Z$4:$Z$9,$AN4,$AA$4:$AA$9)+SUMIF($AD$4:$AD$9,$AN4,$AE$4:$AE$9)","v":0},{"$f":"SUMIF($Z$4:$Z$9,AN4,$AB$4:$AB$9)+SUMIF($AD$4:$AD$9,AN4,$AF$4:$AF$9)","v":0},{"$f":"SUMIF($AD$4:$AD$9,AN4,$AG$4:$AG$9)+SUMIF($Z$4:$Z$9,AN4,$AC$4:$AC$9)","v":0},{"$f":"AP4-AQ4","v":0},null,1,{"$f":"VLOOKUP($AT4,$AI$4:$AR$7,6,FALSE)","v":"Qatar"},{"$f":"VLOOKUP($AU4,$AN$4:$AR$7,2,FALSE)","v":0},{"$f":"VLOOKUP($AU4,$AN$4:$AR$7,3,FALSE)","v":0},{"$f":"VLOOKUP($AU4,$AN$4:$AR$7,4,FALSE)","v":0},{"$f":"VLOOKUP($AU4,$AN$4:$AR$7,5,FALSE)","v":0}]
[null,2,"2022-11-21","Senegal","-","Netherlands",null,"-",null,{"$f":"IF(OR(ISBLANK(G5),ISBLANK(I5)),\"\",IF(G5>I5,1,IF(G5<I5,2,\"X\")))","v":""},{"$f":"IF(OR(G5=\"\",I5=\"\",'Results and table'!G5=\"\",'Results and table'!I5=\"\"),0,IF(G5='Results and table'!G5,2,0)+IF(I5='Results and table'!I5,2,0)+IF(J5='Results and table'!J5,2,0))","v":0},2,{"$f":"VLOOKUP(L5,AT4:AY7,2,FALSE)","v":"Ecuador"},{"$f":"VLOOKUP(M5,$AU$4:$AY$7,2,FALSE)","v":0},{"$f":"VLOOKUP(M5,$AU$4:$AY$7,3,FALSE)","v":0},{"$f":"VLOOKUP(M5,$AU$4:$AY$7,4,FALSE)","v":0},{"$f":"VLOOKUP(M5,$AU$4:$AY$7,5,FALSE)","v":0},null,"World champion",null,null,null,null,{"$f":"IF(AND('Results and table'!S5>0,T5='Results and table'!S5,T5<>\"\"),20,0)","v":0},null,{"$f":"D5","v":"Senegal"},{"$f":"IF(G5=\"\",0,IF($G5<$I5,0,IF($G5=$I5,1,3)))","v":0},0,0,{"$f":"F5","v":"Netherlands"},{"$f":"IF(I5=\"\",0,IF(I5<G5,0,IF(G5=I5,1,3)))","v":0},0,0,null,{"$f":"RANK($AJ5,$AJ$4:$AJ$7,1)+COUNTIF($AJ$4:$AJ5,$AJ5)-1","v":2},{"$f":"AK5+AL5+AM5","v":1},{"$f":"SUMPRODUCT(($AO$4:$AO$7=AO5)*($AR$4:$AR$7=AR5)*($AP$4:$AP$7>AP5))","v":0},{"$f":"SUMPRODUCT(($AO$4:$AO$7=AO5)*($AR$4:$AR$7>AR5))","v":0},{"$f":"RANK(AO5,$AO$4:$AO$7)","v":1},"Ecuador",{"$f":"SUMIF($Z$4:$Z$9,$AN5,$AA$4:$AA$9)+SUMIF($AD$4:$AD$9,$AN5,$AE$4:$AE$9)","v":0},{"$f":"SUMIF($Z$4:$Z$9,AN5,$AB$4:$AB$9)+SUMIF($AD$4:$AD$9,AN5,$AF$4:$AF$9)","v":0},{"$f":"SUMIF($AD$4:$AD$9,AN5,$AG$4:$AG$9)+SUMIF($Z$4:$Z$9,AN5,$AC$4:$AC$9)","v":0},{"$f":"AP5-AQ5","v":0},null,2,{"$f":"VLOOKUP($AT5,$AI$4:$AR$7,6,FALSE)","v":"Ecuador"},{"$f":"VLOOKUP($AU5,$AN$4:$AR$7,2,FALSE)","v":0},0,{"$f":"VLOOKUP($AU5,$AN$4:$AR$7,4,FALSE)","v":0},{"$f":"VLOOKUP($AU5,$AN$4:$AR$7,5,FALSE)","v":0}]
[null,18,"2022-11-25","Qatar","-","Senegal",null,"-",null,"",{"$f":"IF(OR(G6=\"\",I6=\"\",'Results and table'!G6=\"\",'Results and table'!I6=\"\"),0,IF(G6='Results and table'!G6,2,0)+IF(I6='Results and table'!I6,2,0)+IF(J6='Results and table'!J6,2,0))","v":0},3,{"$f":"VLOOKUP(L6,AT4:AY7,2,FALSE)","v":"Senegal"},{"$f":"VLOOKUP(M6,$AU$4:$AY$7,2,FALSE)","v":0},{"$f":"VLOOKUP(M6,$AU$4:$AY$7,3,FALSE)","v":0},{"$f":"VLOOKUP(M6,$AU$4:$AY$7,4,FALSE)","v":0},{"$f":"VLOOKUP(M6,$AU$4:$AY$7,5,FALSE)","v":0},null,"Winner play-off for third place",null,null,null,null,{"$f":"IF(AND('Results and table'!S6>0,T6='Results and table'!S6,T6<>\"\"),10,0)","v":0},null,"Qatar",0,0,0,"Senegal",0,0,0,null,{"$f":"RANK($AJ6,$AJ$4:$AJ$7,1)+COUNTIF($AJ$4:$AJ6,$AJ6)-1","v":3},1,0,0,1,"Senegal",0,{"$f":"SUMIF($Z$4:$Z$9,AN6,$AB$4:$AB$9)+SUMIF($AD$4:$AD$9,AN6,$AF$4:$AF$9)","v":0},0,0,null,3,"Senegal",0,0,0,0]
[null,19,"2022-11-25","Netherlands","-","Ecuador",null,"-",null,"",{"$f":"IF(OR(G7=\"\",I7=\"\",'Results and table'!G7=\"\",'Results and table'!I7=\"\"),0,IF(G7='Results and table'!G7,2,0)+IF(I7='Results and table'!I7,2,0)+IF(J7='Results and table'!J7,2,0))","v":0},4,{"$f":"VLOOKUP(L7,AT4:AY7,2,FALSE)","v":"Netherlands"},{"$f":"VLOOKUP(M7,$AU$4:$AY$7,2,FALSE)","v":0},{"$f":"VLOOKUP(M7,$AU$4:$AY$7,3,FALSE)","v":0},{"$f":"VLOOKUP(M7,$AU$4:$AY$7,4,FALSE)","v":0},{"$f":"VLOOKUP(M7,$AU$4:$AY$7,5,FALSE)","v":0},null,null,null,null,null,null,null,null,"Netherlands",0,0,0,"Ecuador",0,0,0,null,{"$f":"RANK($AJ7,$AJ$4:$AJ$7,1)+COUNTIF($AJ$4:$AJ7,$AJ7)-1","v":4},1,0,0,1,"Netherlands",0,{"$f":"SUMIF($Z$4:$Z$9,AN7,$AB$4:$AB$9)+SUMIF($AD$4:$AD$9,AN7,$AF$4:$AF$9)","v":0},0,0,null,4,"Netherlands",0,0,0,0]
[null,35,"2022-11-29","Ecuador","-","Senegal",null,"-",null,"",{"$f":"IF(OR(G8=\"\",I8=\"\",'Results and table'!G8=\"\",'Results and table'!I8=\"\"),0,IF(G8='Results and table'!G8,2,0)+IF(I8='Results and table'!I8,2,0)+IF(J8='Results and table'!J8,2,0))","v":0},null,{"$f":"COUNTBLANK(G4:G9)+COUNTBLANK(I4:I9)","v":12},null,null,null,null,null,null,null,null,null,null,null,null,"Ecuador",0,0,0,"Senegal",0,0,0]
[null,36,"2022-11-29","Netherlands","-","Qatar",null,"-",null,"",{"$f":"IF(OR(G9=\"\",I9=\"\",'Results and table'!G9=\"\",'Results and table'!I9=\"\"),0,IF(G9='Results and table'!G9,2,0)+IF(I9='Results and table'!I9,2,0)+IF(J9='Results and table'!J9,2,0))","v":0},null,null,null,null,null,null,null,null,null,null,null,null,null,null,"Netherlands",0,0,0,"Qatar",0,0,0]
[]
[null,"Group B",null,null,null,null,null,null,null,null,null,null,null,null,null,null,null,null,"Points overview"]
[null,"Game","Date","Game",null,null,"Result",null,null,"1X2","Points",null,"Group B","Points","GF","GA"," +/-",null,"Category","Points","Bonus","Total",null,null,null,"Team 1","Points","GF","GA","Team 2","Points","GF","GA",null,"Rank ties","Rank total","Rank goals","Rank Diff","Rank Points","Team","Points","GF","GA","Diff",null,"Rank","Team","Points","GF","GA","Diff"]
[null,3,"2022-11-21","England","-","Iran",null,"-",null,{"$f":"IF(OR(ISBLANK(G13),ISBLANK(I13)),\"\",IF(G13>I13,1,IF(G13<I13,2,\"X\")))","v":""},{"$f":"IF(OR(G13=\"\",I13=\"\",'Results and table'!G13=\"\",'Results and table'!I13=\"\"),0,IF(G13='Results and table'!G13,2,0)+IF(I13='Results and table'!I13,2,0)+IF(J13='Results and table'!J13,2,0))","v":0},1,{"$f":"VLOOKUP(L13,AT13:AY16,2,FALSE)","v":"England"},{"$f":"VLOOKUP(M13,$AU$13:$AY$16,2,FALSE)","v":0},{"$f":"VLOOKUP(M13,$AU$13:$AY$16,3,FALSE)","v":0},{"$f":"VLOOKUP(M13,$AU$13:$AY$16,4,FALSE)","v":0},{"$f":"VLOOKUP(M13,$AU$13:$AY$16,5,FALSE)","v":0},null,"Group stage",{"$f":"SUM(K4:K72)","v":0},0,{"$f":"SUM(T13:U13)","v":0},null,null,null,{"$f":"D13","v":"England"},{"$f":"IF(G13=\"\",0,IF($G13<$I13,0,IF($G13=$I13,1,3)))","v":0},{"$f":"G13","v":0},{"$f":"I13","v":0},{"$f":"F13","v":"Iran"},{"$f":"IF(I13=\"\",0,IF(I13<G13,0,IF(G13=I13,1,3)))","v":0},{"$f":"I13","v":0},{"$f":"G13","v":0},null,{"$f":"RANK($AJ13,$AJ$13:$AJ$16,1)+COUNTIF($AJ$13:$AJ13,$AJ13)-1","v":1},{"$f":"AK13+AL13+AM13","v":1},{"$f":"SUMPRODUCT(($AO$13:$AO$16=AO13)*($AR$13:$AR$16=AR13)*($AP$13:$AP$16>AP13))","v":0},{"$f":"SUMPRODUCT(($AO$13:$AO$16=AO13)*($AR$13:$AR$16>AR13))","v":0},{"$f":"RANK(AO13,$AO$13:$AO$16)","v":1},"England",{"$f":"SUMIF($Z$13:$Z$18,$AN13,$AA$13:$AA$18)+SUMIF($AD$13:$AD$18,$AN13,$AE$13:$AE$18)","v":0},{"$f":"SUMIF($Z$13:$Z$18,$AN13,$AB$13:$AB$18)+SUMIF($AD$13:$AD$18,$AN13,$AF$13:$AF$18)","v":0},{"$f":"SUMIF($Z$13:$Z$18,$AN13,$AC$13:$AC$18)+SUMIF($AD$13:$AD$18,$AN13,$AG$13:$AG$18)","v":0},{"$f":"AP13-AQ13","v":0},null,1,{"$f":"VLOOKUP($AT13,$AI$13:$AR$16,6,FALSE)","v":"England"},{"$f":"VLOOKUP($AU13,$AN$13:$AR$16,2,FALSE)","v":0},{"$f":"VLOOKUP($AU13,$AN$13:$AR$16,3,FALSE)","v":0},{"$f":"VLOOKUP($AU13,$AN$13:$AR$16,4,FALSE)","v":0},{"$f":"VLOOKUP($AU13,$AN$13:$AR$16,5,FALSE)","v":0}]
[null,4,"2022-11-21","USA","-","Wales",null,"-",null,{"$f":"IF(OR(ISBLANK(G14),ISBLANK(I14)),\"\",IF(G14>I14,1,IF(G14<I14,2,\"X\")))","v":""},{"$f":"IF(OR(G14=\"\",I14=\"\",'Results and table'!G14=\"\",'Results and table'!I14=\"\"),0,IF(G14='Results and table'!G14,2,0)+IF(I14='Results and table'!I14,2,0)+IF(J14='Results and table'!J14,2,0))","v":0},2,{"$f":"VLOOKUP(L14,AT13:AY16,2,FALSE)","v":"Iran"},{"$f":"VLOOKUP(M14,$AU$13:$AY$16,2,FALSE)","v":0},{"$f":"VLOOKUP(M14,$AU$13:$AY$16,3,FALSE)","v":0},{"$f":"VLOOKUP(M14,$AU$13:$AY$16,4,FALSE)","v":0},{"$f":"VLOOKUP(M14,$AU$13:$AY$16,5,FALSE)","v":0},null,"Round of 16",{"$f":"SUM(K76:K83)","v":0},{"$f":"P76","v":0},0,null,null,null,{"$f":"D14","v":"USA"},0,0,0,{"$f":"F14","v":"Wales"},0,0,0,null,{"$f":"RANK($AJ14,$AJ$13:$AJ$16,1)+COUNTIF($AJ$13:$AJ14,$AJ14)-1","v":2},{"$f":"AK14+AL14+AM14","v":1},{"$f":"SUMPRODUCT(($AO$13:$AO$16=AO14)*($AR$13:$AR$16=AR14)*($AP$13:$AP$16>AP14))","v":0},{"$f":"SUMPRODUCT(($AO$13:$AO$16=AO14)*($AR$13:$AR$16>AR14))","v":0},{"$f":"RANK(AO14,$AO$13:$AO$16)","v":1},"Iran",{"$f":"SUMIF($Z$13:$Z$18,$AN14,$AA$13:$AA$18)+SUMIF($AD$13:$AD$18,$AN14,$AE$13:$AE$18)","v":0},{"$f":"SUMIF($Z$13:$Z$18,$AN14,$AB$13:$AB$18)+SUMIF($AD$13:$AD$18,AN14,$AF$13:$AF$18)","v":0},{"$f":"SUMIF($Z$13:$Z$18,$AN14,$AC$13:$AC$18)+SUMIF($AD$13:$AD$18,$AN14,$AG$13:$AG$18)","v":0},{"$f":"AP14-AQ14","v":0},null,2,{"$f":"VLOOKUP($AT14,$AI$13:$AR$16,6,FALSE)","v":"Iran"},{"$f":"VLOOKUP($AU14,$AN$13:$AR$16,2,FALSE)","v":0},{"$f":"VLOOKUP($AU14,$AN$13:$AR$16,3,FALSE)","v":0},{"$f":"VLOOKUP($AU14,$AN$13:$AR$16,4,FALSE)","v":0},{"$f":"VLOOKUP($AU14,$AN$13:$AR$16,5,FALSE)","v":0}]
[null,17,"2022-11-25","Wales","-","Iran",null,"-",null,"",{"$f":"IF(OR(G15=\"\",I15=\"\",'Results and table'!G15=\"\",'Results and table'!I15=\"\"),0,IF(G15='Results and table'!G15,2,0)+IF(I15='Results and table'!I15,2,0)+IF(J15='Results and table'!J15,2,0))","v":0},3,{"$f":"VLOOKUP(L15,AT13:AY16,2,FALSE)","v":"USA"},{"$f":"VLOOKUP(M15,$AU$13:$AY$16,2,FALSE)","v":0},{"$f":"VLOOKUP(M15,$AU$13:$AY$16,3,FALSE)","v":0},{"$f":"VLOOKUP(M15,$AU$13:$AY$16,4,FALSE)","v":0},{"$f":"VLOOKUP(M15,$AU$13:$AY$16,5,FALSE)","v":0},null,"Quarterfinals",{"$f":"SUM(K87:K90)","v":0},{"$f":"P87","v":0},0,null,null,null,"Wales",0,0,0,"Iran",0,0,0,null,{"$f":"RANK($AJ15,$AJ$13:$AJ$16,1)+COUNTIF($AJ$13:$AJ15,$AJ15)-1","v":3},{"$f":"AK15+AL15+AM15","v":1},{"$f":"SUMPRODUCT(($AO$13:$AO$16=AO15)*($AR$13:$AR$16=AR15)*($AP$13:$AP$16>AP15))","v":0},{"$f":"SUMPRODUCT(($AO$13:$AO$16=AO15)*($AR$13:$AR$16>AR15))","v":0},{"$f":"RANK(AO15,$AO$13:$AO$16)","v":1},"USA",{"$f":"SUMIF($Z$13:$Z$18,$AN15,$AA$13:$AA$18)+SUMIF($AD$13:$AD$18,$AN15,$AE$13:$AE$18)","v":0},{"$f":"SUMIF($Z$13:$Z$18,$AN15,$AB$13:$AB$18)+SUMIF($AD$13:$AD$18,AN15,$AF$13:$AF$18)","v":0},{"$f":"SUMIF($Z$13:$Z$18,$AN15,$AC$13:$AC$18)+SUMIF($AD$13:$AD$18,$AN15,$AG$13:$AG$18)","v":0},{"$f":"AP15-AQ15","v":0},null,3,{"$f":"VLOOKUP($AT15,$AI$13:$AR$16,6,FALSE)","v":"USA"},{"$f":"VLOOKUP($AU15,$AN$13:$AR$16,2,FALSE)","v":0},{"$f":"VLOOKUP($AU15,$AN$13:$AR$16,3,FALSE)","v":0},{"$f":"VLOOKUP($AU15,$AN$13:$AR$16,4,FALSE)","v":0},{"$f":"VLOOKUP($AU15,$AN$13:$AR$16,5,FALSE)","v":0}]
[null,20,"2022-11-25","England","-","USA",null,"-",null,"",{"$f":"IF(OR(G16=\"\",I16=\"\",'Results and table'!G16=\"\",'Results and table'!I16=\"\"),0,IF(G16='Results and table'!G16,2,0)+IF(I16='Results and table'!I16,2,0)+IF(J16='Results and table'!J16,2,0))","v":0},4,{"$f":"VLOOKUP(L16,AT13:AY16,2,FALSE)","v":"Wales"},{"$f":"VLOOKUP(M16,$AU$13:$AY$16,2,FALSE)","v":0},{"$f":"VLOOKUP(M16,$AU$13:$AY$16,3,FALSE)","v":0},{"$f":"VLOOKUP(M16,$AU$13:$AY$16,4,FALSE)","v":0},{"$f":"VLOOKUP(M16,$AU$13:$AY$16,5,FALSE)","v":0},null,"Semi-finals",{"$f":"SUM(K94:K95)","v":0},{"$f":"P94","v":0},0,null,null,null,"England",0,0,0,"USA",0,0,0,null,{"$f":"RANK($AJ16,$AJ$13:$AJ$16,1)+COUNTIF($AJ$13:$AJ16,$AJ16)-1","v":4},{"$f":"AK16+AL16+AM16","v":1},{"$f":"SUMPRODUCT(($AO$13:$AO$16=AO16)*($AR$13:$AR$16=AR16)*($AP$13:$AP$16>AP16))","v":0},{"$f":"SUMPRODUCT(($AO$13:$AO$16=AO16)*($AR$13:$AR$16>AR16))","v":0},{"$f":"RANK(AO16,$AO$13:$AO$16)","v":1},"Wales",{"$f":"SUMIF($Z$13:$Z$18,$AN16,$AA$13:$AA$18)+SUMIF($AD$13:$AD$18,$AN16,$AE$13:$AE$18)","v":0},{"$f":"SUMIF($Z$13:$Z$18,$AN16,$AB$13:$AB$18)+SUMIF($AD$13:$AD$18,AN16,$AF$13:$AF$18)","v":0},{"$f":"SUMIF($Z$13:$Z$18,$AN16,$AC$13:$AC$18)+SUMIF($AD$13:$AD$18,$AN16,$AG$13:$AG$18)","v":0},{"$f":"AP16-AQ16","v":0},null,4,{"$f":"VLOOKUP($AT16,$AI$13:$AR$16,6,FALSE)","v":"Wales"},{"$f":"VLOOKUP($AU16,$AN$13:$AR$16,2,FALSE)","v":0},{"$f":"VLOOKUP($AU16,$AN$13:$AR$16,3,FALSE)","v":0},{"$f":"VLOOKUP($AU16,$AN$13:$AR$16,4,FALSE)","v":0},{"$f":"VLOOKUP($AU16,$AN$13:$AR$16,5,FALSE)","v":0}]
[null,33,"2022-11-29","Wales","-","England",null,"-",null,"",{"$f":"IF(OR(G17=\"\",I17=\"\",'Results and table'!G17=\"\",'Results and table'!I17=\"\"),0,IF(G17='Results and table'!G17,2,0)+IF(I17='Results and table'!I17,2,0)+IF(J17='Results and table'!J17,2,0))","v":0},null,{"$f":"COUNTBLANK(G13:G18)+COUNTBLANK(I13:I18)","v":12},null,null,null,null,null,"Play-off for third place",{"$f":"SUM(K99)","v":0},{"$f":"P99","v":0},0,null,null,null,"Wales",0,0,0,"England",0,0,0]
[null,34,"2022-11-29","Iran","-","USA",null,"-",null,"",{"$f":"IF(OR(G18=\"\",I18=\"\",'Results and table'!G18=\"\",'Results and table'!I18=\"\"),0,IF(G18='Results and table'!G18,2,0)+IF(I18='Results and table'!I18,2,0)+IF(J18='Results and table'!J18,2,0))","v":0},null,null,null,null,null,null,null,"Final",{"$f":"SUM(K103)","v":0},{"$f":"P103","v":0},0,null,null,null,"Iran",0,0,0,"USA",0,0,0]
[null,null,null,null,null,null,null,null,null,null,null,null,null,null,null,null,null,null,"Bonus questions",0,{"$f":"SUM(X4:X6)","v":0},{"$f":"SUM(T19:U19)","v":0}]
[null,"Group C",null,null,null,null,null,null,null,null,null,null,null,null,null,null,null,null,"Sum",null,null,{"$f":"SUM(V13:V19)","v":0}]
[null,"Game","Date","Game",null,null,"Result",null,null,"1X2","Points",null,"Group C","Points","GF","GA"," +/-",null,null,null,null,null,null,null,null,"Team 1","Points","GF","GA","Team 2","Points","GF","GA",null,"Rank ties","Rank total","Rank goals","Rank Diff","Rank Points","Team","Points","GF","GA","Diff",null,"Rank","Team","Points","GF","GA","Diff"]
[null,7,"2022-11-22","Mexico","-","Poland",null,"-",null,{"$f":"IF(OR(ISBLANK(G22),ISBLANK(I22)),\"\",IF(G22>I22,1,IF(G22<I22,2,\"X\")))","v":""},{"$f":"IF(OR(G22=\"\",I22=\"\",'Results and table'!G22=\"\",'Results and table'!I22=\"\"),0,IF(G22='Results and table'!G22,2,0)+IF(I22='Results and table'!I22,2,0)+IF(J22='Results and table'!J22,2,0))","v":0},1,{"$f":"VLOOKUP(L22,AT22:AY25,2,FALSE)","v":"Argentina"},{"$f":"VLOOKUP(M22,$AU$22:$AY$25,2,FALSE)","v":0},{"$f":"VLOOKUP(M22,$AU$22:$AY$25,3,FALSE)","v":0},{"$f":"VLOOKUP(M22,$AU$22:$AY$25,4,FALSE)","v":0},{"$f":"VLOOKUP(M22,$AU$22:$AY$25,5,FALSE)","v":0},null,null,null,null,null,null,null,null,{"$f":"D22","v":"Mexico"},{"$f":"IF(G22=\"\",0,IF($G22<$I22,0,IF($G22=$I22,1,3)))","v":0},{"$f":"G22","v":0},{"$f":"I22","v":0},{"$f":"F22","v":"Poland"},{"$f":"IF(I22=\"\",0,IF(I22<G22,0,IF(G22=I22,1,3)))","v":0},{"$f":"I22","v":0},{"$f":"G22","v":0},null,{"$f":"RANK($AJ22,$AJ$22:$AJ$25,1)+COUNTIF($AJ$22:$AJ22,$AJ22)-1","v":1},{"$f":"AK22+AL22+AM22","v":1},{"$f":"SUMPRODUCT(($AO$22:$AO$25=AO22)*($AR$22:$AR$25=AR22)*($AP$22:$AP$25>AP22))","v":0},{"$f":"SUMPRODUCT(($AO$22:$AO$25=AO22)*($AR$22:$AR$25>AR22))","v":0},{"$f":"RANK(AO22,$AO$22:$AO$25)","v":1},"Argentina",{"$f":"SUMIF($Z$22:$Z$27,$AN22,$AA$22:$AA$27)+SUMIF($AD$22:$AD$27,$AN22,$AE$22:$AE$27)","v":0},{"$f":"SUMIF($Z$22:$Z$27,$AN22,$AB$22:$AB$27)+SUMIF($AD$22:$AD$27,$AN22,$AF$22:$AF$27)","v":0},{"$f":"SUMIF($Z$22:$Z$27,$AN22,$AC$22:$AC$27)+SUMIF($AD$22:$AD$27,$AN22,$AG$22:$AG$27)","v":0},{"$f":"AP22-AQ22","v":0},null,1,{"$f":"VLOOKUP($AT22,$AI$22:$AR$25,6,FALSE)","v":"Argentina"},{"$f":"VLOOKUP($AU22,$AN$22:$AR$25,2,FALSE)","v":0},{"$f":"VLOOKUP($AU22,$AN$22:$AR$25,3,FALSE)","v":0},{"$f":"VLOOKUP($AU22,$AN$22:$AR$25,4,FALSE)","v":0},{"$f":"VLOOKUP($AU22,$AN$22:$AR$25,5,FALSE)","v":0}]
[null,8,"2022-11-22","Argentina","-","Saudi Arabia",null,"-",null,{"$f":"IF(OR(ISBLANK(G23),ISBLANK(I23)),\"\",IF(G23>I23,1,IF(G23<I23,2,\"X\")))","v":""},{"$f":"IF(OR(G23=\"\",I23=\"\",'Results and table'!G23=\"\",'Results and table'!I23=\"\"),0,IF(G23='Results and table'!G23,2,0)+IF(I23='Results and table'!I23,2,0)+IF(J23='Results and table'!J23,2,0))","v":0},2,{"$f":"VLOOKUP(L23,AT22:AY25,2,FALSE)","v":"Saudi Arabia"},{"$f":"VLOOKUP(M23,$AU$22:$AY$25,2,FALSE)","v":0},{"$f":"VLOOKUP(M23,$AU$22:$AY$25,3,FALSE)","v":0},{"$f":"VLOOKUP(M23,$AU$22:$AY$25,4,FALSE)","v":0},{"$f":"VLOOKUP(M23,$AU$22:$AY$25,5,FALSE)","v":0},null,null,null,null,null,null,null,null,{"$f":"D23","v":"Argentina"},0,0,0,{"$f":"F23","v":"Saudi Arabia"},0,0,0,null,{"$f":"RANK($AJ23,$AJ$22:$AJ$25,1)+COUNTIF($AJ$22:$AJ23,$AJ23)-1","v":2},{"$f":"AK23+AL23+AM23","v":1},{"$f":"SUMPRODUCT(($AO$22:$AO$25=AO23)*($AR$22:$AR$25=AR23)*($AP$22:$AP$25>AP23))","v":0},{"$f":"SUMPRODUCT(($AO$22:$AO$25=AO23)*($AR$22:$AR$25>AR23))","v":0},{"$f":"RANK(AO23,$AO$22:$AO$25)","v":1},"Saudi Arabia",{"$f":"SUMIF($Z$22:$Z$27,$AN23,$AA$22:$AA$27)+SUMIF($AD$22:$AD$27,$AN23,$AE$22:$AE$27)","v":0},{"$f":"SUMIF($Z$22:$Z$27,$AN23,$AB$22:$AB$27)+SUMIF($AD$22:$AD$27,$AN23,$AF$22:$AF$27)","v":0},{"$f":"SUMIF($Z$22:$Z$27,$AN23,$AC$22:$AC$27)+SUMIF($AD$22:$AD$27,$AN23,$AG$22:$AG$27)","v":0},{"$f":"AP23-AQ23","v":0},null,2,{"$f":"VLOOKUP($AT23,$AI$22:$AR$25,6,FALSE)","v":"Saudi Arabia"},{"$f":"VLOOKUP($AU23,$AN$22:$AR$25,2,FALSE)","v":0},{"$f":"VLOOKUP($AU23,$AN$22:$AR$25,3,FALSE)","v":0},{"$f":"VLOOKUP($AU23,$AN$22:$AR$25,4,FALSE)","v":0},{"$f":"VLOOKUP($AU23,$AN$22:$AR$25,5,FALSE)","v":0}]
[null,22,"2022-11-26","Poland","-","Saudi Arabia",null,"-",null,"",{"$f":"IF(OR(G24=\"\",I24=\"\",'Results and table'!G24=\"\",'Results and table'!I24=\"\"),0,IF(G24='Results and table'!G24,2,0)+IF(I24='Results and table'!I24,2,0)+IF(J24='Results and table'!J24,2,0))","v":0},3,{"$f":"VLOOKUP(L24,AT22:AY25,2,FALSE)","v":"Mexico"},{"$f":"VLOOKUP(M24,$AU$22:$AY$25,2,FALSE)","v":0},{"$f":"VLOOKUP(M24,$AU$22:$AY$25,3,FALSE)","v":0},{"$f":"VLOOKUP(M24,$AU$22:$AY$25,4,FALSE)","v":0},{"$f":"VLOOKUP(M24,$AU$22:$AY$25,5,FALSE)","v":0},null,null,null,null,null,null,null,null,"Poland",0,0,0,"Saudi Arabia",0,0,0,null,{"$f":"RANK($AJ24,$AJ$22:$AJ$25,1)+COUNTIF($AJ$22:$AJ24,$AJ24)-1","v":3},{"$f":"AK24+AL24+AM24","v":1},0,0,1,"Mexico",0,0,0,0,null,3,"Mexico",0,0,0,0]
[null,24,"2022-11-26","Argentina","-","Mexico",null,"-",null,"",{"$f":"IF(OR(G25=\"\",I25=\"\",'Results and table'!G25=\"\",'Results and table'!I25=\"\"),0,IF(G25='Results and table'!G25,2,0)+IF(I25='Results and table'!I25,2,0)+IF(J25='Results and table'!J25,2,0))","v":0},4,{"$f":"VLOOKUP(L25,AT22:AY25,2,FALSE)","v":"Poland"},{"$f":"VLOOKUP(M25,$AU$22:$AY$25,2,FALSE)","v":0},{"$f":"VLOOKUP(M25,$AU$22:$AY$25,3,FALSE)","v":0},{"$f":"VLOOKUP(M25,$AU$22:$AY$25,4,FALSE)","v":0},{"$f":"VLOOKUP(M25,$AU$22:$AY$25,5,FALSE)","v":0},null,null,null,null,null,null,null,null,"Argentina",0,0,0,"Mexico",0,0,0,null,{"$f":"RANK($AJ25,$AJ$22:$AJ$25,1)+COUNTIF($AJ$22:$AJ25,$AJ25)-1","v":4},{"$f":"AK25+AL25+AM25","v":1},0,0,1,"Poland",0,0,0,0,null,4,"Poland",0,0,0,0]
[null,37,"2022-11-30","Poland","-","Argentina",null,"-",null,"",{"$f":"IF(OR(G26=\"\",I26=\"\",'Results and table'!G26=\"\",'Results and table'!I26=\"\"),0,IF(G26='Results and table'!G26,2,0)+IF(I26='Results and table'!I26,2,0)+IF(J26='Results and table'!J26,2,0))","v":0},null,{"$f":"COUNTBLANK(G22:G27)+COUNTBLANK(I22:I27)","v":12},null,null,null,null,null,null,null,null,null,null,null,null,"Poland",0,0,0,"Argentina",0,0,0]
[null,38,"2022-11-30","Saudi Arabia","-","Mexico",null,"-",null,"",{"$f":"IF(OR(G27=\"\",I27=\"\",'Results and table'!G27=\"\",'Results and table'!I27=\"\"),0,IF(G27='Results and table'!G27,2,0)+IF(I27='Results and table'!I27,2,0)+IF(J27='Results and table'!J27,2,0))","v":0},null,null,null,null,null,null,null,null,null,null,null,null,null,null,"Saudi Arabia",0,0,0,"Mexico",0,0,0]
[]
[null,"Group D"]
[null,"Game","Date","Game",null,null,"Result",null,null,"1X2","Points",null,"Group D","Points","GF","GA"," +/-",null,null,null,null,null,null,null,null,"Team 1","Points","GF","GA","Team 2","Points","GF","GA",null,"Rank ties","Rank total","Rank goals","Rank Diff","Rank Points","Team","Points","GF","GA","Diff",null,"Rank","Team","Points","GF","GA","Diff"]
[null,5,"2022-11-22","France","-","Australia",null,"-",null,{"$f":"IF(OR(ISBLANK(G31),ISBLANK(I31)),\"\",IF(G31>I31,1,IF(G31<I31,2,\"X\")))","v":""},{"$f":"IF(OR(G31=\"\",I31=\"\",'Results and table'!G31=\"\",'Results and table'!I31=\"\"),0,IF(G31='Results and table'!G31,2,0)+IF(I31='Results and table'!I31,2,0)+IF(J31='Results and table'!J31,2,0))","v":0},1,{"$f":"VLOOKUP(L31,AT31:AY34,2,FALSE)","v":"France"},{"$f":"VLOOKUP(M31,$AU$31:$AY$34,2,FALSE)","v":0},{"$f":"VLOOKUP(M31,$AU$31:$AY$34,3,FALSE)","v":0},{"$f":"VLOOKUP(M31,$AU$31:$AY$34,4,FALSE)","v":0},{"$f":"VLOOKUP(M31,$AU$31:$AY$34,5,FALSE)","v":0},null,null,null,null,null,null,null,null,{"$f":"D31","v":"France"},{"$f":"IF(G31=\"\",0,IF($G31<$I31,0,IF($G31=$I31,1,3)))","v":0},{"$f":"G31","v":0},{"$f":"I31","v":0},{"$f":"F31","v":"Australia"},{"$f":"IF(I31=\"\",0,IF(I31<G31,0,IF(G31=I31,1,3)))","v":0},{"$f":"I31","v":0},{"$f":"G31","v":0},null,{"$f":"RANK($AJ31,$AJ$31:$AJ$34,1)+COUNTIF($AJ$31:$AJ31,$AJ31)-1","v":1},{"$f":"AK31+AL31+AM31","v":1},{"$f":"SUMPRODUCT(($AO$31:$AO$34=AO31)*($AR$31:$AR$34=AR31)*($AP$31:$AP$34>AP31))","v":0},{"$f":"SUMPRODUCT(($AO$31:$AO$34=AO31)*($AR$31:$AR$34>AR31))","v":0},{"$f":"RANK(AO31,$AO$31:$AO$34)","v":1},"France",{"$f":"SUMIF($Z$31:$Z$36,$AN31,$AA$31:$AA$36)+SUMIF($AD$31:$AD$36,$AN31,$AE$31:$AE$36)","v":0},{"$f":"SUMIF($Z$31:$Z$36,$AN31,$AB$31:$AB$36)+SUMIF($AD$31:$AD$36,$AN31,$AF$31:$AF$36)","v":0},{"$f":"SUMIF($Z$31:$Z$36,$AN31,$AC$31:$AC$36)+SUMIF($AD$31:$AD$36,$AN31,$AG$31:$AG$36)","v":0},{"$f":"AP31-AQ31","v":0},null,1,{"$f":"VLOOKUP($AT31,$AI$31:$AR$34,6,FALSE)","v":"France"},{"$f":"VLOOKUP($AU31,$AN$31:$AR$34,2,FALSE)","v":0},{"$f":"VLOOKUP($AU31,$AN$31:$AR$34,3,FALSE)","v":0},{"$f":"VLOOKUP($AU31,$AN$31:$AR$34,4,FALSE)","v":0},{"$f":"VLOOKUP($AU31,$AN$31:$AR$34,5,FALSE)","v":0}]
[null,6,"2022-11-22","Denmark","-","Tunisia",null,"-",null,{"$f":"IF(OR(ISBLANK(G32),ISBLANK(I32)),\"\",IF(G32>I32,1,IF(G32<I32,2,\"X\")))","v":""},{"$f":"IF(OR(G32=\"\",I32=\"\",'Results and table'!G32=\"\",'Results and table'!I32=\"\"),0,IF(G32='Results and table'!G32,2,0)+IF(I32='Results and table'!I32,2,0)+IF(J32='Results and table'!J32,2,0))","v":0},2,{"$f":"VLOOKUP(L32,AT31:AY34,2,FALSE)","v":"Denmark"},{"$f":"VLOOKUP(M32,$AU$31:$AY$34,2,FALSE)","v":0},{"$f":"VLOOKUP(M32,$AU$31:$AY$34,3,FALSE)","v":0},{"$f":"VLOOKUP(M32,$AU$31:$AY$34,4,FALSE)","v":0},{"$f":"VLOOKUP(M32,$AU$31:$AY$34,5,FALSE)","v":0},null,null,null,null,null,null,null,null,{"$f":"D32","v":"Denmark"},0,0,0,{"$f":"F32","v":"Tunisia"},0,0,0,null,{"$f":"RANK($AJ32,$AJ$31:$AJ$34,1)+COUNTIF($AJ$31:$AJ32,$AJ32)-1","v":2},{"$f":"AK32+AL32+AM32","v":1},{"$f":"SUMPRODUCT(($AO$31:$AO$34=AO32)*($AR$31:$AR$34=AR32)*($AP$31:$AP$34>AP32))","v":0},{"$f":"SUMPRODUCT(($AO$31:$AO$34=AO32)*($AR$31:$AR$34>AR32))","v":0},{"$f":"RANK(AO32,$AO$31:$AO$34)","v":1},"Denmark",{"$f":"SUMIF($Z$31:$Z$36,$AN32,$AA$31:$AA$36)+SUMIF($AD$31:$AD$36,$AN32,$AE$31:$AE$36)","v":0},{"$f":"SUMIF($Z$31:$Z$36,$AN32,$AB$31:$AB$36)+SUMIF($AD$31:$AD$36,$AN32,$AF$31:$AF$36)","v":0},{"$f":"SUMIF($Z$31:$Z$36,$AN32,$AC$31:$AC$36)+SUMIF($AD$31:$AD$36,$AN32,$AG$31:$AG$36)","v":0},{"$f":"AP32-AQ32","v":0},null,2,{"$f":"VLOOKUP($AT32,$AI$31:$AR$34,6,FALSE)","v":"Denmark"},{"$f":"VLOOKUP($AU32,$AN$31:$AR$34,2,FALSE)","v":0},{"$f":"VLOOKUP($AU32,$AN$31:$AR$34,3,FALSE)","v":0},{"$f":"VLOOKUP($AU32,$AN$31:$AR$34,4,FALSE)","v":0},{"$f":"VLOOKUP($AU32,$AN$31:$AR$34,5,FALSE)","v":0}]
[null,21,"2022-11-26","Tunisia","-","Australia",null,"-",null,"",{"$f":"IF(OR(G33=\"\",I33=\"\",'Results and table'!G33=\"\",'Results and table'!I33=\"\"),0,IF(G33='Results and table'!G33,2,0)+IF(I33='Results and table'!I33,2,0)+IF(J33='Results and table'!J33,2,0))","v":0},3,{"$f":"VLOOKUP(L33,AT31:AY34,2,FALSE)","v":"Tunisia"},{"$f":"VLOOKUP(M33,$AU$31:$AY$34,2,FALSE)","v":0},{"$f":"VLOOKUP(M33,$AU$31:$AY$34,3,FALSE)","v":0},{"$f":"VLOOKUP(M33,$AU$31:$AY$34,4,FALSE)","v":0},{"$f":"VLOOKUP(M33,$AU$31:$AY$34,5,FALSE)","v":0},null,null,null,null,null,null,null,null,"Tunisia",0,0,0,"Australia",0,0,0,null,{"$f":"RANK($AJ33,$AJ$31:$AJ$34,1)+COUNTIF($AJ$31:$AJ33,$AJ33)-1","v":3},{"$f":"AK33+AL33+AM33","v":1},0,0,1,"Tunisia",0,0,0,0,null,3,"Tunisia",0,0,0,0]
[null,23,"2022-11-26","France","-","Denmark",null,"-",null,"",{"$f":"IF(OR(G34=\"\",I34=\"\",'Results and table'!G34=\"\",'Results and table'!I34=\"\"),0,IF(G34='Results and table'!G34,2,0)+IF(I34='Results and table'!I34,2,0)+IF(J34='Results and table'!J34,2,0))","v":0},4,{"$f":"VLOOKUP(L34,AT31:AY34,2,FALSE)","v":"Australia"},{"$f":"VLOOKUP(M34,$AU$31:$AY$34,2,FALSE)","v":0},{"$f":"VLOOKUP(M34,$AU$31:$AY$34,3,FALSE)","v":0},{"$f":"VLOOKUP(M34,$AU$31:$AY$34,4,FALSE)","v":0},{"$f":"VLOOKUP(M34,$AU$31:$AY$34,5,FALSE)","v":0},null,null,null,null,null,null,null,null,"France",0,0,0,"Denmark",0,0,0,null,{"$f":"RANK($AJ34,$AJ$31:$AJ$34,1)+COUNTIF($AJ$31:$AJ34,$AJ34)-1","v":4},{"$f":"AK34+AL34+AM34","v":1},0,0,1,"Australia",0,0,0,0,null,4,"Australia",0,0,0,0]
[null,39,"2022-11-30","Australia","-","Denmark",null,"-",null,"",{"$f":"IF(OR(G35=\"\",I35=\"\",'Results and table'!G35=\"\",'Results and table'!I35=\"\"),0,IF(G35='Results and table'!G35,2,0)+IF(I35='Results and table'!I35,2,0)+IF(J35='Results and table'!J35,2,0))","v":0},null,{"$f":"COUNTBLANK(G31:G36)+COUNTBLANK(I31:I36)","v":12},null,null,null,null,null,null,null,null,null,null,null,null,"Australia",0,0,0,"Denmark",0,0,0]
[null,40,"2022-11-30","Tunisia","-","France",null,"-",null,"",{"$f":"IF(OR(G36=\"\",I36=\"\",'Results and table'!G36=\"\",'Results and table'!I36=\"\"),0,IF(G36='Results and table'!G36,2,0)+IF(I36='Results and table'!I36,2,0)+IF(J36='Results and table'!J36,2,0))","v":0},null,null,null,null,null,null,null,null,null,null,null,null,null,null,"Tunisia",0,0,0,"France",0,0,0]
[]
[null,"Group E"]
[null,"Game","Date","Game",null,null,"Result",null,null,"1X2","Points",null,"Group E","Points","GF","GA"," +/-",null,null,null,null,null,null,null,null,"Team 1","Points","GF","GA","Team 2","Points","GF","GA",null,"Rank ties","Rank total","Rank goals","Rank Diff","Rank Points","Team","Points","GF","GA","Diff",null,"Rank","Team","Points","GF","GA","Diff"]
[null,10,"2022-11-23","Spain","-","Costa Rica",null,"-",null,{"$f":"IF(OR(ISBLANK(G40),ISBLANK(I40)),\"\",IF(G40>I40,1,IF(G40<I40,2,\"X\")))","v":""},{"$f":"IF(OR(G40=\"\",I40=\"\",'Results and table'!G40=\"\",'Results and table'!I40=\"\"),0,IF(G40='Results and table'!G40,2,0)+IF(I40='Results and table'!I40,2,0)+IF(J40='Results and table'!J40,2,0))","v":0},1,{"$f":"VLOOKUP(L40,AT40:AY43,2,FALSE)","v":"Spain"},{"$f":"VLOOKUP(M40,$AU$40:$AY$43,2,FALSE)","v":0},{"$f":"VLOOKUP(M40,$AU$40:$AY$43,3,FALSE)","v":0},{"$f":"VLOOKUP(M40,$AU$40:$AY$43,4,FALSE)","v":0},{"$f":"VLOOKUP(M40,$AU$40:$AY$43,5,FALSE)","v":0},null,null,null,null,null,null,null,null,{"$f":"D40","v":"Spain"},{"$f":"IF(G40=\"\",0,IF($G40<$I40,0,IF($G40=$I40,1,3)))","v":0},{"$f":"G40","v":0},{"$f":"I40","v":0},{"$f":"F40","v":"Costa Rica"},{"$f":"IF(I40=\"\",0,IF(I40<G40,0,IF(G40=I40,1,3)))","v":0},{"$f":"I40","v":0},{"$f":"G40","v":0},null,{"$f":"RANK($AJ40,$AJ$40:$AJ$43,1)+COUNTIF($AJ$40:$AJ40,$AJ40)-1","v":1},{"$f":"AK40+AL40+AM40","v":1},{"$f":"SUMPRODUCT(($AO$40:$AO$43=AO40)*($AR$40:$AR$43=AR40)*($AP$40:$AP$43>AP40))","v":0},{"$f":"SUMPRODUCT(($AO$40:$AO$43=AO40)*($AR$40:$AR$43>AR40))","v":0},{"$f":"RANK(AO40,$AO$40:$AO$43)","v":1},"Spain",{"$f":"SUMIF($Z$40:$Z$45,$AN40,$AA$40:$AA$45)+SUMIF($AD$40:$AD$45,$AN40,$AE$40:$AE$45)","v":0},{"$f":"SUMIF($Z$40:$Z$45,$AN40,$AB$40:$AB$45)+SUMIF($AD$40:$AD$45,$AN40,$AF$40:$AF$45)","v":0},{"$f":"SUMIF($Z$40:$Z$45,$AN40,$AC$40:$AC$45)+SUMIF($AD$40:$AD$45,$AN40,$AG$40:$AG$45)","v":0},{"$f":"AP40-AQ40","v":0},null,1,{"$f":"VLOOKUP($AT40,$AI$40:$AR$43,6,FALSE)","v":"Spain"},{"$f":"VLOOKUP($AU40,$AN$40:$AR$43,2,FALSE)","v":0},{"$f":"VLOOKUP($AU40,$AN$40:$AR$43,3,FALSE)","v":0},{"$f":"VLOOKUP($AU40,$AN$40:$AR$43,4,FALSE)","v":0},{"$f":"VLOOKUP($AU40,$AN$40:$AR$43,5,FALSE)","v":0}]
[null,11,"2022-11-23","Germany","-","Japan",null,"-",null,{"$f":"IF(OR(ISBLANK(G41),ISBLANK(I41)),\"\",IF(G41>I41,1,IF(G41<I41,2,\"X\")))","v":""},{"$f":"IF(OR(G41=\"\",I41=\"\",'Results and table'!G41=\"\",'Results and table'!I41=\"\"),0,IF(G41='Results and table'!G41,2,0)+IF(I41='Results and table'!I41,2,0)+IF(J41='Results and table'!J41,2,0))","v":0},2,{"$f":"VLOOKUP(L41,AT40:AY43,2,FALSE)","v":"Germany"},{"$f":"VLOOKUP(M41,$AU$40:$AY$43,2,FALSE)","v":0},{"$f":"VLOOKUP(M41,$AU$40:$AY$43,3,FALSE)","v":0},{"$f":"VLOOKUP(M41,$AU$40:$AY$43,4,FALSE)","v":0},{"$f":"VLOOKUP(M41,$AU$40:$AY$43,5,FALSE)","v":0},null,null,null,null,null,null,null,null,{"$f":"D41","v":"Germany"},0,0,0,{"$f":"F41","v":"Japan"},0,0,0,null,{"$f":"RANK($AJ41,$AJ$40:$AJ$43,1)+COUNTIF($AJ$40:$AJ41,$AJ41)-1","v":2},{"$f":"AK41+AL41+AM41","v":1},{"$f":"SUMPRODUCT(($AO$40:$AO$43=AO41)*($AR$40:$AR$43=AR41)*($AP$40:$AP$43>AP41))","v":0},{"$f":"SUMPRODUCT(($AO$40:$AO$43=AO41)*($AR$40:$AR$43>AR41))","v":0},{"$f":"RANK(AO41,$AO$40:$AO$43)","v":1},"Germany",{"$f":"SUMIF($Z$40:$Z$45,$AN41,$AA$40:$AA$45)+SUMIF($AD$40:$AD$45,$AN41,$AE$40:$AE$45)","v":0},{"$f":"SUMIF($Z$40:$Z$45,$AN41,$AB$40:$AB$45)+SUMIF($AD$40:$AD$45,$AN41,$AF$40:$AF$45)","v":0},{"$f":"SUMIF($Z$40:$Z$45,$AN41,$AC$40:$AC$45)+SUMIF($AD$40:$AD$45,$AN41,$AG$40:$AG$45)","v":0},{"$f":"AP41-AQ41","v":0},null,2,{"$f":"VLOOKUP($AT41,$AI$40:$AR$43,6,FALSE)","v":"Germany"},{"$f":"VLOOKUP($AU41,$AN$40:$AR$43,2,FALSE)","v":0},{"$f":"VLOOKUP($AU41,$AN$40:$AR$43,3,FALSE)","v":0},{"$f":"VLOOKUP($AU41,$AN$40:$AR$43,4,FALSE)","v":0},{"$f":"VLOOKUP($AU41,$AN$40:$AR$43,5,FALSE)","v":0}]
[null,25,"2022-11-27","Japan","-","Costa Rica",null,"-",null,"",{"$f":"IF(OR(G42=\"\",I42=\"\",'Results and table'!G42=\"\",'Results and table'!I42=\"\"),0,IF(G42='Results and table'!G42,2,0)+IF(I42='Results and table'!I42,2,0)+IF(J42='Results and table'!J42,2,0))","v":0},3,{"$f":"VLOOKUP(L42,AT40:AY43,2,FALSE)","v":"Japan"},{"$f":"VLOOKUP(M42,$AU$40:$AY$43,2,FALSE)","v":0},{"$f":"VLOOKUP(M42,$AU$40:$AY$43,3,FALSE)","v":0},{"$f":"VLOOKUP(M42,$AU$40:$AY$43,4,FALSE)","v":0},{"$f":"VLOOKUP(M42,$AU$40:$AY$43,5,FALSE)","v":0},null,null,null,null,null,null,null,null,"Japan",0,0,0,"Costa Rica",0,0,0,null,{"$f":"RANK($AJ42,$AJ$40:$AJ$43,1)+COUNTIF($AJ$40:$AJ42,$AJ42)-1","v":3},{"$f":"AK42+AL42+AM42","v":1},0,0,1,"Japan",0,0,0,0,null,3,"Japan",0,0,0,0]
[null,28,"2022-11-27","Spain","-","Germany",null,"-",null,"",{"$f":"IF(OR(G43=\"\",I43=\"\",'Results and table'!G43=\"\",'Results and table'!I43=\"\"),0,IF(G43='Results and table'!G43,2,0)+IF(I43='Results and table'!I43,2,0)+IF(J43='Results and table'!J43,2,0))","v":0},4,{"$f":"VLOOKUP(L43,AT40:AY43,2,FALSE)","v":"Costa Rica"},{"$f":"VLOOKUP(M43,$AU$40:$AY$43,2,FALSE)","v":0},{"$f":"VLOOKUP(M43,$AU$40:$AY$43,3,FALSE)","v":0},{"$f":"VLOOKUP(M43,$AU$40:$AY$43,4,FALSE)","v":0},{"$f":"VLOOKUP(M43,$AU$40:$AY$43,5,FALSE)","v":0},null,null,null,null,null,null,null,null,"Spain",0,0,0,"Germany",0,0,0,null,{"$f":"RANK($AJ43,$AJ$40:$AJ$43,1)+COUNTIF($AJ$40:$AJ43,$AJ43)-1","v":4},{"$f":"AK43+AL43+AM43","v":1},0,0,1,"Costa Rica",0,0,0,0,null,4,"Costa Rica",0,0,0,0]
[null,43,"2022-12-01","Japan","-","Spain",null,"-",null,"",{"$f":"IF(OR(G44=\"\",I44=\"\",'Results and table'!G44=\"\",'Results and table'!I44=\"\"),0,IF(G44='Results and table'!G44,2,0)+IF(I44='Results and table'!I44,2,0)+IF(J44='Results and table'!J44,2,0))","v":0},null,{"$f":"COUNTBLANK(G40:G45)+COUNTBLANK(I40:I45)","v":12},null,null,null,null,null,null,null,null,null,null,null,null,"Japan",0,0,0,"Spain",0,0,0]
[null,44,"2022-12-01","Costa Rica","-","Germany",null,"-",null,"",{"$f":"IF(OR(G45=\"\",I45=\"\",'Results and table'!G45=\"\",'Results and table'!I45=\"\"),0,IF(G45='Results and table'!G45,2,0)+IF(I45='Results and table'!I45,2,0)+IF(J45='Results and table'!J45,2,0))","v":0},null,null,null,null,null,null,null,null,null,null,null,null,null,null,"Costa Rica",0,0,0,"Germany",0,0,0]
[]
[null,"Group F"]
[null,"Game","Date","Game",null,null,"Result",null,null,"1X2","Points",null,"Group F","Points","GF","GA"," +/-",null,null,null,null,null,null,null,null,"Team 1","Points","GF","GA","Team 2","Points","GF","GA",null,"Rank ties","Rank total","Rank goals","Rank Diff","Rank Points","Team","Points","GF","GA","Diff",null,"Rank","Team","Points","GF","GA","Diff"]
[null,9,"2022-11-23","Belgium","-","Canada",null,"-",null,{"$f":"IF(OR(ISBLANK(G49),ISBLANK(I49)),\"\",IF(G49>I49,1,IF(G49<I49,2,\"X\")))","v":""},{"$f":"IF(OR(G49=\"\",I49=\"\",'Results and table'!G49=\"\",'Results and table'!I49=\"\"),0,IF(G49='Results and table'!G49,2,0)+IF(I49='Results and table'!I49,2,0)+IF(J49='Results and table'!J49,2,0))","v":0},1,{"$f":"VLOOKUP(L49,AT49:AY52,2,FALSE)","v":"Belgium"},{"$f":"VLOOKUP(M49,$AU$49:$AY$52,2,FALSE)","v":0},{"$f":"VLOOKUP(M49,$AU$49:$AY$52,3,FALSE)","v":0},{"$f":"VLOOKUP(M49,$AU$49:$AY$52,4,FALSE)","v":0},{"$f":"VLOOKUP(M49,$AU$49:$AY$52,5,FALSE)","v":0},null,null,null,null,null,null,null,null,{"$f":"D49","v":"Belgium"},{"$f":"IF(G49=\"\",0,IF($G49<$I49,0,IF($G49=$I49,1,3)))","v":0},{"$f":"G49","v":0},{"$f":"I49","v":0},{"$f":"F49","v":"Canada"},{"$f":"IF(I49=\"\",0,IF(I49<G49,0,IF(G49=I49,1,3)))","v":0},{"$f":"I49","v":0},{"$f":"G49","v":0},null,{"$f":"RANK($AJ49,$AJ$49:$AJ$52,1)+COUNTIF($AJ$49:$AJ49,$AJ49)-1","v":1},{"$f":"AK49+AL49+AM49","v":1},{"$f":"SUMPRODUCT(($AO$49:$AO$52=AO49)*($AR$49:$AR$52=AR49)*($AP$49:$AP$52>AP49))","v":0},{"$f":"SUMPRODUCT(($AO$49:$AO$52=AO49)*($AR$49:$AR$52>AR49))","v":0},{"$f":"RANK(AO49,$AO$49:$AO$52)","v":1},"Belgium",{"$f":"SUMIF($Z$49:$Z$54,$AN49,$AA$49:$AA$54)+SUMIF($AD$49:$AD$54,$AN49,$AE$49:$AE$54)","v":0},{"$f":"SUMIF($Z$49:$Z$54,$AN49,$AB$49:$AB$54)+SUMIF($AD$49:$AD$54,$AN49,$AF$49:$AF$54)","v":0},{"$f":"SUMIF($Z$49:$Z$54,$AN49,$AC$49:$AC$54)+SUMIF($AD$49:$AD$54,$AN49,$AG$49:$AG$54)","v":0},{"$f":"AP49-AQ49","v":0},null,1,{"$f":"VLOOKUP($AT49,$AI$49:$AR$52,6,FALSE)","v":"Belgium"},{"$f":"VLOOKUP($AU49,$AN$49:$AR$52,2,FALSE)","v":0},{"$f":"VLOOKUP($AU49,$AN$49:$AR$52,3,FALSE)","v":0},{"$f":"VLOOKUP($AU49,$AN$49:$AR$52,4,FALSE)","v":0},{"$f":"VLOOKUP($AU49,$AN$49:$AR$52,5,FALSE)","v":0}]
[null,12,"2022-11-23","Morocco","-","Croatia",null,"-",null,{"$f":"IF(OR(ISBLANK(G50),ISBLANK(I50)),\"\",IF(G50>I50,1,IF(G50<I50,2,\"X\")))","v":""},{"$f":"IF(OR(G50=\"\",I50=\"\",'Results and table'!G50=\"\",'Results and table'!I50=\"\"),0,IF(G50='Results and table'!G50,2,0)+IF(I50='Results and table'!I50,2,0)+IF(J50='Results and table'!J50,2,0))","v":0},2,{"$f":"VLOOKUP(L50,AT49:AY52,2,FALSE)","v":"Canada"},{"$f":"VLOOKUP(M50,$AU$49:$AY$52,2,FALSE)","v":0},{"$f":"VLOOKUP(M50,$AU$49:$AY$52,3,FALSE)","v":0},{"$f":"VLOOKUP(M50,$AU$49:$AY$52,4,FALSE)","v":0},{"$f":"VLOOKUP(M50,$AU$49:$AY$52,5,FALSE)","v":0},null,null,null,null,null,null,null,null,{"$f":"D50","v":"Morocco"},0,0,0,{"$f":"F50","v":"Croatia"},0,0,0,null,{"$f":"RANK($AJ50,$AJ$49:$AJ$52,1)+COUNTIF($AJ$49:$AJ50,$AJ50)-1","v":2},{"$f":"AK50+AL50+AM50","v":1},{"$f":"SUMPRODUCT(($AO$49:$AO$52=AO50)*($AR$49:$AR$52=AR50)*($AP$49:$AP$52>AP50))","v":0},{"$f":"SUMPRODUCT(($AO$49:$AO$52=AO50)*($AR$49:$AR$52>AR50))","v":0},{"$f":"RANK(AO50,$AO$49:$AO$52)","v":1},"Canada",{"$f":"SUMIF($Z$49:$Z$54,$AN50,$AA$49:$AA$54)+SUMIF($AD$49:$AD$54,$AN50,$AE$49:$AE$54)","v":0},{"$f":"SUMIF($Z$49:$Z$54,$AN50,$AB$49:$AB$54)+SUMIF($AD$49:$AD$54,$AN50,$AF$49:$AF$54)","v":0},{"$f":"SUMIF($Z$49:$Z$54,$AN50,$AC$49:$AC$54)+SUMIF($AD$49:$AD$54,$AN50,$AG$49:$AG$54)","v":0},{"$f":"AP50-AQ50","v":0},null,2,{"$f":"VLOOKUP($AT50,$AI$49:$AR$52,6,FALSE)","v":"Canada"},{"$f":"VLOOKUP($AU50,$AN$49:$AR$52,2,FALSE)","v":0},{"$f":"VLOOKUP($AU50,$AN$49:$AR$52,3,FALSE)","v":0},{"$f":"VLOOKUP($AU50,$AN$49:$AR$52,4,FALSE)","v":0},{"$f":"VLOOKUP($AU50,$AN$49:$AR$52,5,FALSE)","v":0}]
[null,26,"2022-11-27","Belgium","-","Morocco",null,"-",null,"",{"$f":"IF(OR(G51=\"\",I51=\"\",'Results and table'!G51=\"\",'Results and table'!I51=\"\"),0,IF(G51='Results and table'!G51,2,0)+IF(I51='Results and table'!I51,2,0)+IF(J51='Results and table'!J51,2,0))","v":0},3,{"$f":"VLOOKUP(L51,AT49:AY52,2,FALSE)","v":"Morocco"},{"$f":"VLOOKUP(M51,$AU$49:$AY$52,2,FALSE)","v":0},{"$f":"VLOOKUP(M51,$AU$49:$AY$52,3,FALSE)","v":0},{"$f":"VLOOKUP(M51,$AU$49:$AY$52,4,FALSE)","v":0},{"$f":"VLOOKUP(M51,$AU$49:$AY$52,5,FALSE)","v":0},null,null,null,null,null,null,null,null,"Belgium",0,0,0,"Morocco",0,0,0,null,{"$f":"RANK($AJ51,$AJ$49:$AJ$52,1)+COUNTIF($AJ$49:$AJ51,$AJ51)-1","v":3},{"$f":"AK51+AL51+AM51","v":1},0,0,1,"Morocco",0,0,0,0,null,3,"Morocco",0,0,0,0]
[null,27,"2022-11-27","Croatia","-","Canada",null,"-",null,"",{"$f":"IF(OR(G52=\"\",I52=\"\",'Results and table'!G52=\"\",'Results and table'!I52=\"\"),0,IF(G52='Results and table'!G52,2,0)+IF(I52='Results and table'!I52,2,0)+IF(J52='Results and table'!J52,2,0))","v":0},4,{"$f":"VLOOKUP(L52,AT49:AY52,2,FALSE)","v":"Croatia"},{"$f":"VLOOKUP(M52,$AU$49:$AY$52,2,FALSE)","v":0},{"$f":"VLOOKUP(M52,$AU$49:$AY$52,3,FALSE)","v":0},{"$f":"VLOOKUP(M52,$AU$49:$AY$52,4,FALSE)","v":0},{"$f":"VLOOKUP(M52,$AU$49:$AY$52,5,FALSE)","v":0},null,null,null,null,null,null,null,null,"Croatia",0,0,0,"Canada",0,0,0,null,{"$f":"RANK($AJ52,$AJ$49:$AJ$52,1)+COUNTIF($AJ$49:$AJ52,$AJ52)-1","v":4},{"$f":"AK52+AL52+AM52","v":1},0,0,1,"Croatia",0,0,0,0,null,4,"Croatia",0,0,0,0]
[null,41,"2022-12-01","Croatia","-","Belgium",null,"-",null,"",{"$f":"IF(OR(G53=\"\",I53=\"\",'Results and table'!G53=\"\",'Results and table'!I53=\"\"),0,IF(G53='Results and table'!G53,2,0)+IF(I53='Results and table'!I53,2,0)+IF(J53='Results and table'!J53,2,0))","v":0},null,{"$f":"COUNTBLANK(G49:G54)+COUNTBLANK(I49:I54)","v":12},null,null,null,null,null,null,null,null,null,null,null,null,"Croatia",0,0,0,"Belgium",0,0,0]
[null,42,"2022-12-01","Canada","-","Morocco",null,"-",null,"",{"$f":"IF(OR(G54=\"\",I54=\"\",'Results and table'!G54=\"\",'Results and table'!I54=\"\"),0,IF(G54='Results and table'!G54,2,0)+IF(I54='Results and table'!I54,2,0)+IF(J54='Results and table'!J54,2,0))","v":0},null,null,null,null,null,null,null,null,null,null,null,null,null,null,"Canada",0,0,0,"Morocco",0,0,0]
[]
[null,"Group G"]
[null,"Game","Date","Game",null,null,"Result",null,null,"1X2","Points",null,"Group G","Points","GF","GA"," +/-",null,null,null,null,null,null,null,null,"Team 1","Points","GF","GA","Team 2","Points","GF","GA",null,"Rank ties","Rank total","Rank goals","Rank Diff","Rank Points","Team","Points","GF","GA","Diff",null,"Rank","Team","Points","GF","GA","Diff"]
[null,13,"2022-11-24","Switzerland","-","Cameroon",null,"-",null,{"$f":"IF(OR(ISBLANK(G58),ISBLANK(I58)),\"\",IF(G58>I58,1,IF(G58<I58,2,\"X\")))","v":""},{"$f":"IF(OR(G58=\"\",I58=\"\",'Results and table'!G58=\"\",'Results and table'!I58=\"\"),0,IF(G58='Results and table'!G58,2,0)+IF(I58='Results and table'!I58,2,0)+IF(J58='Results and table'!J58,2,0))","v":0},1,{"$f":"VLOOKUP(L58,AT58:AY61,2,FALSE)","v":"Brazil"},{"$f":"VLOOKUP(M58,$AU$58:$AY$61,2,FALSE)","v":0},{"$f":"VLOOKUP(M58,$AU$58:$AY$61,3,FALSE)","v":0},{"$f":"VLOOKUP(M58,$AU$58:$AY$61,4,FALSE)","v":0},{"$f":"VLOOKUP(M58,$AU$58:$AY$61,5,FALSE)","v":0},null,null,null,null,null,null,null,null,{"$f":"D58","v":"Switzerland"},{"$f":"IF(G58=\"\",0,IF($G58<$I58,0,IF($G58=$I58,1,3)))","v":0},{"$f":"G58","v":0},{"$f":"I58","v":0},{"$f":"F58","v":"Cameroon"},{"$f":"IF(I58=\"\",0,IF(I58<G58,0,IF(G58=I58,1,3)))","v":0},{"$f":"I58","v":0},{"$f":"G58","v":0},null,{"$f":"RANK($AJ58,$AJ$58:$AJ$61,1)+COUNTIF($AJ$58:$AJ58,$AJ58)-1","v":1},{"$f":"AK58+AL58+AM58","v":1},{"$f":"SUMPRODUCT(($AO$58:$AO$61=AO58)*($AR$58:$AR$61=AR58)*($AP$58:$AP$61>AP58))","v":0},{"$f":"SUMPRODUCT(($AO$58:$AO$61=AO58)*($AR$58:$AR$61>AR58))","v":0},{"$f":"RANK(AO58,$AO$58:$AO$61)","v":1},"Brazil",{"$f":"SUMIF($Z$58:$Z$63,$AN58,$AA$58:$AA$63)+SUMIF($AD$58:$AD$63,$AN58,$AE$58:$AE$63)","v":0},{"$f":"SUMIF($Z$58:$Z$63,$AN58,$AB$58:$AB$63)+SUMIF($AD$58:$AD$63,$AN58,$AF$58:$AF$63)","v":0},{"$f":"SUMIF($Z$58:$Z$63,$AN58,$AC$58:$AC$63)+SUMIF($AD$58:$AD$63,$AN58,$AG$58:$AG$63)","v":0},{"$f":"AP58-AQ58","v":0},null,1,{"$f":"VLOOKUP($AT58,$AI$58:$AR$61,6,FALSE)","v":"Brazil"},{"$f":"VLOOKUP($AU58,$AN$58:$AR$61,2,FALSE)","v":0},{"$f":"VLOOKUP($AU58,$AN$58:$AR$61,3,FALSE)","v":0},{"$f":"VLOOKUP($AU58,$AN$58:$AR$61,4,FALSE)","v":0},{"$f":"VLOOKUP($AU58,$AN$58:$AR$61,5,FALSE)","v":0}]
[null,16,"2022-11-24","Brazil","-","Serbia",null,"-",null,{"$f":"IF(OR(ISBLANK(G59),ISBLANK(I59)),\"\",IF(G59>I59,1,IF(G59<I59,2,\"X\")))","v":""},{"$f":"IF(OR(G59=\"\",I59=\"\",'Results and table'!G59=\"\",'Results and table'!I59=\"\"),0,IF(G59='Results and table'!G59,2,0)+IF(I59='Results and table'!I59,2,0)+IF(J59='Results and table'!J59,2,0))","v":0},2,{"$f":"VLOOKUP(L59,AT58:AY61,2,FALSE)","v":"Serbia"},{"$f":"VLOOKUP(M59,$AU$58:$AY$61,2,FALSE)","v":0},{"$f":"VLOOKUP(M59,$AU$58:$AY$61,3,FALSE)","v":0},{"$f":"VLOOKUP(M59,$AU$58:$AY$61,4,FALSE)","v":0},{"$f":"VLOOKUP(M59,$AU$58:$AY$61,5,FALSE)","v":0},null,null,null,null,null,null,null,null,{"$f":"D59","v":"Brazil"},0,0,0,{"$f":"F59","v":"Serbia"},0,0,0,null,{"$f":"RANK($AJ59,$AJ$58:$AJ$61,1)+COUNTIF($AJ$58:$AJ59,$AJ59)-1","v":2},{"$f":"AK59+AL59+AM59","v":1},{"$f":"SUMPRODUCT(($AO$58:$AO$61=AO59)*($AR$58:$AR$61=AR59)*($AP$58:$AP$61>AP59))","v":0},{"$f":"SUMPRODUCT(($AO$58:$AO$61=AO59)*($AR$58:$AR$61>AR59))","v":0},{"$f":"RANK(AO59,$AO$58:$AO$61)","v":1},"Serbia",{"$f":"SUMIF($Z$58:$Z$63,$AN59,$AA$58:$AA$63)+SUMIF($AD$58:$AD$63,$AN59,$AE$58:$AE$63)","v":0},{"$f":"SUMIF($Z$58:$Z$63,$AN59,$AB$58:$AB$63)+SUMIF($AD$58:$AD$63,$AN59,$AF$58:$AF$63)","v":0},{"$f":"SUMIF($Z$58:$Z$63,$AN59,$AC$58:$AC$63)+SUMIF($AD$58:$AD$63,$AN59,$AG$58:$AG$63)","v":0},{"$f":"AP59-AQ59","v":0},null,2,{"$f":"VLOOKUP($AT59,$AI$58:$AR$61,6,FALSE)","v":"Serbia"},{"$f":"VLOOKUP($AU59,$AN$58:$AR$61,2,FALSE)","v":0},{"$f":"VLOOKUP($AU59,$AN$58:$AR$61,3,FALSE)","v":0},{"$f":"VLOOKUP($AU59,$AN$58:$AR$61,4,FALSE)","v":0},{"$f":"VLOOKUP($AU59,$AN$58:$AR$61,5,FALSE)","v":0}]
[null,29,"2022-11-28","Cameroon","-","Serbia",null,"-",null,"",{"$f":"IF(OR(G60=\"\",I60=\"\",'Results and table'!G60=\"\",'Results and table'!I60=\"\"),0,IF(G60='Results and table'!G60,2,0)+IF(I60='Results and table'!I60,2,0)+IF(J60='Results and table'!J60,2,0))","v":0},3,{"$f":"VLOOKUP(L60,AT58:AY61,2,FALSE)","v":"Switzerland"},{"$f":"VLOOKUP(M60,$AU$58:$AY$61,2,FALSE)","v":0},{"$f":"VLOOKUP(M60,$AU$58:$AY$61,3,FALSE)","v":0},{"$f":"VLOOKUP(M60,$AU$58:$AY$61,4,FALSE)","v":0},{"$f":"VLOOKUP(M60,$AU$58:$AY$61,5,FALSE)","v":0},null,null,null,null,null,null,null,null,"Cameroon",0,0,0,"Serbia",0,0,0,null,{"$f":"RANK($AJ60,$AJ$58:$AJ$61,1)+COUNTIF($AJ$58:$AJ60,$AJ60)-1","v":3},{"$f":"AK60+AL60+AM60","v":1},0,0,1,"Switzerland",0,0,0,0,null,3,"Switzerland",0,0,0,0]
[null,31,"2022-11-28","Brazil","-","Switzerland",null,"-",null,"",{"$f":"IF(OR(G61=\"\",I61=\"\",'Results and table'!G61=\"\",'Results and table'!I61=\"\"),0,IF(G61='Results and table'!G61,2,0)+IF(I61='Results and table'!I61,2,0)+IF(J61='Results and table'!J61,2,0))","v":0},4,{"$f":"VLOOKUP(L61,AT58:AY61,2,FALSE)","v":"Cameroon"},{"$f":"VLOOKUP(M61,$AU$58:$AY$61,2,FALSE)","v":0},{"$f":"VLOOKUP(M61,$AU$58:$AY$61,3,FALSE)","v":0},{"$f":"VLOOKUP(M61,$AU$58:$AY$61,4,FALSE)","v":0},{"$f":"VLOOKUP(M61,$AU$58:$AY$61,5,FALSE)","v":0},null,null,null,null,null,null,null,null,"Brazil",0,0,0,"Switzerland",0,0,0,null,{"$f":"RANK($AJ61,$AJ$58:$AJ$61,1)+COUNTIF($AJ$58:$AJ61,$AJ61)-1","v":4},{"$f":"AK61+AL61+AM61","v":1},0,0,1,"Cameroon",0,0,0,0,null,4,"Cameroon",0,0,0,0]
[null,47,"2022-12-02","Serbia","-","Switzerland",null,"-",null,"",{"$f":"IF(OR(G62=\"\",I62=\"\",'Results and table'!G62=\"\",'Results and table'!I62=\"\"),0,IF(G62='Results and table'!G62,2,0)+IF(I62='Results and table'!I62,2,0)+IF(J62='Results and table'!J62,2,0))","v":0},null,{"$f":"COUNTBLANK(G58:G63)+COUNTBLANK(I58:I63)","v":12},null,null,null,null,null,null,null,null,null,null,null,null,"Serbia",0,0,0,"Switzerland",0,0,0]
[null,48,"2022-12-02","Cameroon","-","Brazil",null,"-",null,"",{"$f":"IF(OR(G63=\"\",I63=\"\",'Results and table'!G63=\"\",'Results and table'!I63=\"\"),0,IF(G63='Results and table'!G63,2,0)+IF(I63='Results and table'!I63,2,0)+IF(J63='Results and table'!J63,2,0))","v":0},null,null,null,null,null,null,null,null,null,null,null,null,null,null,"Cameroon",0,0,0,"Brazil",0,0,0]
[]
[null,"Group H"]
[null,"Game","Date","Game",null,null,"Result",null,null,"1X2","Points",null,"Group H","Points","GF","GA"," +/-",null,null,null,null,null,null,null,null,"Team 1","Points","GF","GA","Team 2","Points","GF","GA",null,"Rank ties","Rank total","Rank goals","Rank Diff","Rank Points","Team","Points","GF","GA","Diff",null,"Rank","Team","Points","GF","GA","Diff"]
[null,14,"2022-11-24","Uruguay","-","Korea Republic",null,"-",null,{"$f":"IF(OR(ISBLANK(G67),ISBLANK(I67)),\"\",IF(G67>I67,1,IF(G67<I67,2,\"X\")))","v":""},{"$f":"IF(OR(G67=\"\",I67=\"\",'Results and table'!G67=\"\",'Results and table'!I67=\"\"),0,IF(G67='Results and table'!G67,2,0)+IF(I67='Results and table'!I67,2,0)+IF(J67='Results and table'!J67,2,0))","v":0},1,{"$f":"VLOOKUP(L67,AT67:AY70,2,FALSE)","v":"Portugal"},{"$f":"VLOOKUP(M67,$AU$67:$AY$70,2,FALSE)","v":0},{"$f":"VLOOKUP(M67,$AU$67:$AY$70,3,FALSE)","v":0},{"$f":"VLOOKUP(M67,$AU$67:$AY$70,4,FALSE)","v":0},{"$f":"VLOOKUP(M67,$AU$67:$AY$70,5,FALSE)","v":0},null,null,null,null,null,null,null,null,{"$f":"D67","v":"Uruguay"},{"$f":"IF(G67=\"\",0,IF($G67<$I67,0,IF($G67=$I67,1,3)))","v":0},{"$f":"G67","v":0},{"$f":"I67","v":0},{"$f":"F67","v":"Korea Republic"},{"$f":"IF(I67=\"\",0,IF(I67<G67,0,IF(G67=I67,1,3)))","v":0},{"$f":"I67","v":0},{"$f":"G67","v":0},null,{"$f":"RANK($AJ67,$AJ$67:$AJ$71,1)+COUNTIF($AJ$67:$AJ67,$AJ67)-1","v":1},{"$f":"AK67+AL67+AM67","v":1},{"$f":"SUMPRODUCT(($AO$67:$AO$70=AO67)*($AR$67:$AR$70=AR67)*($AP$67:$AP$70>AP67))","v":0},{"$f":"SUMPRODUCT(($AO$67:$AO$70=AO67)*($AR$67:$AR$70>AR67))","v":0},{"$f":"RANK(AO67,$AO$67:$AO$70)","v":1},"Portugal",{"$f":"SUMIF($Z$67:$Z$72,$AN67,$AA$67:$AA$72)+SUMIF($AD$67:$AD$72,$AN67,$AE$67:$AE$72)","v":0},{"$f":"SUMIF($Z$67:$Z$72,$AN67,$AB$67:$AB$72)+SUMIF($AD$67:$AD$72,$AN67,$AF$67:$AF$72)","v":0},{"$f":"SUMIF($Z$67:$Z$72,$AN67,$AC$67:$AC$72)+SUMIF($AD$67:$AD$72,$AN67,$AG$67:$AG$72)","v":0},{"$f":"AP67-AQ67","v":0},null,1,{"$f":"VLOOKUP($AT67,$AI$67:$AR$70,6,FALSE)","v":"Portugal"},{"$f":"VLOOKUP($AU67,$AN$67:$AR$70,2,FALSE)","v":0},{"$f":"VLOOKUP($AU67,$AN$67:$AR$70,3,FALSE)","v":0},{"$f":"VLOOKUP($AU67,$AN$67:$AR$70,4,FALSE)","v":0},{"$f":"VLOOKUP($AU67,$AN$67:$AR$70,5,FALSE)","v":0}]
[null,15,"2022-11-24","Portugal","-","Ghana",null,"-",null,{"$f":"IF(OR(ISBLANK(G68),ISBLANK(I68)),\"\",IF(G68>I68,1,IF(G68<I68,2,\"X\")))","v":""},{"$f":"IF(OR(G68=\"\",I68=\"\",'Results and table'!G68=\"\",'Results and table'!I68=\"\"),0,IF(G68='Results and table'!G68,2,0)+IF(I68='Results and table'!I68,2,0)+IF(J68='Results and table'!J68,2,0))","v":0},2,{"$f":"VLOOKUP(L68,AT67:AY70,2,FALSE)","v":"Ghana"},{"$f":"VLOOKUP(M68,$AU$67:$AY$70,2,FALSE)","v":0},{"$f":"VLOOKUP(M68,$AU$67:$AY$70,3,FALSE)","v":0},{"$f":"VLOOKUP(M68,$AU$67:$AY$70,4,FALSE)","v":0},{"$f":"VLOOKUP(M68,$AU$67:$AY$70,5,FALSE)","v":0},null,null,null,null,null,null,null,null,{"$f":"D68","v":"Portugal"},0,0,0,{"$f":"F68","v":"Ghana"},0,0,0,null,{"$f":"RANK($AJ68,$AJ$67:$AJ$71,1)+COUNTIF($AJ$67:$AJ68,$AJ68)-1","v":2},{"$f":"AK68+AL68+AM68","v":1},{"$f":"SUMPRODUCT(($AO$67:$AO$70=AO68)*($AR$67:$AR$70=AR68)*($AP$67:$AP$70>AP68))","v":0},{"$f":"SUMPRODUCT(($AO$67:$AO$70=AO68)*($AR$67:$AR$70>AR68))","v":0},{"$f":"RANK(AO68,$AO$67:$AO$70)","v":1},"Ghana",{"$f":"SUMIF($Z$67:$Z$72,$AN68,$AA$67:$AA$72)+SUMIF($AD$67:$AD$72,$AN68,$AE$67:$AE$72)","v":0},{"$f":"SUMIF($Z$67:$Z$72,$AN68,$AB$67:$AB$72)+SUMIF($AD$67:$AD$72,$AN68,$AF$67:$AF$72)","v":0},{"$f":"SUMIF($Z$67:$Z$72,$AN68,$AC$67:$AC$72)+SUMIF($AD$67:$AD$72,$AN68,$AG$67:$AG$72)","v":0},{"$f":"AP68-AQ68","v":0},null,2,{"$f":"VLOOKUP($AT68,$AI$67:$AR$70,6,FALSE)","v":"Ghana"},{"$f":"VLOOKUP($AU68,$AN$67:$AR$70,2,FALSE)","v":0},{"$f":"VLOOKUP($AU68,$AN$67:$AR$70,3,FALSE)","v":0},{"$f":"VLOOKUP($AU68,$AN$67:$AR$70,4,FALSE)","v":0},{"$f":"VLOOKUP($AU68,$AN$67:$AR$70,5,FALSE)","v":0}]
[null,30,"2022-11-28","Korea Republic","-","Ghana",null,"-",null,"",{"$f":"IF(OR(G69=\"\",I69=\"\",'Results and table'!G69=\"\",'Results and table'!I69=\"\"),0,IF(G69='Results and table'!G69,2,0)+IF(I69='Results and table'!I69,2,0)+IF(J69='Results and table'!J69,2,0))","v":0},3,{"$f":"VLOOKUP(L69,AT67:AY70,2,FALSE)","v":"Uruguay"},{"$f":"VLOOKUP(M69,$AU$67:$AY$70,2,FALSE)","v":0},{"$f":"VLOOKUP(M69,$AU$67:$AY$70,3,FALSE)","v":0},{"$f":"VLOOKUP(M69,$AU$67:$AY$70,4,FALSE)","v":0},{"$f":"VLOOKUP(M69,$AU$67:$AY$70,5,FALSE)","v":0},null,null,null,null,null,null,null,null,"Korea Republic",0,0,0,"Ghana",0,0,0,null,{"$f":"RANK($AJ69,$AJ$67:$AJ$71,1)+COUNTIF($AJ$67:$AJ69,$AJ69)-1","v":3},{"$f":"AK69+AL69+AM69","v":1},0,0,1,"Uruguay",0,0,0,0,null,3,"Uruguay",0,0,0,0]
[null,32,"2022-11-28","Portugal","-","Uruguay",null,"-",null,"",{"$f":"IF(OR(G70=\"\",I70=\"\",'Results and table'!G70=\"\",'Results and table'!I70=\"\"),0,IF(G70='Results and table'!G70,2,0)+IF(I70='Results and table'!I70,2,0)+IF(J70='Results and table'!J70,2,0))","v":0},4,{"$f":"VLOOKUP(L70,AT67:AY70,2,FALSE)","v":"Korea Republic"},{"$f":"VLOOKUP(M70,$AU$67:$AY$70,2,FALSE)","v":0},{"$f":"VLOOKUP(M70,$AU$67:$AY$70,3,FALSE)","v":0},{"$f":"VLOOKUP(M70,$AU$67:$AY$70,4,FALSE)","v":0},{"$f":"VLOOKUP(M70,$AU$67:$AY$70,5,FALSE)","v":0},null,null,null,null,null,null,null,null,"Portugal",0,0,0,"Uruguay",0,0,0,null,{"$f":"RANK($AJ70,$AJ$67:$AJ$71,1)+COUNTIF($AJ$67:$AJ70,$AJ70)-1","v":4},{"$f":"AK70+AL70+AM70","v":1},0,0,1,"Korea Republic",0,0,0,0,null,4,"Korea Republic",0,0,0,0]
[null,45,"2022-12-02","Ghana","-","Uruguay",null,"-",null,"",{"$f":"IF(OR(G71=\"\",I71=\"\",'Results and table'!G71=\"\",'Results and table'!I71=\"\"),0,IF(G71='Results and table'!G71,2,0)+IF(I71='Results and table'!I71,2,0)+IF(J71='Results and table'!J71,2,0))","v":0},null,{"$f":"COUNTBLANK(G67:G72)+COUNTBLANK(I67:I72)","v":12},null,null,null,null,null,null,null,null,null,null,null,null,"Ghana",0,0,0,"Uruguay",0,0,0]
[null,46,"2022-12-02","Korea Republic","-","Portugal",null,"-",null,"",{"$f":"IF(OR(G72=\"\",I72=\"\",'Results and table'!G72=\"\",'Results and table'!I72=\"\"),0,IF(G72='Results and table'!G72,2,0)+IF(I72='Results and table'!I72,2,0)+IF(J72='Results and table'!J72,2,0))","v":0},null,null,null,null,null,null,null,null,null,null,null,null,null,null,"Korea Republic",0,0,0,"Portugal",0,0,0]
[]
[null,"Round of 16",null,null,null,null,null,null,null,null,null,null,null,null,null,null,null,null,null,null,null,null,null,null,null,null,null,null,null,null,null,null,null,null,null,null,null,null,null,null,null,null,null,null,null,null,null,null,null,null,null,"Round of 16er",null,null,null,null,null,null,null,null,null,null,"Round of 16er"]
[null,"Game","Date",null,null,null,"Result",null,null,"1X2","Points",null,"Winner Round of 16",null,null,"Points for teams in Round of 16",null,null,null,null,null,null,null,null,null,null,"Game",null,null,null,null,null,null,null,null,null,null,null,null,null,null,null,null,null,null,null,null,null,null,null,null,"Game","Date","Game",null,null,"Result",null,null,"1X2","Points",null,null,"Mitt tips","Resultat & tabell","Utfall","Utfall likare","Points"]
[null,50,"2022-12-03",{"$f":"IF($M$26=0,$M$22,\"Winner Group C\")","v":"Winner Group C"},"-",{"$f":"IF($M$35=0,$M$32,\"Second Group D\")","v":"Second Group D"},null,"-",null,{"$f":"IF(OR(ISBLANK(G76),ISBLANK(I76)),\"\",IF(G76>I76,1,IF(G76<I76,2,\"X\")))","v":""},{"$f":"IF(OR(G76=\"\",I76=\"\",'Results and table'!G76=\"\",'Results and table'!I76=\"\"),0,IF(G76='Results and table'!G76,2,0)+IF(I76='Results and table'!I76,2,0)+IF(J76='Results and table'!J76,2,0))","v":0},null,null,{"$f":"IF(OR(ISBLANK(D76),ISBLANK(F76),J76=\"\",M76=\"\"),\"\",IF(OR(AND(J76=1,M76=D76),AND(J76=2,M76=F76),AND(J76=\"X\",OR(M76=D76,M76=F76))),\"\",\"Ej OK\"))","v":""},{"$f":"M76=D76","v":false},{"$f":"BP92","v":0},null,null,null,null,null,null,null,null,null,null,"Winner Group A",null,null,null,"Second Group B",null,null,null,null,null,null,null,null,null,null,null,null,null,null,null,null,null,null,null,null,49,"2014-06-28",{"$f":"D76","v":"Winner Group C"},"-",{"$f":"F76","v":"Second Group D"},{"$f":"IF(G76='Results and table'!$G76,2,0)","v":2},"-",{"$f":"IF(I76='Results and table'!$I76,2,0)","v":2},{"$f":"IF(J76='Results and table'!$J76,1,0)","v":1},{"$f":"SUM(BE76+BG76+BH76)","v":5},null,null,{"$f":"BB76","v":"Winner Group C"},{"$f":"'Results and table'!D76","v":"Winner Group C"},{"$f":"VLOOKUP(BL76,$BM$76:$BM$91,1,FALSE)","v":"Winner Group C"},{"$f":"BN76","v":"Winner Group C"},{"$f":"IFERROR(IF(BN76=BO76,2,0),0)","v":2}]
[null,49,"2022-12-03",{"$f":"IF($M$8=0,$M$4,\"Winner Group A\")","v":"Winner Group A"},"-",{"$f":"IF($M$17=0,$M$14,\"Second Group B\")","v":"Second Group B"},null,"-",null,"",{"$f":"IF(OR(G77=\"\",I77=\"\",'Results and table'!G77=\"\",'Results and table'!I77=\"\"),0,IF(G77='Results and table'!G77,2,0)+IF(I77='Results and table'!I77,2,0)+IF(J77='Results and table'!J77,2,0))","v":0},null,null,{"$f":"IF(OR(ISBLANK(D77),ISBLANK(F77),J77=\"\",M77=\"\"),\"\",IF(OR(AND(J77=1,M77=D77),AND(J77=2,M77=F77),AND(J77=\"X\",OR(M77=D77,M77=F77))),\"\",\"Ej OK\"))","v":""},null,null,null,null,null,null,null,null,null,null,null,null,"Winner Group C",null,null,null,"Second Group D",null,null,null,null,null,null,null,null,null,null,null,null,null,null,null,null,null,null,null,null,50,"2014-06-28T17:00:00","Winner Group A","-","Second Group B",{"$f":"IF(G77='Results and table'!$G77,2,0)","v":2},"-",{"$f":"IF(I77='Results and table'!$I77,2,0)","v":2},{"$f":"IF(J77='Results and table'!$J77,1,0)","v":1},5,null,null,"Winner Group A",{"$f":"'Results and table'!D77","v":"Winner Group A"},"Winner Group A",{"$f":"BN77","v":"Winner Group A"},2]
[null,51,"2022-12-04",{"$f":"IF($M$17=0,$M$13,\"Winner Group B\")","v":"Winner Group B"},"-",{"$f":"IF($M$8=0,$M$5,\"Second Group A\")","v":"Second Group A"},null,"-",null,"",{"$f":"IF(OR(G78=\"\",I78=\"\",'Results and table'!G78=\"\",'Results and table'!I78=\"\"),0,IF(G78='Results and table'!G78,2,0)+IF(I78='Results and table'!I78,2,0)+IF(J78='Results and table'!J78,2,0))","v":0},null,null,"",null,null,null,null,null,null,null,null,null,null,null,null,"Winner Group B",null,null,null,"Second Group A",null,null,null,null,null,null,null,null,null,null,null,null,null,null,null,null,null,null,null,null,51,"2014-06-29T13:00:00","Winner Group B","-","Second Group A",{"$f":"IF(G78='Results and table'!$G78,2,0)","v":2},"-",{"$f":"IF(I78='Results and table'!$I78,2,0)","v":2},{"$f":"IF(J78='Results and table'!$J78,1,0)","v":1},5,null,null,"Winner Group B",{"$f":"'Results and table'!D78","v":"Winner Group B"},"Winner Group B","Winner Group B",2]
[null,52,"2022-12-04",{"$f":"IF($M$35=0,$M$31,\"Winner Group D\")","v":"Winner Group D"},"-",{"$f":"IF($M$26=0,$M$23,\"Second Group C\")","v":"Second Group C"},null,"-",null,"",{"$f":"IF(OR(G79=\"\",I79=\"\",'Results and table'!G79=\"\",'Results and table'!I79=\"\"),0,IF(G79='Results and table'!G79,2,0)+IF(I79='Results and table'!I79,2,0)+IF(J79='Results and table'!J79,2,0))","v":0},null,null,"",null,null,null,null,null,null,null,null,null,null,null,null,"Winner Group D",null,null,null,"Second Group C",null,null,null,null,null,null,null,null,null,null,null,null,null,null,null,null,null,null,null,null,52,"2014-06-29T17:00:00","Winner Group D","-","Second Group C",{"$f":"IF(G79='Results and table'!$G79,2,0)","v":2},"-",{"$f":"IF(I79='Results and table'!$I79,2,0)","v":2},{"$f":"IF(J79='Results and table'!$J79,1,0)","v":1},5,null,null,"Winner Group D",{"$f":"'Results and table'!D79","v":"Winner Group D"},"Winner Group D","Winner Group D",2]
[null,53,"2022-12-05",{"$f":"IF($M$44=0,$M$40,\"Winner Group E\")","v":"Winner Group E"},"-",{"$f":"IF($M$53=0,$M$50,\"Second Group F\")","v":"Second Group F"},null,"-",null,"",{"$f":"IF(OR(G80=\"\",I80=\"\",'Results and table'!G80=\"\",'Results and table'!I80=\"\"),0,IF(G80='Results and table'!G80,2,0)+IF(I80='Results and table'!I80,2,0)+IF(J80='Results and table'!J80,2,0))","v":0},null,null,"",null,null,null,null,null,null,null,null,null,null,null,null,"Winner Group E",null,null,null,"Second Group F",null,null,null,null,null,null,null,null,null,null,null,null,null,null,null,null,null,null,null,null,53,"2014-06-30T13:00:00","Winner Group E","-","Second Group F",{"$f":"IF(G80='Results and table'!$G80,2,0)","v":2},"-",{"$f":"IF(I80='Results and table'!$I80,2,0)","v":2},{"$f":"IF(J80='Results and table'!$J80,1,0)","v":1},5,null,null,"Winner Group E",{"$f":"'Results and table'!D80","v":"Winner Group E"},"Winner Group E","Winner Group E",2]
[null,54,"2022-12-05",{"$f":"IF($M$62=0,$M$58,\"Winner Group G\")","v":"Winner Group G"},"-",{"$f":"IF($M$71=0,$M$68,\"Second Group H\")","v":"Second Group H"},null,"-",null,"",{"$f":"IF(OR(G81=\"\",I81=\"\",'Results and table'!G81=\"\",'Results and table'!I81=\"\"),0,IF(G81='Results and table'!G81,2,0)+IF(I81='Results and table'!I81,2,0)+IF(J81='Results and table'!J81,2,0))","v":0},null,null,"",null,null,null,null,null,null,null,null,null,null,null,null,"Winner Group G",null,null,null,"Second Group H",null,null,null,null,null,null,null,null,null,null,null,null,null,null,null,null,null,null,null,null,54,"2014-06-30T17:00:00","Winner Group G","-","Second Group H",{"$f":"IF(G81='Results and table'!$G81,2,0)","v":2},"-",{"$f":"IF(I81='Results and table'!$I81,2,0)","v":2},{"$f":"IF(J81='Results and table'!$J81,1,0)","v":1},5,null,null,"Winner Group G",{"$f":"'Results and table'!D81","v":"Winner Group G"},"Winner Group G","Winner Group G",2]
[null,55,"2022-12-06",{"$f":"IF($M$53=0,$M$49,\"Winner Group F\")","v":"Winner Group F"},"-",{"$f":"IF($M$44=0,$M$41,\"Second Group E\")","v":"Second Group E"},null,"-",null,"",{"$f":"IF(OR(G82=\"\",I82=\"\",'Results and table'!G82=\"\",'Results and table'!I82=\"\"),0,IF(G82='Results and table'!G82,2,0)+IF(I82='Results and table'!I82,2,0)+IF(J82='Results and table'!J82,2,0))","v":0},null,null,"",null,null,null,null,null,null,null,null,null,null,null,null,"Winner Group F",null,null,null,"Second Group E",null,null,null,null,null,null,null,null,null,null,null,null,null,null,null,null,null,null,null,null,55,"2014-07-01","Winner Group F","-","Second Group E",{"$f":"IF(G82='Results and table'!$G82,2,0)","v":2},"-",{"$f":"IF(I82='Results and table'!$I82,2,0)","v":2},{"$f":"IF(J82='Results and table'!$J82,1,0)","v":1},5,null,null,"Winner Group F",{"$f":"'Results and table'!D82","v":"Winner Group F"},"Winner Group F","Winner Group F",2]
[null,56,"2022-12-06",{"$f":"IF($M$71=0,$M$67,\"Winner Group H\")","v":"Winner Group H"},"-",{"$f":"IF($M$62=0,$M$59,\"Second Group G\")","v":"Second Group G"},null,"-",null,"",{"$f":"IF(OR(G83=\"\",I83=\"\",'Results and table'!G83=\"\",'Results and table'!I83=\"\"),0,IF(G83='Results and table'!G83,2,0)+IF(I83='Results and table'!I83,2,0)+IF(J83='Results and table'!J83,2,0))","v":0},null,null,"",null,null,null,null,null,null,null,null,null,null,null,null,"Winner Group H",null,null,null,"Second Group G",null,null,null,null,null,null,null,null,null,null,null,null,null,null,null,null,null,null,null,null,56,"2014-07-01","Winner Group H","-","Second Group G",{"$f":"IF(G83='Results and table'!$G83,2,0)","v":2},"-",{"$f":"IF(I83='Results and table'!$I83,2,0)","v":2},{"$f":"IF(J83='Results and table'!$J83,1,0)","v":1},5,null,null,"Winner Group H",{"$f":"'Results and table'!D83","v":"Winner Group H"},"Winner Group H","Winner Group H",2]
[null,null,null,null,null,null,null,null,null,null,null,null,null,null,null,null,null,null,null,null,null,null,null,null,null,null,null,null,null,null,null,null,null,null,null,null,null,null,null,null,null,null,null,null,null,null,null,null,null,null,null,null,null,null,null,null,null,null,null,null,null,null,null,{"$f":"BD76","v":"Second Group D"},{"$f":"'Results and table'!F76","v":"Second Group D"},"Second Group D","Second Group D",2]
[null,"Quarter finals",null,null,null,null,null,null,null,null,null,null,null,null,null,null,null,null,null,null,null,null,null,null,null,null,null,null,null,null,null,null,null,null,null,null,null,null,null,null,null,null,null,null,null,null,null,null,null,null,null,"Quarterfinaler",null,null,null,null,null,null,null,null,null,null,null,"Second Group B",{"$f":"'Results and table'!F77","v":"Second Group B"},"Second Group B","Second Group B",2]
[null,"Game","Date","Game",null,null,"Result",null,null,"1X2","Points",null,"Winner Quarter final",null,null,"Points for teams in Quarterfinal",null,null,null,null,null,null,null,null,null,null,"Game",null,null,null,null,null,null,null,null,null,null,null,null,null,null,null,null,null,null,null,null,null,null,null,null,"Game","Date","Game",null,null,"Result",null,null,"1X2","Points",null,null,"Second Group A",{"$f":"'Results and table'!F78","v":"Second Group A"},"Second Group A","Second Group A",2]
[null,57,"2022-12-09",{"$f":"IF(M77=\"\",\"Winner Game 49\",M77)","v":"Winner Game 49"},"-",{"$f":"IF(M76=\"\",\"Winner Game 50\",M76)","v":"Winner Game 50"},null,"-",null,{"$f":"IF(OR(ISBLANK(G87),ISBLANK(I87)),\"\",IF(G87>I87,1,IF(G87<I87,2,\"X\")))","v":""},{"$f":"IF(OR(G87=\"\",I87=\"\",'Results and table'!G87=\"\",'Results and table'!I87=\"\"),0,IF(G87='Results and table'!G87,2,0)+IF(I87='Results and table'!I87,2,0)+IF(J87='Results and table'!J87,2,0))","v":0},null,null,{"$f":"IF(OR(ISBLANK(D87),ISBLANK(F87),J87=\"\",M87=\"\"),\"\",IF(OR(AND(J87=1,M87=D87),AND(J87=2,M87=F87),AND(J87=\"X\",OR(M87=D87,M87=F87))),\"\",\"Ej OK\"))","v":""},null,{"$f":"BP103","v":0},null,null,null,null,null,null,null,null,null,null,"Winner Game 49",null,null,null,"Winner Game 50",null,null,null,null,null,null,null,null,null,null,null,null,null,null,null,null,null,null,null,null,57,"2014-07-04",{"$f":"D87","v":"Winner Game 49"},"-",{"$f":"F87","v":"Winner Game 50"},{"$f":"IF(G87='Results and table'!$G87,2,0)","v":2},"-",{"$f":"IF(I87='Results and table'!$I87,2,0)","v":2},{"$f":"IF(J87='Results and table'!$J87,1,0)","v":1},{"$f":"SUM(BE87+BG87+BH87)","v":5},null,null,"Second Group C",{"$f":"'Results and table'!F79","v":"Second Group C"},"Second Group C","Second Group C",2]
[null,58,"2022-12-09",{"$f":"IF(M80=\"\",\"Winner Game 53\",M80)","v":"Winner Game 53"},"-",{"$f":"IF(M81=\"\",\"Winner Game 54\",M81)","v":"Winner Game 54"},null,"-",null,"",{"$f":"IF(OR(G88=\"\",I88=\"\",'Results and table'!G88=\"\",'Results and table'!I88=\"\"),0,IF(G88='Results and table'!G88,2,0)+IF(I88='Results and table'!I88,2,0)+IF(J88='Results and table'!J88,2,0))","v":0},null,null,{"$f":"IF(OR(ISBLANK(D88),ISBLANK(F88),J88=\"\",M88=\"\"),\"\",IF(OR(AND(J88=1,M88=D88),AND(J88=2,M88=F88),AND(J88=\"X\",OR(M88=D88,M88=F88))),\"\",\"Ej OK\"))","v":""},null,null,null,null,null,null,null,null,null,null,null,null,"Winner Game 53",null,null,null,"Winner Game 54",null,null,null,null,null,null,null,null,null,null,null,null,null,null,null,null,null,null,null,null,58,"2014-07-04",{"$f":"D88","v":"Winner Game 53"},"-",{"$f":"F88","v":"Winner Game 54"},{"$f":"IF(G88='Results and table'!$G88,2,0)","v":2},"-",{"$f":"IF(I88='Results and table'!$I88,2,0)","v":2},{"$f":"IF(J88='Results and table'!$J88,1,0)","v":1},5,null,null,"Second Group F",{"$f":"'Results and table'!F80","v":"Second Group F"},"Second Group F","Second Group F",2]
[null,59,"2022-12-10",{"$f":"IF(M78=\"\",\"Winner Game 51\",M78)","v":"Winner Game 51"},"-",{"$f":"IF(M79=\"\",\"Winner Game 52\",M79)","v":"Winner Game 52"},null,"-",null,"",{"$f":"IF(OR(G89=\"\",I89=\"\",'Results and table'!G89=\"\",'Results and table'!I89=\"\"),0,IF(G89='Results and table'!G89,2,0)+IF(I89='Results and table'!I89,2,0)+IF(J89='Results and table'!J89,2,0))","v":0},null,null,"",null,null,null,null,null,null,null,null,null,null,null,null,"Winner Game 51",null,null,null,"Winner Game 52",null,null,null,null,null,null,null,null,null,null,null,null,null,null,null,null,null,null,null,null,59,"2014-07-05",{"$f":"D89","v":"Winner Game 51"},"-",{"$f":"F89","v":"Winner Game 52"},{"$f":"IF(G89='Results and table'!$G89,2,0)","v":2},"-",{"$f":"IF(I89='Results and table'!$I89,2,0)","v":2},{"$f":"IF(J89='Results and table'!$J89,1,0)","v":1},5,null,null,"Second Group H",{"$f":"'Results and table'!F81","v":"Second Group H"},"Second Group H","Second Group H",2]
[null,60,"2022-12-10",{"$f":"IF(M82=\"\",\"Winner Game 55\",M82)","v":"Winner Game 55"},"-",{"$f":"IF(M83=\"\",\"Winner Game 56\",M83)","v":"Winner Game 56"},null,"-",null,"",{"$f":"IF(OR(G90=\"\",I90=\"\",'Results and table'!G90=\"\",'Results and table'!I90=\"\"),0,IF(G90='Results and table'!G90,2,0)+IF(I90='Results and table'!I90,2,0)+IF(J90='Results and table'!J90,2,0))","v":0},null,null,"",null,null,null,null,null,null,null,null,null,null,null,null,"Winner Game 55",null,null,null,"Winner Game 56",null,null,null,null,null,null,null,null,null,null,null,null,null,null,null,null,null,null,null,null,60,"2014-07-05",{"$f":"D90","v":"Winner Game 55"},"-",{"$f":"F90","v":"Winner Game 56"},{"$f":"IF(G90='Results and table'!$G90,2,0)","v":2},"-",{"$f":"IF(I90='Results and table'!$I90,2,0)","v":2},{"$f":"IF(J90='Results and table'!$J90,1,0)","v":1},5,null,null,"Second Group E",{"$f":"'Results and table'!F82","v":"Second Group E"},"Second Group E","Second Group E",2]
[null,null,null,null,null,null,null,null,null,null,null,null,null,null,null,null,null,null,null,null,null,null,null,null,null,null,null,null,null,null,null,null,null,null,null,null,null,null,null,null,null,null,null,null,null,null,null,null,null,null,null,null,null,null,null,null,null,null,null,null,null,null,null,"Second Group G",{"$f":"'Results and table'!F83","v":"Second Group G"},"Second Group G","Second Group G",2]
[null,"Semi-finals",null,null,null,null,null,null,null,null,null,null,null,null,null,null,null,null,null,null,null,null,null,null,null,null,null,null,null,null,null,null,null,null,null,null,null,null,null,null,null,null,null,null,null,null,null,null,null,null,null,"Semi-finals",null,null,null,null,null,null,null,null,null,null,null,null,null,null,"SUMMA",{"$f":"IF(COUNTIFS('Results and table'!J3:J72,\"\")=14,SUM(BP76:BP91),0)","v":0}]
[null,"Game","Date","Game",null,null,"Result",null,null,"1X2","Points",null,"Winner Semi-finals",null,"Looser","Points for teams in Semi-finals",null,null,null,null,null,null,null,null,null,null,"Game",null,null,null,null,null,null,null,null,null,null,null,null,null,null,null,null,null,null,null,null,null,null,null,null,"Game","Date","Game",null,null,"Result",null,null,"1X2","Points",null,null,"Quarterfinaler"]
[null,61,"2022-12-13",{"$f":"IF(M87=\"\",\"Winner Game 57\",M87)","v":"Winner Game 57"},"-",{"$f":"IF(M88=\"\",\"Winner Game 58\",M88)","v":"Winner Game 58"},null,"-",null,{"$f":"IF(OR(ISBLANK(G94),ISBLANK(I94)),\"\",IF(G94>I94,1,IF(G94<I94,2,\"X\")))","v":""},{"$f":"IF(OR(G94=\"\",I94=\"\",'Results and table'!G94=\"\",'Results and table'!I94=\"\"),0,IF(G94='Results and table'!G94,2,0)+IF(I94='Results and table'!I94,2,0)+IF(J94='Results and table'!J94,2,0))","v":0},null,null,{"$f":"IF(OR(ISBLANK(D94),ISBLANK(F94),J94=\"\",M94=\"\"),\"\",IF(OR(AND(J94=1,M94=D94),AND(J94=2,M94=F94),AND(J94=\"X\",OR(M94=D94,M94=F94))),\"\",\"Ej OK\"))","v":""},null,{"$f":"BP110","v":0},null,null,null,{"$f":"IF(M94=D94,F94,D94)","v":"Winner Game 57"},null,null,null,null,null,null,"Winner Game 57",null,null,null,"Winner Game 58",null,null,null,null,null,null,null,null,null,null,null,null,null,null,null,null,null,null,null,null,61,"2014-07-08T17:00:00",{"$f":"D94","v":"Winner Game 57"},"-",{"$f":"F94","v":"Winner Game 58"},{"$f":"IF(G94='Results and table'!$G94,2,0)","v":2},"-",{"$f":"IF(I94='Results and table'!$I94,2,0)","v":2},{"$f":"IF(J94='Results and table'!$J94,1,0)","v":1},{"$f":"SUM(BE94+BG94+BH94)","v":5},null,null,"Mitt tips","Resultat & tabell","Utfall","Utfall likare","Points"]
[null,62,"2022-12-14",{"$f":"IF(M89=\"\",\"Winner Game 59\",M89)","v":"Winner Game 59"},"-",{"$f":"IF(M90=\"\",\"Winner Game 60\",M90)","v":"Winner Game 60"},null,"-",null,"",{"$f":"IF(OR(G95=\"\",I95=\"\",'Results and table'!G95=\"\",'Results and table'!I95=\"\"),0,IF(G95='Results and table'!G95,2,0)+IF(I95='Results and table'!I95,2,0)+IF(J95='Results and table'!J95,2,0))","v":0},null,null,{"$f":"IF(OR(ISBLANK(D95),ISBLANK(F95),J95=\"\",M95=\"\"),\"\",IF(OR(AND(J95=1,M95=D95),AND(J95=2,M95=F95),AND(J95=\"X\",OR(M95=D95,M95=F95))),\"\",\"Ej OK\"))","v":""},null,null,null,null,null,{"$f":"IF(M95=D95,F95,D95)","v":"Winner Game 59"},null,null,null,null,null,null,"Winner Game 59",null,null,null,"Winner Game 60",null,null,null,null,null,null,null,null,null,null,null,null,null,null,null,null,null,null,null,null,62,"2014-07-09T17:00:00",{"$f":"D95","v":"Winner Game 59"},"-",{"$f":"F95","v":"Winner Game 60"},{"$f":"IF(G95='Results and table'!$G95,2,0)","v":0},"-",{"$f":"IF(I95='Results and table'!$I95,2,0)","v":2},{"$f":"IF(J95='Results and table'!$J95,1,0)","v":1},3,null,null,{"$f":"D87","v":"Winner Game 49"},{"$f":"'Results and table'!D87","v":"Winner Game 49"},{"$f":"VLOOKUP(BL95,$BM$95:$BM$102,1,FALSE)","v":"Winner Game 49"},{"$f":"BN95","v":"Winner Game 49"},{"$f":"IFERROR(IF(AND(COUNTIF($J$76:$J$83,\"\")=0,BN95=BO95),4,0),0)","v":0}]
[null,null,null,null,null,null,null,null,null,null,null,null,null,null,null,null,null,null,null,null,null,null,null,null,null,null,null,null,null,null,null,null,null,null,null,null,null,null,null,null,null,null,null,null,null,null,null,null,null,null,null,null,null,null,null,null,null,null,null,null,null,null,null,{"$f":"D88","v":"Winner Game 53"},{"$f":"'Results and table'!D88","v":"Winner Game 53"},"Winner Game 53","Winner Game 53",{"$f":"IFERROR(IF(AND(COUNTIF($J$76:$J$83,\"\")=0,BN96=BO96),4,0),0)","v":0}]
[null,"Play-off for third place",null,null,null,null,null,null,null,null,null,null,null,null,null,null,null,null,null,null,null,null,null,null,null,null,null,null,null,null,null,null,null,null,null,null,null,null,null,null,null,null,null,null,null,null,null,null,null,null,null,"BronsGame",null,null,null,null,null,null,null,null,null,null,null,{"$f":"D89","v":"Winner Game 51"},{"$f":"'Results and table'!D89","v":"Winner Game 51"},"Winner Game 51","Winner Game 51",0]
[null,"Game","Date","Game",null,null,"Result",null,null,"1X2","Points",null,"Winner Play-off for third place",null,null,"Points for teams in bronze game",null,null,null,null,null,null,null,null,null,null,"Game",null,null,null,null,null,null,null,null,null,null,null,null,null,null,null,null,null,null,null,null,null,null,null,null,"Game","Date","Game",null,null,"Result",null,null,"1X2","Points",null,null,{"$f":"D90","v":"Winner Game 55"},{"$f":"'Results and table'!D90","v":"Winner Game 55"},"Winner Game 55","Winner Game 55",0]
[null,63,"2022-12-17",{"$f":"IF(M94=\"\",\"Looser Game 61\",T94)","v":"Looser Game 61"},"-",{"$f":"IF(M95=\"\",\"Looser Game 62\",T95)","v":"Looser Game 62"},null,"-",null,{"$f":"IF(OR(ISBLANK(G99),ISBLANK(I99)),\"\",IF(G99>I99,1,IF(G99<I99,2,\"X\")))","v":""},{"$f":"IF(OR(G99=\"\",I99=\"\",'Results and table'!G99=\"\",'Results and table'!I99=\"\"),0,IF(G99='Results and table'!G99,2,0)+IF(I99='Results and table'!I99,2,0)+IF(J99='Results and table'!J99,2,0))","v":0},null,null,{"$f":"IF(OR(ISBLANK(D99),ISBLANK(F99),J99=\"\",M99=\"\"),\"\",IF(OR(AND(J99=1,M99=D99),AND(J99=2,M99=F99),AND(J99=\"X\",OR(M99=D99,M99=F99))),\"\",\"Ej OK\"))","v":""},null,{"$f":"BP115","v":0},null,null,null,null,null,null,null,null,null,null,"Looser Game 61",null,null,null,"Looser Game 62",null,null,null,null,null,null,null,null,null,null,null,null,null,null,null,null,null,null,null,null,63,"2014-07-12",{"$f":"D99","v":"Looser Game 61"},"-",{"$f":"F99","v":"Looser Game 62"},{"$f":"IF(G99='Results and table'!$G99,2,0)","v":2},"-",{"$f":"IF(I99='Results and table'!$I99,2,0)","v":2},{"$f":"IF(J99='Results and table'!$J99,1,0)","v":1},{"$f":"SUM(BE99+BG99+BH99)","v":5},null,null,{"$f":"F87","v":"Winner Game 50"},{"$f":"'Results and table'!F87","v":"Winner Game 50"},"Winner Game 50","Winner Game 50",0]
[null,null,null,null,null,null,null,null,null,null,null,null,null,null,null,null,null,null,null,null,null,null,null,null,null,null,null,null,null,null,null,null,null,null,null,null,null,null,null,null,null,null,null,null,null,null,null,null,null,null,null,null,null,null,null,null,null,null,null,null,null,null,null,{"$f":"F88","v":"Winner Game 54"},{"$f":"'Results and table'!F88","v":"Winner Game 54"},"Winner Game 54","Winner Game 54",0]
[null,"Final",null,null,null,null,null,null,null,null,null,null,null,null,null,null,null,null,null,null,null,null,null,null,null,null,null,null,null,null,null,null,null,null,null,null,null,null,null,null,null,null,null,null,null,null,null,null,null,null,null,"Final",null,null,null,null,null,null,null,null,null,null,null,{"$f":"F89","v":"Winner Game 52"},{"$f":"'Results and table'!F89","v":"Winner Game 52"},"Winner Game 52","Winner Game 52",0]
[null,"Game","Date","Game",null,null,"Result",null,null,"1X2","Points",null,"Winner final",null,null,"Points for teams in final",null,null,null,null,null,null,null,null,null,null,"Game",null,null,null,null,null,null,null,null,null,null,null,null,null,null,null,null,null,null,null,null,null,null,null,null,"Game","Date","Game",null,null,"Result",null,null,"1X2","Points",null,null,{"$f":"F90","v":"Winner Game 56"},{"$f":"'Results and table'!F90","v":"Winner Game 56"},"Winner Game 56","Winner Game 56",0]
[null,64,"2022-12-18",{"$f":"IF(M94=\"\",\"Winner Game 61\",M94)","v":"Winner Game 61"},"-",{"$f":"IF(M95=\"\",\"Winner Game 62\",M95)","v":"Winner Game 62"},null,"-",null,{"$f":"IF(OR(ISBLANK(G103),ISBLANK(I103)),\"\",IF(G103>I103,1,IF(G103<I103,2,\"X\")))","v":""},{"$f":"IF(OR(G103=\"\",I103=\"\",'Results and table'!G103=\"\",'Results and table'!I103=\"\"),0,IF(G103='Results and table'!G103,2,0)+IF(I103='Results and table'!I103,2,0)+IF(J103='Results and table'!J103,2,0))","v":0},null,null,{"$f":"IF(OR(ISBLANK(D103),ISBLANK(F103),J103=\"\",M103=\"\"),\"\",IF(OR(AND(J103=1,M103=D103),AND(J103=2,M103=F103),AND(J103=\"X\",OR(M103=D103,M103=F103))),\"\",\"Ej OK\"))","v":""},null,{"$f":"BP120","v":0},null,null,null,null,null,null,null,null,null,null,"Winner Game 61",null,null,null,"Winner Game 62",null,null,null,null,null,null,null,null,null,null,null,null,null,null,null,null,null,null,null,null,64,"2014-07-13T16:00:00",{"$f":"D103","v":"Winner Game 61"},"-",{"$f":"F103","v":"Winner Game 62"},{"$f":"IF(G103='Results and table'!$G103,2,0)","v":2},"-",{"$f":"IF(I103='Results and table'!$I103,2,0)","v":2},{"$f":"IF(J103='Results and table'!$J103,1,0)","v":1},{"$f":"SUM(BE103+BG103+BH103)","v":5},null,null,null,null,null,"SUMMA",{"$f":"SUM(BP95:BP102)","v":0}]
[null,null,null,null,null,null,null,null,null,null,null,null,null,null,null,null,null,null,null,null,null,null,null,null,null,null,null,null,null,null,null,null,null,null,null,null,null,null,null,null,null,null,null,null,null,null,null,null,null,null,null,null,null,null,null,null,null,null,null,null,null,null,null,"Semi-finals"]
[null,null,null,null,null,null,null,null,null,null,null,null,null,null,null,null,null,null,null,null,null,null,null,null,null,null,null,null,null,null,null,null,null,null,null,null,null,null,null,null,null,null,null,null,null,null,null,null,null,null,null,null,null,null,null,null,null,null,null,null,null,null,null,"Mitt tips","Resultat & tabell","Utfall","Utfall likare","Points"]
[null,null,null,null,null,null,null,null,null,null,null,null,null,null,null,null,null,null,null,null,null,null,null,null,null,null,null,null,null,null,null,null,null,null,null,null,null,null,null,null,null,null,null,null,null,null,null,null,null,null,null,null,null,null,null,null,null,null,null,null,null,null,null,{"$f":"D94","v":"Winner Game 57"},{"$f":"'Results and table'!D94","v":"Winner Game 57"},{"$f":"VLOOKUP(BL106,$BM$106:$BM$109,1,FALSE)","v":"Winner Game 57"},{"$f":"BN106","v":"Winner Game 57"},{"$f":"IFERROR(IF(AND(COUNTIF($J$87:$J$90,\"\")=0,BN106=BO106),6,0),0)","v":0}]
[null,null,null,null,null,null,null,null,null,null,null,null,null,null,null,null,null,null,null,null,null,null,null,null,null,null,null,null,null,null,null,null,null,null,null,null,null,null,null,null,null,null,null,null,null,null,null,null,null,null,null,null,null,null,null,null,null,null,null,null,null,null,null,{"$f":"D95","v":"Winner Game 59"},{"$f":"'Results and table'!D95","v":"Winner Game 59"},{"$f":"VLOOKUP(BL107,$BM$106:$BM$109,1,FALSE)","v":"Winner Game 59"},"Winner Game 59",{"$f":"IFERROR(IF(AND(COUNTIF($J$87:$J$90,\"\")=0,BN107=BO107),6,0),0)","v":0}]
[null,null,null,null,null,null,null,null,null,null,null,null,null,null,null,null,null,null,null,null,null,null,null,null,null,null,null,null,null,null,null,null,null,null,null,null,null,null,null,null,null,null,null,null,null,null,null,null,null,null,null,null,null,null,null,null,null,null,null,null,null,null,null,{"$f":"F94","v":"Winner Game 58"},{"$f":"'Results and table'!F94","v":"Winner Game 58"},{"$f":"VLOOKUP(BL108,$BM$106:$BM$109,1,FALSE)","v":"Winner Game 58"},"Winner Game 58",0]
[null,null,null,null,null,null,null,null,null,null,null,null,null,null,null,null,null,null,null,null,null,null,null,null,null,null,null,null,null,null,null,null,null,null,null,null,null,null,null,null,null,null,null,null,null,null,null,null,null,null,null,null,null,null,null,null,null,null,null,null,null,null,null,{"$f":"F95","v":"Winner Game 60"},{"$f":"'Results and table'!F95","v":"Winner Game 60"},{"$f":"VLOOKUP(BL109,$BM$106:$BM$109,1,FALSE)","v":"Winner Game 60"},"Winner Game 60",0]
[null,null,null,null,null,null,null,null,null,null,null,null,null,null,null,null,null,null,null,null,null,null,null,null,null,null,null,null,null,null,null,null,null,null,null,null,null,null,null,null,null,null,null,null,null,null,null,null,null,null,null,null,null,null,null,null,null,null,null,null,null,null,null,null,null,null,"SUMMA",{"$f":"SUM(BP106:BP109)","v":0}]
[null,null,null,null,null,null,null,null,null,null,null,null,null,null,null,null,null,null,null,null,null,null,null,null,null,null,null,null,null,null,null,null,null,null,null,null,null,null,null,null,null,null,null,null,null,null,null,null,null,null,null,null,null,null,null,null,null,null,null,null,null,null,null,"BronsGame"]
[null,null,null,null,null,null,null,null,null,null,null,null,null,null,null,null,null,null,null,null,null,null,null,null,null,null,null,null,null,null,null,null,null,null,null,null,null,null,null,null,null,null,null,null,null,null,null,null,null,null,null,null,null,null,null,null,null,null,null,null,null,null,null,"Mitt tips","Resultat & tabell","Utfall","Utfall likare","Points"]
[null,null,null,null,null,null,null,null,null,null,null,null,null,null,null,null,null,null,null,null,null,null,null,null,null,null,null,null,null,null,null,null,null,null,null,null,null,null,null,null,null,null,null,null,null,null,null,null,null,null,null,null,null,null,null,null,null,null,null,null,null,null,null,{"$f":"D99","v":"Looser Game 61"},{"$f":"'Results and table'!D99","v":"Looser Game 61"},{"$f":"VLOOKUP(BL113,$BM$113:$BM$114,1,FALSE)","v":"Looser Game 61"},{"$f":"BN113","v":"Looser Game 61"},{"$f":"IFERROR(IF(AND(COUNTIF($J$94:$J$95,\"\")=0,BN113=BO113),8,0),0)","v":0}]
[null,null,null,null,null,null,null,null,null,null,null,null,null,null,null,null,null,null,null,null,null,null,null,null,null,null,null,null,null,null,null,null,null,null,null,null,null,null,null,null,null,null,null,null,null,null,null,null,null,null,null,null,null,null,null,null,null,null,null,null,null,null,null,{"$f":"F99","v":"Looser Game 62"},{"$f":"'Results and table'!F99","v":"Looser Game 62"},{"$f":"VLOOKUP(BL114,$BM$113:$BM$114,1,FALSE)","v":"Looser Game 62"},"Looser Game 62",{"$f":"IFERROR(IF(AND(COUNTIF($J$94:$J$95,\"\")=0,BN114=BO114),8,0),0)","v":0}]
[null,null,null,null,null,null,null,null,null,null,null,null,null,null,null,null,null,null,null,null,null,null,null,null,null,null,null,null,null,null,null,null,null,null,null,null,null,null,null,null,null,null,null,null,null,null,null,null,null,null,null,null,null,null,null,null,null,null,null,null,null,null,null,null,null,null,"SUMMA",{"$f":"SUM(BP113:BP114)","v":0}]
[null,null,null,null,null,null,null,null,null,null,null,null,null,null,null,null,null,null,null,null,null,null,null,null,null,null,null,null,null,null,null,null,null,null,null,null,null,null,null,null,null,null,null,null,null,null,null,null,null,null,null,null,null,null,null,null,null,null,null,null,null,null,null,"Final"]
[null,null,null,null,null,null,null,null,null,null,null,null,null,null,null,null,null,null,null,null,null,null,null,null,null,null,null,null,null,null,null,null,null,null,null,null,null,null,null,null,null,null,null,null,null,null,null,null,null,null,null,null,null,null,null,null,null,null,null,null,null,null,null,"Mitt tips","Resultat & tabell","Utfall","Utfall likare","Points"]
[null,null,null,null,null,null,null,null,null,null,null,null,null,null,null,null,null,null,null,null,null,null,null,null,null,null,null,null,null,null,null,null,null,null,null,null,null,null,null,null,null,null,null,null,null,null,null,null,null,null,null,null,null,null,null,null,null,null,null,null,null,null,null,{"$f":"D103","v":"Winner Game 61"},{"$f":"'Results and table'!D103","v":"Winner Game 61"},{"$f":"VLOOKUP(BL118,$BM$118:$BM$119,1,FALSE)","v":"Winner Game 61"},{"$f":"BN118","v":"Winner Game 61"},{"$f":"IFERROR(IF(AND(COUNTIF($J$94:$J$95,\"\")=0,BN118=BO118),8,0),0)","v":0}]
[null,null,null,null,null,null,null,null,null,null,null,null,null,null,null,null,null,null,null,null,null,null,null,null,null,null,null,null,null,null,null,null,null,null,null,null,null,null,null,null,null,null,null,null,null,null,null,null,null,null,null,null,null,null,null,null,null,null,null,null,null,null,null,{"$f":"F103","v":"Winner Game 62"},{"$f":"'Results and table'!F103","v":"Winner Game 62"},{"$f":"VLOOKUP(BL119,$BM$118:$BM$119,1,FALSE)","v":"Winner Game 62"},"Winner Game 62",{"$f":"IFERROR(IF(AND(COUNTIF($J$94:$J$95,\"\")=0,BN119=BO119),8,0),0)","v":0}]
[null,null,null,null,null,null,null,null,null,null,null,null,null,null,null,null,null,null,null,null,null,null,null,null,null,null,null,null,null,null,null,null,null,null,null,null,null,null,null,null,null,null,null,null,null,null,null,null,null,null,null,null,null,null,null,null,null,null,null,null,null,null,null,null,null,null,"SUMMA",{"$f":"SUM(BP118:BP119)","v":0}]